Department Family,Entity,Date,Expense Type,Expense Area,Supplier,Transaction Number,Amount,Item Description
BEIS,UKRI - STFC,10/04/2019,International Subscriptions,International Subscriptions,CERN (EUROPEAN ORGANIZATION FOR NUCLEAR RESEARCH),98460277,46047818.07,International Subscriptions
BEIS,UKRI - STFC,10/04/2019,International Subscriptions - CGPS,International Subscriptions,CERN (EUROPEAN ORGANIZATION FOR NUCLEAR RESEARCH),98460277,25433268.50,International Subscriptions - CGPS
BEIS,UKRI - STFC,11/04/2019,International Subscriptions,International Subscriptions,CERN (EUROPEAN ORGANIZATION FOR NUCLEAR RESEARCH),98461455,14844886.32,International Subscriptions
BEIS,UKRI - MRC,05/04/2019,Grant - Special Contributions,CRICK,The Francis Crick Institute,98456999,11104236,Grant - Special Contributions
BEIS,UKRI - MRC,08/04/2019,Grant - Special Contributions,Biobank,UK Biobank,98457410,7130000,Grant - Special Contributions
BEIS,UKRI - Research England,16/04/2019,Research Grant Expenditure,RE- Quality Research (QR),University of Oxford,98459327,6822115.25,Research Grant Expenditure
BEIS,UKRI - Research England,16/04/2019,Research Grant Expenditure,RE- Quality Research (QR),University College London,98459307,6568407.38,Research Grant Expenditure
BEIS,UKRI - Research England,16/04/2019,Research Grant Expenditure,RE- Quality Research (QR),University of Cambridge,98459610,5873848.59,Research Grant Expenditure
BEIS,UKRI - Research England,16/04/2019,Research Grant Expenditure,RE- Quality Research (QR),Imperial College Science Tech & Med,98459638,4404403.53,Research Grant Expenditure
BEIS,UKRI - MRC,09/04/2019,Capital Grants & Equipment to HEIs,PSMB Other,Newcastle University,98429789,4200000,Capital Grants & Equipment to HEIs
BEIS,UKRI - STFC,11/04/2019,Commercial Funding Costs,Diamond Light Source (Grant and Capital Funding),Diamond Light Source Ltd,98461567,4099166.00,Commercial Funding Costs
BEIS,UKRI - Innovate UK,26/04/2019,Resource grants,Manufacturing & Materials Catapult Delivery,HIGH VALUE MANUFACTURING CATAPULT,31859,3916449.21,Resource grants
BEIS,UKRI - Innovate UK,29/04/2019,Resource grants,Manufacturing & Materials Catapult Delivery,HIGH VALUE MANUFACTURING CATAPULT,31865,3735937.84,Resource grants
BEIS,UKRI - STFC,24/04/2019,Projects CIP,CD Hartree Centre,IBM United Kingdom Ltd,98461310,3724999.99,Projects CIP
BEIS,UKRI - NERC,26/04/2019,VAT Input Tax Overseas,Balance Sheet,HM Revenue & Customs,98470904,3549783.52,VAT Input Tax Overseas
BEIS,UKRI - MRC,09/04/2019,Grant - Special Contributions,DEMENTIA RESEARCH INSTITUTE,UK DRI Ltd,98459204,3520750,Grant - Special Contributions
BEIS,UKRI - NERC,24/04/2019,HEI Research Contracts,NCAS,University of Leeds,98461241,3440500.00,HEI Research Contracts
BEIS,UKRI - Research England,16/04/2019,Research Grant Expenditure,RE- Quality Research (QR),King's College London,98459295,3275096.74,Research Grant Expenditure
BEIS,UKRI - Research England,16/04/2019,Research Grant Expenditure,RE- Quality Research (QR),The University of Manchester,98459315,3200884.69,Research Grant Expenditure
BEIS,UKRI - Innovate UK,29/04/2019,Resource grants,Manufacturing & Materials Catapult Delivery,HIGH VALUE MANUFACTURING CATAPULT,31861,2939160.37,Resource grants
BEIS,UKRI - STFC,11/04/2019,International Subscriptions,ESS International Subscription,European Spallation Source ERIC,98457519,2929266.94,International Subscriptions
BEIS,UKRI - Innovate UK,29/04/2019,Resource grants,Manufacturing & Materials Catapult Delivery,HIGH VALUE MANUFACTURING CATAPULT,31862,2896755.64,Resource grants
BEIS,UKRI - Innovate UK,11/04/2019,Resource grants,Catapults - ASH&N,MEDICINES DISCOVERY CATAPULT LTD,30458,2848129.81,Resource grants
BEIS,UKRI - MRC,15/04/2019,Grant - Special Contributions,MCMB HGU,University of Edinburgh,98460267,2775500,Grant - Special Contributions
BEIS,UKRI - Innovate UK,29/04/2019,Resource grants,Manufacturing & Materials Catapult Delivery,HIGH VALUE MANUFACTURING CATAPULT,31864,2691191.80,Resource grants
BEIS,UKRI - NERC,23/04/2019,International Subscriptions,NC IODP Subscription,Centre National de la Recherche Scientifique (CNRS),98442729,2600000.00,International Subscriptions
BEIS,UKRI - Research England,16/04/2019,Capital Grants & Equipment to HEIs,RE - UK RPIF,University of Bath,98459677,2336142.00,Capital Grants & Equipment to HEIs
BEIS,UKRI - Innovate UK,17/04/2019,Resource grants,Medicines Manufacturing,CELL THERAPY CATAPULT LTD,31235,2335540.07,Resource grants
BEIS,UKRI - Research England,16/04/2019,Research Grant Expenditure,RE- Quality Research (QR),University of Nottingham,98459323,2290847.20,Research Grant Expenditure
BEIS,UKRI - Innovate UK,29/04/2019,Resource grants,Manufacturing & Materials Catapult Delivery,HIGH VALUE MANUFACTURING CATAPULT,31863,2241725.46,Resource grants
BEIS,UKRI - Research England,16/04/2019,Research Grant Expenditure,RE- Quality Research (QR),University of Bristol,98459607,2177663.73,Research Grant Expenditure
BEIS,UKRI - Research England,16/04/2019,Research Grant Expenditure,RE- Quality Research (QR),University of Southampton,98459347,2133384.07,Research Grant Expenditure
BEIS,UKRI - Research England,16/04/2019,Research Grant Expenditure,RE- Quality Research (QR),University of Leeds,98459298,2085862.23,Research Grant Expenditure
BEIS,UKRI - Research England,16/04/2019,Research Grant Expenditure,RE- Quality Research (QR),University of Sheffield,98459344,1998646.11,Research Grant Expenditure
BEIS,UKRI - Research England,16/04/2019,Capital Grants & Equipment to HEIs,RE - UK RPIF,London School of Economics and Political Science,98459672,1963661.00,Capital Grants & Equipment to HEIs
BEIS,UKRI - Research England,16/04/2019,Research Grant Expenditure,RE- Quality Research (QR),University of Birmingham,98459600,1867779.59,Research Grant Expenditure
BEIS,UKRI - NERC,29/04/2019,Projects CIP,NERC - BAS New Polar Research Vessel / AP,BAM Nuttall Ltd,98461796,1801000.00,Projects CIP
BEIS,UKRI - Innovate UK,05/04/2019,Resource grants,Non Core - Agritech Centres,CIELivestock Ltd,29555,1800000.00,Resource grants
BEIS,UKRI - Innovate UK,26/04/2019,Resource grants,Catapults - CG&I,ENERGY SYSTEMS CATAPULT LIMITED,31763,1717038.53,Resource grants
BEIS,UKRI - STFC,12/04/2019,NI Payable Salaries,Balance Sheet,HM Revenue & Customs,98460696,1704941.81,NI Payable Salaries
BEIS,UKRI - Research England,16/04/2019,Research Grant Expenditure,RE- Quality Research (QR),University of Warwick,98459358,1680999.95,Research Grant Expenditure
BEIS,UKRI - MRC,17/04/2019,Employers Superannuation Contribution,Unspecified,Unspecified,98464311,1642000,Employers Superannuation Contribution
BEIS,UKRI - Research England,16/04/2019,Research Grant Expenditure,RE- Quality Research (QR),Newcastle University,98459318,1596967.11,Research Grant Expenditure
BEIS,UKRI - STFC,05/04/2019,International Subscriptions,International Subscriptions,European Synchrotron Radiation Facility (ESRF),98442556,1525714.11,International Subscriptions
BEIS,UKRI - NERC,29/04/2019,Ship Repairs & Refit,NERC - BAS Ships Engineering,GC Rieber Shipping AS,98471750,1500000.00,Ship Repairs & Refit
BEIS,UKRI - Research England,16/04/2019,Research Grant Expenditure,RE- Quality Research (QR),Queen Mary University of London,98459331,1496631.43,Research Grant Expenditure
BEIS,UKRI - NERC,12/04/2019,NI Payable Salaries,Balance Sheet,HM Revenue & Customs,98460747,1438904.37,NI Payable Salaries
BEIS,UKRI - STFC,12/04/2019,PAYE Payable Salaries,Balance Sheet,HM Revenue & Customs,98460695,1414048.86,PAYE Payable Salaries
BEIS,UKRI - Central,02/04/2019,Purchase of non capital equipment,UKRI - EU Underwrite,UKRI - Natural Environment Research Council,98453659,1401966.84,Purchase of non capital equipment
BEIS,UKRI - Central,02/04/2019,Recharges From Councils - General,UKRI - Financial Accounting,UKRI - Science & Technology Facilities Council,98452725,1386811.00,Recharges From Councils - General
BEIS,UKRI - Research England,16/04/2019,Research Grant Expenditure,RE- Quality Research (QR),University of Liverpool,98459303,1346980.85,Research Grant Expenditure
BEIS,UKRI - MRC,09/04/2019,Grant - Special Contributions,IIB CVR,University of Glasgow,98459021,1332750,Grant - Special Contributions
BEIS,UKRI - Central,30/04/2019,Recharges From Councils - General,UKRI - International,UKRI - Medical Research Council,98468423,1310414.83,Recharges From Councils - General
BEIS,UKRI - EPSRC,24/04/2019,Training Awards - Postgraduates,Non Theme Specific,ICSTM,98455851,1245705.43,Training Awards - Postgraduates
BEIS,UKRI - STFC,11/04/2019,Manual - Asset Cost - Investment,Diamond Light Source (Grant and Capital Funding),Diamond Light Source Ltd,98461566,1245000.00,Manual - Asset Cost - Investment
BEIS,UKRI - Innovate UK,26/04/2019,Resource grants,APC,WILLIAMS ADVANCED ENGINEERING LTD,31682,1229732.44,Resource grants
BEIS,UKRI - MRC,11/04/2019,Grant - Special Contributions,MCMB PPU,University of Dundee,98460263,1227000,Grant - Special Contributions
BEIS,UKRI - Innovate UK,26/04/2019,Resource grants,Manufacturing & Materials Catapult Delivery,HIGH VALUE MANUFACTURING CATAPULT,31760,1207257.45,Resource grants
BEIS,UKRI - Research England,16/04/2019,Research Grant Expenditure,RE- Quality Research (QR),University of Durham,98459623,1154345.63,Research Grant Expenditure
BEIS,UKRI - Research England,16/04/2019,Research Grant Expenditure,RE- Quality Research (QR),University of Exeter,98459628,1141181.49,Research Grant Expenditure
BEIS,UKRI - Central,02/04/2019,Recharges From Councils - General,UKRI - Human Resources Support,UKRI - Science & Technology Facilities Council,98452722,1102737.00,Recharges From Councils - General
BEIS,UKRI - MRC,09/04/2019,Grant - Special Contributions,PSMB SPHSU,University of Glasgow,98459032,1102000,Grant - Special Contributions
BEIS,UKRI - MRC,08/04/2019,Grant - Special Contributions Capital,MCMB TOX,University of Cambridge,98388238,1100000,Grant - Special Contributions Capital
BEIS,UKRI - Research England,16/04/2019,Research Grant Expenditure,RE- Quality Research (QR),University of York,98459645,1073558.26,Research Grant Expenditure
BEIS,UKRI - Innovate UK,30/04/2019,Co-funding Expense,Challenge: Energy,EPSRC,49737,1046214.81,Co-funding Expense
BEIS,UKRI - Innovate UK,30/04/2019,Co-funding Expense,Challenge: Energy,EPSRC,49737,1046214.81,Co-funding Expense
BEIS,UKRI - BBSRC,10/04/2019,Training Awards - Postgraduates,FG - Accounts & Business Planning,University College London,98453004,1014056.25,Training Awards - Postgraduates
BEIS,UKRI - NERC,12/04/2019,PAYE Payable Salaries,Balance Sheet,HM Revenue & Customs,98460748,1000386.72,PAYE Payable Salaries
BEIS,UKRI - Innovate UK,18/04/2019,Co-funding Expense,Investor Partnerships,NORTHSTAR VENTURES LIMITED - INNOVATE UK GRANT,31384,1000000.00,Co-funding Expense
BEIS,UKRI - Innovate UK,05/04/2019,Resource grants,Non Core - Agritech Centres,Agrimetrics Ltd,29665,1000000.00,Resource grants
BEIS,UKRI - Innovate UK,01/04/2019,Co-funding Expense,Investor Partnerships,NORTH EAST BUSINESS AND INNOVATION CENTRE (BIC) - ANGEL INVESTMENT ACCELERATOR,31444,1000000.00,Co-funding Expense
BEIS,UKRI - MRC,05/04/2019,Grant - Special Contributions,CRICK,The Francis Crick Institute,98456998,1000000,Grant - Special Contributions
BEIS,UKRI - MRC,16/04/2019,International Subscriptions,MRC Funded International Subs,International Agency for Research on Cancer,98463720,986554.5004,International Subscriptions
BEIS,UKRI - MRC,15/04/2019,Grant - Special Contributions,Biobank,UK Biobank,98462499,982784,Grant - Special Contributions
BEIS,UKRI - NERC,29/04/2019,HEI Research Contracts,NCEO,University of Leicester,98470457,967000.00,HEI Research Contracts
BEIS,UKRI - BBSRC,24/04/2019,Research Institutes - Capital Grants: Major Works,IBERS,ABERYSTWYTH INNOVATION AND ENTERPRISE CAMPUS LTD (AIEC),98466950,957345.54,Research Institutes - Capital Grants: Major Works
BEIS,UKRI - AHRC,25/04/2019,Training Awards - Postgraduates,BGP Award,University of York,98456649,956519.89,Training Awards - Postgraduates
BEIS,UKRI - Innovate UK,25/04/2019,Resource grants,Manufacturing & Materials Catapult Delivery,HIGH VALUE MANUFACTURING CATAPULT,31469,954336.83,Resource grants
BEIS,UKRI - Innovate UK,05/04/2019,Resource grants,Non Core - Agritech Centres,Crop Health and Protection Limited,29664,948000.00,Resource grants
BEIS,UKRI - AHRC,25/04/2019,Training Awards - Postgraduates,BGP Award,University College London,98456637,941427.90,Training Awards - Postgraduates
BEIS,UKRI - BBSRC,10/04/2019,Training Awards - Postgraduates,FG - Accounts & Business Planning,University of Cambridge,98453006,937556.25,Training Awards - Postgraduates
BEIS,UKRI - Research England,16/04/2019,Research Grant Expenditure,RE- Quality Research (QR),Lancaster University,98459297,927114.70,Research Grant Expenditure
BEIS,UKRI - Innovate UK,11/04/2019,Resource grants,Medicines Manufacturing,ARC TRINOVA LIMITED,30385,919029.87,Resource grants
BEIS,UKRI - Innovate UK,26/04/2019,Resource grants,Catapults - CG&I,ENERGY SYSTEMS CATAPULT LTD,31762,910221.92,Resource grants
BEIS,UKRI - Research England,16/04/2019,Research Grant Expenditure,RE- Quality Research (QR),London School of Hygiene & Tropical Medicine,98459312,903911.21,Research Grant Expenditure
BEIS,UKRI - EPSRC,24/04/2019,Training Awards - Postgraduates,Non Theme Specific,University of Oxford GRANT,98455841,900659.44,Training Awards - Postgraduates
BEIS,UKRI - NERC,03/04/2019,Asset Clearing,Research Technical Services - Licenses & Maintenance,British Telecom Plc (BT),98451811,880424.06,Asset Clearing
BEIS,UKRI - EPSRC,24/04/2019,Training Awards - Postgraduates,Non Theme Specific,University College London GRANT,98455860,878109.44,Training Awards - Postgraduates
BEIS,UKRI - Research England,16/04/2019,Research Grant Expenditure,RE- Quality Research (QR),University of Leicester,98459301,873227.25,Research Grant Expenditure
BEIS,UKRI - Innovate UK,26/04/2019,Resource grants,APC,LONDON EV COMPANY LIMITED,31511,866120.59,Resource grants
BEIS,UKRI - Research England,16/04/2019,Research Grant Expenditure,RE - Small Research Programmes,University of London,98459692,859166.00,Research Grant Expenditure
BEIS,UKRI - Research England,16/04/2019,Research Grant Expenditure,RE- GCRF,University College London,98459420,859021.70,Research Grant Expenditure
BEIS,UKRI - EPSRC,24/04/2019,Training Awards - Postgraduates,Non Theme Specific,University of Cambridge,98455865,852398.91,Training Awards - Postgraduates
BEIS,UKRI - AHRC,25/04/2019,Training Awards - Postgraduates,BGP Award,University of Sussex,98456647,846925.80,Training Awards - Postgraduates
BEIS,UKRI - Research England,16/04/2019,Research Grant Expenditure,RE- Quality Research (QR),London School of Economics and Political Science,98459311,846557.40,Research Grant Expenditure
BEIS,UKRI - Research England,16/04/2019,Research Grant Expenditure,RE- Quality Research (QR),Loughborough University,98459314,841478.20,Research Grant Expenditure
BEIS,UKRI - MRC,12/04/2019,NI Payable Salaries,Unspecified,HM Revenue & Customs,98458350,839748.32,NI Payable Salaries
BEIS,UKRI - BBSRC,29/04/2019,Research Institutes - Capital Grants: Major Works,Pirbright,The Pirbright Institute,98471051,839558.19,Research Institutes - Capital Grants: Major Works
BEIS,UKRI - Research England,16/04/2019,Capital Grants & Equipment to HEIs,RE - UK RPIF,University of Cambridge,98459678,836000.00,Capital Grants & Equipment to HEIs
BEIS,UKRI - Research England,16/04/2019,Research Grant Expenditure,RE- Quality Research (QR),University of Bath,98459596,824416.99,Research Grant Expenditure
BEIS,UKRI - MRC,09/04/2019,Research Grant Expenditure,NMHB Other,University of Oxford,98429682,823250.63,Research Grant Expenditure
BEIS,UKRI - Research England,16/04/2019,Research Grant Expenditure,RE- Quality Research (QR),University of Reading,98459332,822964.38,Research Grant Expenditure
BEIS,UKRI - BBSRC,17/04/2019,Research Institutes - Competitive Strategic Grant,Pirbright,The Pirbright Institute,98458983,819250.00,Research Institutes - Competitive Strategic Grant
BEIS,UKRI - BBSRC,24/04/2019,Research Institutes - Capital Grants: Major Works,IBERS,ABERYSTWYTH INNOVATION AND ENTERPRISE CAMPUS LTD (AIEC),98466017,804381.52,Research Institutes - Capital Grants: Major Works
BEIS,UKRI - NERC,02/04/2019,Academic Anologues Research Co,Strategic Research Grants,UKRI - Science & Technology Facilities Council,98439466,803970.25,Academic Anologues Research Co
BEIS,UKRI - BBSRC,10/04/2019,Training Awards - Postgraduates,FG - Accounts & Business Planning,University of Warwick,98453008,802714.75,Training Awards - Postgraduates
BEIS,UKRI - STFC,26/04/2019,Electricity,Estates Utilities,EDF Energy,98466274,799367.39,Electricity
BEIS,UKRI - NERC,02/04/2019,Academic Anologues Research Co,Strategic Research Grants,UKRI - Science & Technology Facilities Council,98448795,794770.25,Academic Anologues Research Co
BEIS,UKRI - BBSRC,10/04/2019,Training Awards - Postgraduates,FG - Accounts & Business Planning,John Innes Centre,98453007,786223.75,Training Awards - Postgraduates
BEIS,UKRI - Research England,16/04/2019,Research Grant Expenditure,RE- GCRF,University of Oxford,98459436,785264.53,Research Grant Expenditure
BEIS,UKRI - BBSRC,10/04/2019,Training Awards - Postgraduates,FG - Accounts & Business Planning,University of Nottingham,98453005,778223.75,Training Awards - Postgraduates
BEIS,UKRI - BBSRC,10/04/2019,Training Awards - Postgraduates,FG - Accounts & Business Planning,University of Oxford,98453009,778223.75,Training Awards - Postgraduates
BEIS,UKRI - MRC,11/04/2019,Grant - Special Contributions,PSMB LEU,University of Southampton,98425657,758000,Grant - Special Contributions
BEIS,UKRI - Research England,16/04/2019,Research Grant Expenditure,RE- Quality Research (QR),Institute of Cancer Research,98459292,747585.09,Research Grant Expenditure
BEIS,UKRI - AHRC,25/04/2019,Training Awards - Postgraduates,BGP Award,University of Nottingham,98456648,728798.84,Training Awards - Postgraduates
BEIS,UKRI - Research England,16/04/2019,Research Grant Expenditure,RE- Quality Research (QR),University of East Anglia,98459624,726637.44,Research Grant Expenditure
BEIS,UKRI - AHRC,25/04/2019,Training Awards - Postgraduates,BGP Award,University of Oxford,98456638,720478.33,Training Awards - Postgraduates
BEIS,UKRI - AHRC,25/04/2019,Training Awards - Postgraduates,BGP Award,University of Bristol GRANT,98456641,713091.37,Training Awards - Postgraduates
BEIS,UKRI - AHRC,25/04/2019,Training Awards - Postgraduates,BGP Award,University of Glasgow,98456639,711023.25,Training Awards - Postgraduates
BEIS,UKRI - AHRC,25/04/2019,Training Awards - Postgraduates,BGP Award,The University of Manchester,98456644,711023.25,Training Awards - Postgraduates
BEIS,UKRI - AHRC,25/04/2019,Training Awards - Postgraduates,BGP Award,University of Cambridge,98456645,711023.25,Training Awards - Postgraduates
BEIS,UKRI - Research England,16/04/2019,Research Grant Expenditure,RE- GCRF,University of Cambridge,98459378,710282.76,Research Grant Expenditure
BEIS,UKRI - BBSRC,10/04/2019,Training Awards - Postgraduates,FG - Accounts & Business Planning,University of Leeds,98453010,704750.75,Training Awards - Postgraduates
BEIS,UKRI - MRC,12/04/2019,PAYE Payable Salaries,Unspecified,HM Revenue & Customs,98458349,693830.68,PAYE Payable Salaries
BEIS,UKRI - STFC,18/04/2019,Projects CIP,TD R115,Willmott Dixon Construction Limited,98463552,690010.69,Projects CIP
BEIS,UKRI - Research England,16/04/2019,Research Grant Expenditure,RE- Quality Research (QR),University of Sussex,98459355,686831.84,Research Grant Expenditure
BEIS,UKRI - Research England,16/04/2019,Research Grant Expenditure,RE- Quality Research (QR),University of Surrey,98459354,683762.47,Research Grant Expenditure
BEIS,UKRI - MRC,26/04/2019,Rates,Unspecified,South Cambridgeshire District Counc,98471133,675360,Rates
BEIS,UKRI - AHRC,25/04/2019,Training Awards - Postgraduates,BGP Award,"Royal Holloway, University of London",98456633,673870.98,Training Awards - Postgraduates
BEIS,UKRI - Research England,16/04/2019,Research Grant Expenditure,RE- Quality Research (QR),University of Kent,98459294,666987.60,Research Grant Expenditure
BEIS,UKRI - NERC,29/04/2019,Projects CIP,NERC - BAS Rothera Redevelopment,BAM Nuttall Ltd,98461797,659000.00,Projects CIP
BEIS,UKRI - Innovate UK,09/04/2019,HMRC ERS NI,HR & Information Assurance UKRI,HM Revenue & Customs,29933,655334.11,HMRC ERS NI
BEIS,UKRI - Innovate UK,09/04/2019,HMRC Income Tax,HR & Information Assurance UKRI,HM Revenue & Customs,29933,655334.11,HMRC Income Tax
BEIS,UKRI - Innovate UK,09/04/2019,Payroll Charges,HR & Information Assurance UKRI,HM Revenue & Customs,29933,655334.11,Payroll Charges
BEIS,UKRI - Innovate UK,09/04/2019,Student Loans,HR & Information Assurance UKRI,HM Revenue & Customs,29933,655334.11,Student Loans
BEIS,UKRI - Central,01/04/2019,Recharges From Councils - General,UKRI - Financial Accounting,Technology Strategy Board (Innovate UK),98451855,655237.00,Recharges From Councils - General
BEIS,UKRI - Innovate UK,05/04/2019,Resource grants,Non Core - Agritech Centres,AGRI-EPI CENTRE LTD,29662,650000.00,Resource grants
BEIS,UKRI - STFC,26/04/2019,Projects CIP,Infrastructure - DI,European Electronique,98471094,627984.00,Projects CIP
BEIS,UKRI - Innovate UK,11/04/2019,Resource grants,Aerospace,NCC OPERATIONS LTD,30407,620216.20,Resource grants
BEIS,UKRI - Innovate UK,05/04/2019,Resource grants,Aerospace,THALES UK LIMITED,29206,616351.24,Resource grants
BEIS,UKRI - NERC,23/04/2019,Training Awards - Postgraduates,NERC - SO Post Graduate Training DTP's,University of Bristol GRANT,98460543,612008.50,Training Awards - Postgraduates
BEIS,UKRI - ESRC,16/04/2019,Other Programme Costs,Administrative Data Research Partnership,Office For National Statistics,98464166,608040.73,Other Programme Costs
BEIS,UKRI - ESRC,16/04/2019,Other Programme Costs,Administrative Data Research Partnership,Office For National Statistics,98464166,608040.73,Other Programme Costs
BEIS,UKRI - ESRC,16/04/2019,Other Programme Costs,Administrative Data Research Partnership,Office For National Statistics,98464166,607208.01,Other Programme Costs
BEIS,UKRI - EPSRC,30/04/2019,Recharges From Councils - General,JRS,UKRI - Arts & Humanities Research Council,98471710,599941.95,Recharges From Councils - General
BEIS,UKRI - Research England,16/04/2019,Research Grant Expenditure,RE- Quality Research (QR),Royal Holloway & Bedford New C,98459340,591037.68,Research Grant Expenditure
BEIS,UKRI - NERC,12/04/2019,Rates,NERC - BGS ESTATES SOUTH,Rushcliffe Borough Council,98447366,589680.00,Rates
BEIS,UKRI - MRC,08/04/2019,Projects CIP,LMS - New Building Project (2018/2019),Imperial College Healthcare NHS Trust,98458156,581435.74,Projects CIP
BEIS,UKRI - EPSRC,24/04/2019,Training Awards - Postgraduates,Non Theme Specific,University of Southampton GRANT,98455844,579625.31,Training Awards - Postgraduates
BEIS,UKRI - MRC,11/04/2019,Grant - Special Contributions Capital,Informatics Institute,Health Data Research UK,98460265,574739,Grant - Special Contributions Capital
BEIS,UKRI - NERC,23/04/2019,Training Awards - Postgraduates,NERC - SO Post Graduate Training DTP's,University College London,98460544,574176.00,Training Awards - Postgraduates
BEIS,UKRI - BBSRC,03/04/2019,Research Institutes - Capital Grants: Major Works,Pirbright,The Pirbright Institute,98452453,573843.32,Research Institutes - Capital Grants: Major Works
BEIS,UKRI - EPSRC,24/04/2019,Training Awards - Postgraduates,Non Theme Specific,University of Bristol GRANT,98455864,573466.24,Training Awards - Postgraduates
BEIS,UKRI - MRC,01/04/2019,Grant - Special Contributions,IIB Gambia,London School of Hygiene & Tropical Medicine,98452824,562000,Grant - Special Contributions
BEIS,UKRI - ESRC,12/04/2019,Training Awards - Postgraduates,Skills and Methods,University of Edinburgh,98453972,559137.00,Training Awards - Postgraduates
BEIS,UKRI - AHRC,25/04/2019,Training Awards - Postgraduates,BGP Award,University of Newcastle Upon Tyne,98456640,556110.59,Training Awards - Postgraduates
BEIS,UKRI - MRC,09/04/2019,Research Grant Expenditure,GCRF RCUK FUND,University of Cambridge,98430124,543131,Research Grant Expenditure
BEIS,UKRI - Innovate UK,26/04/2019,Resource grants,Manufacturing & Materials Catapult Delivery,TRANSPORT SYSTEMS CATAPULT,31540,541181.46,Resource grants
BEIS,UKRI - Central,16/04/2019,Computer Hardware,UKRI - Digital Data and Technology BAU Costs,UKRI - Natural Environment Research Council,98455276,538820.47,Computer Hardware
BEIS,UKRI - Research England,16/04/2019,Research Grant Expenditure,RE- GCRF,Imperial College Science Tech & Med,98459405,536335.45,Research Grant Expenditure
BEIS,UKRI - STFC,03/04/2019,International Subscriptions,LSN-XFEL International Subscription,European X-Ray Free-Electron Laser Facility GMBH,98451062,535906.54,International Subscriptions
BEIS,UKRI - Central,30/04/2019,Recharges JBOS,UKRI - Estates,UKRI - Biotechnology and Biological Sciences Research Council (BBSRC),98435973,533503.45,Recharges JBOS
BEIS,UKRI - Research England,16/04/2019,Capital Grants & Equipment to HEIs,RE - UK RPIF,University of Birmingham,98459673,529887.00,Capital Grants & Equipment to HEIs
BEIS,UKRI - BBSRC,17/04/2019,Research Institutes - Competitive Strategic Grant,JIC,John Innes Centre,98459929,525019.39,Research Institutes - Competitive Strategic Grant
BEIS,UKRI - STFC,15/04/2019,Projects CIP,SCD RC Grants,XMA Ltd,98462324,524263.99,Projects CIP
BEIS,UKRI - BBSRC,10/04/2019,Training Awards - Postgraduates,FG - Accounts & Business Planning,Imperial College London,98453012,523549.75,Training Awards - Postgraduates
BEIS,UKRI - NERC,23/04/2019,Training Awards - Postgraduates,NERC - SO Post Graduate Training DTP's,University of Oxford,98460546,523293.00,Training Awards - Postgraduates
BEIS,UKRI - Innovate UK,04/04/2019,Co-funding Expense,Eureka,KNOWLEDGE TRANSFER NETWORK,30025,520319.16,Co-funding Expense
BEIS,UKRI - EPSRC,24/04/2019,Training Awards - Postgraduates,Non Theme Specific,University College London GRANT,98455997,518845.90,Training Awards - Postgraduates
BEIS,UKRI - Research England,16/04/2019,Research Grant Expenditure,RE- Quality Research (QR),Brunel University London,98459608,515377.68,Research Grant Expenditure
BEIS,UKRI - EPSRC,24/04/2019,Training Awards - Postgraduates,Non Theme Specific,ICSTM,98456006,511340.54,Training Awards - Postgraduates
BEIS,UKRI - STFC,03/04/2019,Projects CIP,Infrastructure - RAL,Premier Modular Ltd,98454884,507430.80,Projects CIP
BEIS,UKRI - Research England,16/04/2019,Capital Grants & Equipment to HEIs,RE - UK RPIF,University of Nottingham,98459676,500000.00,Capital Grants & Equipment to HEIs
BEIS,UKRI - STFC,29/04/2019,Projects CIP,Rosalind Franklin Institute,Mace Limited,98471392,492000.00,Projects CIP
BEIS,UKRI - Innovate UK,26/04/2019,Resource grants,CHALLENGE - Energy Batteries,ILIKA TECHNOLOGIES LTD,31743,489629.06,Resource grants
BEIS,UKRI - BBSRC,17/04/2019,Research Institutes - Competitive Strategic Grant,JIC,John Innes Centre,98459929,489573.29,Research Institutes - Competitive Strategic Grant
BEIS,UKRI - STFC,18/04/2019,International Subscriptions,Exploitation,CERN (EUROPEAN ORGANIZATION FOR NUCLEAR RESEARCH),98458982,489342.46,International Subscriptions
BEIS,UKRI - MRC,09/04/2019,Research Grant Expenditure,GCRF RCUK FUND,King's College London,98430128,484641,Research Grant Expenditure
BEIS,UKRI - Research England,16/04/2019,Research Grant Expenditure,RE- Quality Research (QR),Cranfield University,98459618,484286.23,Research Grant Expenditure
BEIS,UKRI - BBSRC,10/04/2019,Training Awards - Postgraduates,FG - Accounts & Business Planning,University of Bristol GRANT,98453015,484049.75,Training Awards - Postgraduates
BEIS,UKRI - MRC,11/04/2019,Grant - Special Contributions,PSMB CAiTE,University of Bristol,98460861,482000,Grant - Special Contributions
BEIS,UKRI - Research England,16/04/2019,Research Grant Expenditure,RE- Quality Research (QR),"City, University of London",98459615,479047.11,Research Grant Expenditure
BEIS,UKRI - Innovate UK,17/04/2019,Resource grants,CHALLENGE - Robotics - CCAV,OXBOTICA LTD,31058,476872.60,Resource grants
BEIS,UKRI - MRC,02/04/2019,Asset Clearing,SS Fixed Assets LMB,FEI UK Ltd,98453664,470000,Asset Clearing
BEIS,UKRI - ESRC,12/04/2019,Training Awards - Postgraduates,Skills and Methods,University College London GRANT,98453991,469298.79,Training Awards - Postgraduates
BEIS,UKRI - STFC,29/04/2019,Projects CIP,National Satellite Test Facility,Mace Limited,98462322,465500.44,Projects CIP
BEIS,UKRI - BBSRC,10/04/2019,Training Awards - Postgraduates,FG - Accounts & Business Planning,University of Edinburgh,98453014,459558.25,Training Awards - Postgraduates
BEIS,UKRI - ESRC,12/04/2019,Training Awards - Postgraduates,Skills and Methods,University of Liverpool GRANT,98453981,457656.50,Training Awards - Postgraduates
BEIS,UKRI - ESRC,12/04/2019,Training Awards - Postgraduates,Skills and Methods,University of Bristol GRANT,98453995,457656.50,Training Awards - Postgraduates
BEIS,UKRI - EPSRC,24/04/2019,Training Awards - Postgraduates,Non Theme Specific,University of Oxford GRANT,98456019,454599.61,Training Awards - Postgraduates
BEIS,UKRI - STFC,26/04/2019,Electricity,Estates Utilities,EDF Energy,98466274,453557.07,Electricity
BEIS,UKRI - ESRC,12/04/2019,Training Awards - Postgraduates,Skills and Methods,University of Edinburgh,98453988,452977.17,Training Awards - Postgraduates
BEIS,UKRI - MRC,01/04/2019,Grant - Special Contributions,IIB Uganda,London School of Hygiene & Tropical Medicine,98452827,452000,Grant - Special Contributions
BEIS,UKRI - ESRC,08/04/2019,Research Grant Expenditure,Society & Global Security,Nordforsk,98453867,450000.00,Research Grant Expenditure
BEIS,UKRI - MRC,09/04/2019,Research Grant Expenditure,GCRF RCUK FUND,London School of Hygiene & Tropical Medicine,98430457,449542.11,Research Grant Expenditure
BEIS,UKRI - Research England,16/04/2019,Research Grant Expenditure,RE- Quality Research (QR),Birkbeck College,98459599,448386.71,Research Grant Expenditure
BEIS,UKRI - MRC,15/04/2019,Grant - Special Contributions,MCMB P&C,University of Edinburgh,98460269,447196.09,Grant - Special Contributions
BEIS,UKRI - MRC,09/04/2019,Research Grant Expenditure,GCRF RCUK FUND,University of Durham,98430122,445133,Research Grant Expenditure
BEIS,UKRI - Innovate UK,26/04/2019,Resource grants,Manufacturing & Materials Catapult Delivery,HIGH VALUE MANUFACTURING CATAPULT CENTRE,31706,442635.56,Resource grants
BEIS,UKRI - BBSRC,10/04/2019,Training Awards - Postgraduates,FG - Accounts & Business Planning,The University of Manchester,98453013,441402.00,Training Awards - Postgraduates
BEIS,UKRI - EPSRC,24/04/2019,Training Awards - Postgraduates,Non Theme Specific,The University of Manchester GRANT,98455859,439681.86,Training Awards - Postgraduates
BEIS,UKRI - Central,01/04/2019,Recharges From Councils - General,UKRI - Human Resources Support,Technology Strategy Board (Innovate UK),98451855,437989.00,Recharges From Councils - General
BEIS,UKRI - STFC,08/04/2019,Projects CIP,Infrastructure - DL,Logicalis Uk Ltd,98457587,437613.84,Projects CIP
BEIS,UKRI - Research England,16/04/2019,Research Grant Expenditure,RE- GCRF,King's College London,98459409,434290.58,Research Grant Expenditure
BEIS,UKRI - Central,02/04/2019,Recharges From Councils - General,UKRI - Financial Accounting,UKRI - Medical Research Council,98451657,431169.00,Recharges From Councils - General
BEIS,UKRI - EPSRC,16/04/2019,Other services,PRACE,University of Edinburgh,98380222,428141.69,Other services
BEIS,UKRI - Innovate UK,11/04/2019,Resource grants,Aerospace,BAE Systems (Operations) Ltd,30401,425045.22,Resource grants
BEIS,UKRI - Research England,16/04/2019,Research Grant Expenditure,RE- GCRF,The University of Manchester,98459426,423047.19,Research Grant Expenditure
BEIS,UKRI - BBSRC,24/04/2019,Research Institutes - Capital Grants: Major Works,Estates - Projects,EMBL (European Molecular Biology Laboratory),98468768,422205.00,Research Institutes - Capital Grants: Major Works
BEIS,UKRI - BBSRC,17/04/2019,Research Institutes - Competitive Strategic Grant,Rothamsted Research,Rothamsted Research Ltd,98460308,418067.65,Research Institutes - Competitive Strategic Grant
BEIS,UKRI - MRC,10/04/2019,Research Grant Expenditure,GCRF RCUK FUND,Moorfields Eye Hospital NHS Foundation Trust,98430127,413544,Research Grant Expenditure
BEIS,UKRI - ESRC,12/04/2019,Training Awards - Postgraduates,Skills and Methods,King's College London GRANT,98453994,413412.88,Training Awards - Postgraduates
BEIS,UKRI - Research England,16/04/2019,Research Grant Expenditure,RE- Quality Research (QR),Open University,98459325,411875.04,Research Grant Expenditure
BEIS,UKRI - MRC,09/04/2019,Research Grant Expenditure,GCRF RCUK FUND,Liverpool School of Tropical Medicine,98430126,410453,Research Grant Expenditure
BEIS,UKRI - STFC,18/04/2019,Projects CIP,ESS,RI Research Instruments GmbH,98466948,410129.00,Projects CIP
BEIS,UKRI - EPSRC,24/04/2019,Other Programme Costs,ETI Energy,Energy Technologies Institute LLP,98462336,407200.00,Other Programme Costs
BEIS,UKRI - NERC,23/04/2019,Training Awards - Postgraduates,NERC - SO Post Graduate Training DTP's,University of Edinburgh,98460552,406788.25,Training Awards - Postgraduates
BEIS,UKRI - STFC,05/04/2019,International Subscriptions - CGPS,International Subscriptions,European Synchrotron Radiation Facility (ESRF),98442556,406734.53,International Subscriptions - CGPS
BEIS,UKRI - EPSRC,24/04/2019,Training Awards - Postgraduates,Non Theme Specific,University of Glasgow GRANT,98455836,406381.19,Training Awards - Postgraduates
BEIS,UKRI - MRC,01/04/2019,Grant - Special Contributions,MCMB P&C,Wellcome Trust,98452869,397939.51,Grant - Special Contributions
BEIS,UKRI - STFC,03/04/2019,Legal & Professional Services,National Satellite Test Facility,HM Revenue & Customs,98452527,397500.00,Legal & Professional Services
BEIS,UKRI - ESRC,12/04/2019,Training Awards - Postgraduates,Skills and Methods,University of Sheffield GRANT,98453985,397375.04,Training Awards - Postgraduates
BEIS,UKRI - BBSRC,17/04/2019,Research Institutes - Competitive Strategic Grant,Babraham Institute,Babraham Institute,98459941,395666.75,Research Institutes - Competitive Strategic Grant
BEIS,UKRI - Research England,16/04/2019,Research Grant Expenditure,RE- Quality Research (QR),University of Essex,98459627,393151.68,Research Grant Expenditure
BEIS,UKRI - EPSRC,24/04/2019,Training Awards - Postgraduates,Non Theme Specific,University of Edinburgh,98455834,389563.73,Training Awards - Postgraduates
BEIS,UKRI - BBSRC,24/04/2019,International Subscriptions,CE - IRU,The International Human Frontier Science Programme Organization - HFSP,98466377,388333.00,International Subscriptions
BEIS,UKRI - MRC,16/04/2019,Rates,Regional Estates and Facilities LMB,Cambridge City Council,98438603,388080,Rates
BEIS,UKRI - ESRC,12/04/2019,Training Awards - Postgraduates,Skills and Methods,University of Southampton GRANT,98453984,386053.73,Training Awards - Postgraduates
BEIS,UKRI - EPSRC,24/04/2019,Training Awards - Postgraduates,Non Theme Specific,University of Birmingham GRANT,98455862,383725.33,Training Awards - Postgraduates
BEIS,UKRI - Research England,16/04/2019,Research Grant Expenditure,RE- Quality Research (QR),University of Plymouth,98459329,380229.94,Research Grant Expenditure
BEIS,UKRI - Innovate UK,26/04/2019,Resource grants,APC,University of Bath,31516,379026.18,Resource grants
BEIS,UKRI - Research England,16/04/2019,Research Grant Expenditure,RE - Connecting Capability Fund,University of the West of England,98459687,378980.44,Research Grant Expenditure
BEIS,UKRI - Innovate UK,01/04/2019,External Programmes,Audience of the Future,ARTS AND HUMANITIES RESEARCH COUNCIL,29002,375000.00,External Programmes
BEIS,UKRI - Innovate UK,26/04/2019,Resource grants,CG&I General,Aquasium Technology Limited,31654,373616.79,Resource grants
BEIS,UKRI - Innovate UK,01/04/2019,Co-funding Expense,Next Generation Services,ESRC,29015,371903.69,Co-funding Expense
BEIS,UKRI - ESRC,12/04/2019,Training Awards - Postgraduates,Skills and Methods,University of Oxford GRANT,98453970,369714.74,Training Awards - Postgraduates
BEIS,UKRI - EPSRC,24/04/2019,Training Awards - Postgraduates,Non Theme Specific,University of Sheffield GRANT,98455843,368931.73,Training Awards - Postgraduates
BEIS,UKRI - EPSRC,24/04/2019,Training Awards - Postgraduates,Non Theme Specific,University of Nottingham GRANT,98455840,368794.13,Training Awards - Postgraduates
BEIS,UKRI - MRC,09/04/2019,Research Grant Expenditure,NMHB Other,University of Oxford,98429737,364649.49,Research Grant Expenditure
BEIS,UKRI - ESRC,12/04/2019,Training Awards - Postgraduates,Skills and Methods,University of Bristol GRANT,98453974,362920.75,Training Awards - Postgraduates
BEIS,UKRI - Research England,16/04/2019,Research Grant Expenditure,RE- Quality Research (QR),University of Hull,98459637,359604.13,Research Grant Expenditure
BEIS,UKRI - EPSRC,24/04/2019,Training Awards - Postgraduates,Non Theme Specific,University of Cambridge,98456015,358774.20,Training Awards - Postgraduates
BEIS,UKRI - NERC,23/04/2019,Training Awards - Postgraduates,NERC - SO Post Graduate Training DTP's,Imperial College London,98460548,356933.12,Training Awards - Postgraduates
BEIS,UKRI - STFC,09/04/2019,Projects CIP,Infrastructure - DI,Unspecified,98458398,354000.00,Projects CIP
BEIS,UKRI - BBSRC,17/04/2019,Research Institutes - Competitive Strategic Grant,Babraham Institute,Babraham Institute,98459941,352459.91,Research Institutes - Competitive Strategic Grant
BEIS,UKRI - ESRC,12/04/2019,Training Awards - Postgraduates,Skills and Methods,University of Sheffield GRANT,98453979,349548.00,Training Awards - Postgraduates
BEIS,UKRI - Research England,16/04/2019,Research Grant Expenditure,RE- GCRF,University of Nottingham,98459432,348253.42,Research Grant Expenditure
BEIS,UKRI - EPSRC,24/04/2019,Training Awards - Postgraduates,Non Theme Specific,University of Southampton GRANT,98456020,346449.20,Training Awards - Postgraduates
BEIS,UKRI - ESRC,12/04/2019,Training Awards - Postgraduates,Skills and Methods,Cardiff University GRANT,98453993,345712.66,Training Awards - Postgraduates
BEIS,UKRI - MRC,09/04/2019,Research Grant Expenditure,GCRF RCUK FUND,University of York (Research Awards,98430106,344816.22,Research Grant Expenditure
BEIS,UKRI - MRC,09/04/2019,Research Grant Expenditure,GCRF RCUK FUND,The Francis Crick Institute,98430120,344563,Research Grant Expenditure
BEIS,UKRI - Innovate UK,26/04/2019,Resource grants,CHALLENGE - Robotics,BARRNON LTD,31571,344369.48,Resource grants
BEIS,UKRI - Innovate UK,01/04/2019,Support Contracts-KTP,Resp - Smart,Queen's University Belfast,30077,344009.74,Support Contracts-KTP
BEIS,UKRI - Research England,16/04/2019,Research Grant Expenditure,RE- HEIF,University of Birmingham,98459473,342125.00,Research Grant Expenditure
BEIS,UKRI - Research England,16/04/2019,Research Grant Expenditure,RE- HEIF,University of Bristol,98459478,342125.00,Research Grant Expenditure
BEIS,UKRI - Research England,16/04/2019,Research Grant Expenditure,RE- HEIF,University of Cambridge,98459481,342125.00,Research Grant Expenditure
BEIS,UKRI - Research England,16/04/2019,Research Grant Expenditure,RE- HEIF,Imperial College Science Tech & Med,98459505,342125.00,Research Grant Expenditure
BEIS,UKRI - Research England,16/04/2019,Research Grant Expenditure,RE- HEIF,King's College London,98459509,342125.00,Research Grant Expenditure
BEIS,UKRI - Research England,16/04/2019,Research Grant Expenditure,RE- HEIF,University of Leeds,98459512,342125.00,Research Grant Expenditure
BEIS,UKRI - Research England,16/04/2019,Research Grant Expenditure,RE- HEIF,University College London,98459520,342125.00,Research Grant Expenditure
BEIS,UKRI - Research England,16/04/2019,Research Grant Expenditure,RE- HEIF,The University of Manchester,98459527,342125.00,Research Grant Expenditure
BEIS,UKRI - Research England,16/04/2019,Research Grant Expenditure,RE- HEIF,University of Oxford,98459537,342125.00,Research Grant Expenditure
BEIS,UKRI - Research England,16/04/2019,Research Grant Expenditure,RE- HEIF,University of Sheffield,98459551,342125.00,Research Grant Expenditure
BEIS,UKRI - Research England,16/04/2019,Research Grant Expenditure,RE- HEIF,University of Southampton,98459554,342125.00,Research Grant Expenditure
BEIS,UKRI - Central,01/04/2019,Recharges From Councils - General,UKRI - Governance,Technology Strategy Board (Innovate UK),98451855,341037.00,Recharges From Councils - General
BEIS,UKRI - BBSRC,17/04/2019,Research Institutes - Competitive Strategic Grant,IFR,Quadram Institute Bioscience,98459931,338998.62,Research Institutes - Competitive Strategic Grant
BEIS,UKRI - NERC,23/04/2019,Training Awards - Postgraduates,NERC - SO Post Graduate Training DTP's,University of Southampton GRANT,98460550,338968.12,Training Awards - Postgraduates
BEIS,UKRI - ESRC,12/04/2019,Training Awards - Postgraduates,Skills and Methods,University of Cambridge,98453990,337138.08,Training Awards - Postgraduates
BEIS,UKRI - Research England,16/04/2019,Research Grant Expenditure,RE- HEIF,University of Nottingham,98459533,335407.60,Research Grant Expenditure
BEIS,UKRI - Research England,16/04/2019,Research Grant Expenditure,RE- HEIF,University of Liverpool,98459516,334499.60,Research Grant Expenditure
BEIS,UKRI - Research England,16/04/2019,Research Grant Expenditure,RE- HEIF,London School of Economics and Political Science,98459523,333192.20,Research Grant Expenditure
BEIS,UKRI - NERC,23/04/2019,Training Awards - Postgraduates,NERC - SO Post Graduate Training DTP's,University of Leeds,98460551,332554.15,Training Awards - Postgraduates
BEIS,UKRI - Research England,16/04/2019,Research Grant Expenditure,RE- HEIF,University of Warwick,98459563,328942.80,Research Grant Expenditure
BEIS,UKRI - Research England,16/04/2019,Research Grant Expenditure,RE- HEIF,London Business School,98459521,327234.60,Research Grant Expenditure
BEIS,UKRI - NERC,23/04/2019,Training Awards - Postgraduates,NERC - SO Post Graduate Training DTP's,University of Cambridge,98460556,327058.12,Training Awards - Postgraduates
BEIS,UKRI - Research England,16/04/2019,Research Grant Expenditure,RE- GCRF,University of Bristol,98459375,326963.09,Research Grant Expenditure
BEIS,UKRI - Research England,16/04/2019,Research Grant Expenditure,RE- HEIF,Newcastle University,98459530,325792.30,Research Grant Expenditure
BEIS,UKRI - EPSRC,24/04/2019,Training Awards - Postgraduates,Non Theme Specific,University of Warwick,98455870,324255.65,Training Awards - Postgraduates
BEIS,UKRI - Research England,16/04/2019,Research Grant Expenditure,RE- HEIF,University of York,98459570,323361.10,Research Grant Expenditure
BEIS,UKRI - Innovate UK,26/04/2019,Resource grants,Advanced Therapies,University of Oxford,31732,322841.82,Resource grants
BEIS,UKRI - MRC,09/04/2019,Research Grant Expenditure,Stratified Medicine,University College London GRANT,98430211,322029.01,Research Grant Expenditure
BEIS,UKRI - ESRC,12/04/2019,Training Awards - Postgraduates,Skills and Methods,University of Oxford GRANT,98453986,321386.33,Training Awards - Postgraduates
BEIS,UKRI - Research England,16/04/2019,Research Grant Expenditure,RE- GCRF,University of Southampton,98459452,321198.20,Research Grant Expenditure
BEIS,UKRI - ESRC,12/04/2019,Training Awards - Postgraduates,Skills and Methods,University of Warwick,98453989,320445.58,Training Awards - Postgraduates
BEIS,UKRI - Research England,16/04/2019,Research Grant Expenditure,RE- HEIF,University of Leicester,98459514,320228.40,Research Grant Expenditure
BEIS,UKRI - Research England,16/04/2019,Research Grant Expenditure,RE- HEIF,Anglia Ruskin University,98459468,320099.60,Research Grant Expenditure
BEIS,UKRI - Research England,16/04/2019,Research Grant Expenditure,RE- HEIF,Cranfield University,98459488,320085.20,Research Grant Expenditure
BEIS,UKRI - NERC,24/04/2019,Co-Funder Grants Liability - NERC,NERC - Balance Sheet Control,Geological Survey of Denmark & Greenland - GEUS,98467386,319767.72,Co-Funder Grants Liability - NERC
BEIS,UKRI - Research England,16/04/2019,Research Grant Expenditure,RE- Quality Research (QR),Keele University,98459293,319291.04,Research Grant Expenditure
BEIS,UKRI - Research England,16/04/2019,Research Grant Expenditure,RE- HEIF,Queen Mary University of London,98459541,319255.60,Research Grant Expenditure
BEIS,UKRI - STFC,08/04/2019,Projects CIP,Rosalind Franklin Institute,Mace Limited,98458067,319212.46,Projects CIP
BEIS,UKRI - BBSRC,24/04/2019,Research Institutes - Capital Grants: Major Works,Estates - Projects,EMBL (European Molecular Biology Laboratory),98468761,319203.42,Research Institutes - Capital Grants: Major Works
BEIS,UKRI - MRC,18/04/2019,Rates,NonCapital Building Maintenanc LMS,London Borough Of Hammersmith & Fulham,98466974,318984.47,Rates
BEIS,UKRI - EPSRC,24/04/2019,Training Awards - Postgraduates,Non Theme Specific,ICSTM,98455985,318952.91,Training Awards - Postgraduates
BEIS,UKRI - Research England,16/04/2019,Research Grant Expenditure,RE- HEIF,University of Surrey,98459559,318107.50,Research Grant Expenditure
BEIS,UKRI - Research England,16/04/2019,Research Grant Expenditure,RE- HEIF,Loughborough University,98459526,317713.70,Research Grant Expenditure
BEIS,UKRI - Research England,16/04/2019,Research Grant Expenditure,RE- Quality Research (QR),Northumbria University,98459321,317480.22,Research Grant Expenditure
BEIS,UKRI - Research England,16/04/2019,Research Grant Expenditure,RE- HEIF,Lancaster University,98459511,315829.80,Research Grant Expenditure
BEIS,UKRI - ESRC,12/04/2019,Training Awards - Postgraduates,Skills and Methods,University of Essex GRANT,98453992,312097.45,Training Awards - Postgraduates
BEIS,UKRI - ESRC,12/04/2019,Training Awards - Postgraduates,Skills and Methods,London School of Economics and Political Science GRANT,98453987,311837.58,Training Awards - Postgraduates
BEIS,UKRI - Innovate UK,05/04/2019,Resource grants,Aerospace,NCC OPERATIONS LTD,29184,311307.18,Resource grants
BEIS,UKRI - Research England,16/04/2019,Research Grant Expenditure,RE- Quality Research (QR),Liverpool School of Tropical Medicine,98459306,308093.01,Research Grant Expenditure
BEIS,UKRI - Innovate UK,11/04/2019,Resource grants,Aerospace,UNIVERSITY OF SHEFFIELD � �,30398,307912.51,Resource grants
BEIS,UKRI - MRC,25/04/2019,Maintenance of Research & Scientific Equipment,Laboratory Management LMB,GE Healthcare UK Ltd,98465831,306879.6,Maintenance of Research & Scientific Equipment
BEIS,UKRI - BBSRC,26/04/2019,Research Grant Expenditure,Rothamsted Research,Rothamsted Research Ltd,98471049,306660.94,Research Grant Expenditure
BEIS,UKRI - MRC,09/04/2019,Research Grant Expenditure,E-Health,The University of Manchester,98430466,306218.47,Research Grant Expenditure
BEIS,UKRI - NERC,23/04/2019,Training Awards - Postgraduates,NERC - SO Post Graduate Training DTP's,University of Sheffield,98460554,305254.25,Training Awards - Postgraduates
BEIS,UKRI - NERC,01/04/2019,Projects CIP,NERC - BAS New Polar Research Vessel / AP,Cammell Laird Shiprepairers & Shipbuilders Ltd,98451913,304217.39,Projects CIP
BEIS,UKRI - Research England,16/04/2019,Capital Grants & Equipment to HEIs,RE - UK RPIF,Imperial College Science Tech & Med,98459671,303030.30,Capital Grants & Equipment to HEIs
BEIS,UKRI - Research England,16/04/2019,Research Grant Expenditure,RE- Quality Research (QR),Manchester Metropolitan University,98459316,302966.94,Research Grant Expenditure
BEIS,UKRI - MRC,09/04/2019,Research Grant Expenditure,Translational Growth Other,University College London GRANT,98429906,301600.44,Research Grant Expenditure
BEIS,UKRI - MRC,09/04/2019,Research Grant Expenditure,Translational Growth Other,King's College London,98430100,300804.68,Research Grant Expenditure
BEIS,UKRI - MRC,03/04/2019,Maintenance of Research & Scientific Equipment,NMR LMB,Bruker UK Ltd,98432231,298306.8,Maintenance of Research & Scientific Equipment
BEIS,UKRI - Innovate UK,26/04/2019,Resource grants,AIDE,CISCO INTERNATIONAL LTD,31492,297382.19,Resource grants
BEIS,UKRI - Research England,16/04/2019,Research Grant Expenditure,"RE - Museums, Galleries and Collections",University of Oxford,98459586,296666.67,Research Grant Expenditure
BEIS,UKRI - MRC,08/04/2019,Grant - Special Contributions,Biobank,UK Biobank,98457411,296500,Grant - Special Contributions
BEIS,UKRI - Innovate UK,05/04/2019,Resource grants,Transport,NISSAN MOTOR MANUFACTURING UK LTD,29151,295758.12,Resource grants
BEIS,UKRI - MRC,09/04/2019,Research Grant Expenditure,Stratified Medicine,Queen's University Belfast GRANT,98426594,295513.07,Research Grant Expenditure
BEIS,UKRI - Research England,16/04/2019,Research Grant Expenditure,RE- GCRF,University of Leeds,98459412,295316.68,Research Grant Expenditure
BEIS,UKRI - Research England,16/04/2019,Capital Grants & Equipment to HEIs,RE - UK RPIF,King's College London,98459675,295297.00,Capital Grants & Equipment to HEIs
BEIS,UKRI - MRC,01/04/2019,Grant - Special Contributions,Translation P&C,Liverpool School of Tropical Medicine,98452717,295000,Grant - Special Contributions
BEIS,UKRI - MRC,25/04/2019,Maintenance of Research & Scientific Equipment,Laboratory Management LMB,GE Healthcare UK Ltd,98465831,293119.2,Maintenance of Research & Scientific Equipment
BEIS,UKRI - MRC,25/04/2019,Maintenance of Research & Scientific Equipment,Laboratory Management LMB,GE Healthcare UK Ltd,98468624,293119.2,Maintenance of Research & Scientific Equipment
BEIS,UKRI - Research England,16/04/2019,Research Grant Expenditure,RE- HEIF,University of Hertfordshire,98459502,291485.85,Research Grant Expenditure
BEIS,UKRI - BBSRC,24/04/2019,Research Institutes - Capital Grants: Major Works,Estates - Projects,EMBL (European Molecular Biology Laboratory),98468766,290488.00,Research Institutes - Capital Grants: Major Works
BEIS,UKRI - Research England,16/04/2019,Research Grant Expenditure,RE- GCRF,University of Sheffield,98459449,288028.44,Research Grant Expenditure
BEIS,UKRI - Research England,16/04/2019,Research Grant Expenditure,RE- Quality Research (QR),Aston University,98459595,286758.08,Research Grant Expenditure
BEIS,UKRI - EPSRC,24/04/2019,Training Awards - Postgraduates,Non Theme Specific,University of Bath,98455861,284964.79,Training Awards - Postgraduates
BEIS,UKRI - ESRC,12/04/2019,Training Awards - Postgraduates,Skills and Methods,University of Durham GRANT,98453983,284540.36,Training Awards - Postgraduates
BEIS,UKRI - MRC,09/04/2019,Research Grant Expenditure,IIB Other,Liverpool School of Tropical Medicine,98430337,283930.44,Research Grant Expenditure
BEIS,UKRI - EPSRC,24/04/2019,Training Awards - Postgraduates,Non Theme Specific,University of Sheffield GRANT,98456012,282030.62,Training Awards - Postgraduates
BEIS,UKRI - STFC,03/04/2019,Other Programme Costs,LSN-XFEL International Subscription,Diamond Light Source Ltd,98452526,280000.00,Other Programme Costs
BEIS,UKRI - ESRC,12/04/2019,Training Awards - Postgraduates,Skills and Methods,University College London GRANT,98453977,279535.00,Training Awards - Postgraduates
BEIS,UKRI - EPSRC,24/04/2019,Training Awards - Postgraduates,Non Theme Specific,University of Leeds GRANT,98455838,277542.13,Training Awards - Postgraduates
BEIS,UKRI - Research England,16/04/2019,Research Grant Expenditure,RE- Quality Research (QR),Liverpool John Moores University,98459305,277302.57,Research Grant Expenditure
BEIS,UKRI - EPSRC,24/04/2019,Training Awards - Postgraduates,Non Theme Specific,The University of Manchester GRANT,98456002,277199.46,Training Awards - Postgraduates
BEIS,UKRI - EPSRC,24/04/2019,Training Awards - Postgraduates,Non Theme Specific,The University of Manchester GRANT,98456002,277199.46,Training Awards - Postgraduates
BEIS,UKRI - EPSRC,24/04/2019,Training Awards - Postgraduates,Non Theme Specific,The University of Manchester GRANT,98456002,277199.46,Training Awards - Postgraduates
BEIS,UKRI - BBSRC,17/04/2019,Research Institutes - Competitive Strategic Grant,EBRC (Roslin),University of Edinburgh,98462333,277179.92,Research Institutes - Competitive Strategic Grant
BEIS,UKRI - MRC,02/04/2019,Research & Scientific Equipment,Laboratory Management LMB,Carl Zeiss Ltd (Zeiss),98452541,273920.59,Research & Scientific Equipment
BEIS,UKRI - BBSRC,17/04/2019,Research Institutes - Competitive Strategic Grant,IFR,Quadram Institute Bioscience,98459931,271380.82,Research Institutes - Competitive Strategic Grant
BEIS,UKRI - EPSRC,24/04/2019,Training Awards - Postgraduates,Non Theme Specific,University of York GRANT,98455871,271177.86,Training Awards - Postgraduates
BEIS,UKRI - Research England,16/04/2019,Research Grant Expenditure,RE- Quality Research (QR),Goldsmiths College University of London,98459631,270844.21,Research Grant Expenditure
BEIS,UKRI - MRC,09/04/2019,Research Grant Expenditure,Translational Growth Other,University College London GRANT,98429645,270611.32,Research Grant Expenditure
BEIS,UKRI - Research England,16/04/2019,Research Grant Expenditure,RE- Quality Research (QR),University of Portsmouth,98459330,269621.64,Research Grant Expenditure
BEIS,UKRI - Central,04/04/2019,Computer Hardware,UKRI - Digital Data and Technology Project Costs,Logicalis Uk Ltd,98456506,267871.32,Computer Hardware
BEIS,UKRI - Innovate UK,05/04/2019,Resource grants,Transport,NISSAN MOTOR MANUFACTURING UK LTD,29144,267551.78,Resource grants
BEIS,UKRI - MRC,09/04/2019,Research Grant Expenditure,Strategy Grants,London School of Hygiene & Tropical Medicine,98429830,266657.02,Research Grant Expenditure
BEIS,UKRI - MRC,09/04/2019,Research Grant Expenditure,IIB Other,London School of Hygiene & Tropical Medicine,98430427,265670.87,Research Grant Expenditure
BEIS,UKRI - MRC,09/04/2019,Research Grant Expenditure,IIB Other,London School of Hygiene & Tropical Medicine,98430427,265670.87,Research Grant Expenditure
BEIS,UKRI - MRC,09/04/2019,Research Grant Expenditure,IIB Other,London School of Hygiene & Tropical Medicine,98430427,265670.87,Research Grant Expenditure
BEIS,UKRI - ESRC,02/04/2019,Other Programme Costs,Administrative Data Research Partnership,The Scottish Government,98452470,265200.00,Other Programme Costs
BEIS,UKRI - ESRC,02/04/2019,Other Programme Costs,Administrative Data Research Partnership,The Scottish Government,98452470,265200.00,Other Programme Costs
BEIS,UKRI - Research England,16/04/2019,Research Grant Expenditure,RE- Quality Research (QR),"SOAS, University of London",98459326,264290.70,Research Grant Expenditure
BEIS,UKRI - Research England,16/04/2019,Research Grant Expenditure,RE- HEIF,University of Exeter,98459496,263464.43,Research Grant Expenditure
BEIS,UKRI - NERC,23/04/2019,Training Awards - Postgraduates,NERC - SO Post Graduate Training DTP's,The University of Manchester,98460547,263088.00,Training Awards - Postgraduates
BEIS,UKRI - NERC,23/04/2019,Training Awards - Postgraduates,NERC - SO Post Graduate Training DTP's,University of Durham,98460549,263088.00,Training Awards - Postgraduates
BEIS,UKRI - NERC,23/04/2019,Training Awards - Postgraduates,NERC - SO Post Graduate Training DTP's,University of Birmingham GRANT,98460553,263088.00,Training Awards - Postgraduates
BEIS,UKRI - NERC,23/04/2019,Training Awards - Postgraduates,NERC - SO Post Graduate Training DTP's,University of Reading,98460555,263088.00,Training Awards - Postgraduates
BEIS,UKRI - NERC,23/04/2019,Training Awards - Postgraduates,NERC - SO Post Graduate Training DTP's,University of East Anglia,98460558,263088.00,Training Awards - Postgraduates
BEIS,UKRI - NERC,23/04/2019,Training Awards - Postgraduates,NERC - SO Post Graduate Training DTP's,Lancaster University,98460545,261646.50,Training Awards - Postgraduates
BEIS,UKRI - Research England,16/04/2019,Research Grant Expenditure,RE- GCRF,University of Warwick,98459460,260446.85,Research Grant Expenditure
BEIS,UKRI - Central,15/04/2019,External Audit Fees,UKRI - Financial Accounting,National Audit Office,98463475,260000.00,External Audit Fees
BEIS,UKRI - Research England,16/04/2019,Research Grant Expenditure,RE- HEIF,University of Wolverhampton,98459568,259471.88,Research Grant Expenditure
BEIS,UKRI - Research England,16/04/2019,Research Grant Expenditure,RE- GCRF,University of Birmingham,98459369,257374.71,Research Grant Expenditure
BEIS,UKRI - STFC,29/04/2019,Projects CIP,National Satellite Test Facility,Mace Limited,98462322,256319.96,Projects CIP
BEIS,UKRI - EPSRC,24/04/2019,Training Awards - Postgraduates,Non Theme Specific,University College London GRANT,98455973,255323.90,Training Awards - Postgraduates
BEIS,UKRI - Central,09/04/2019,Internal Audit,UKRI - Governance,HM Treasury Group,98459012,255000.00,Internal Audit
BEIS,UKRI - Research England,16/04/2019,Research Grant Expenditure,RE- Quality Research (QR),University of the West of England,98459639,253327.53,Research Grant Expenditure
BEIS,UKRI - EPSRC,24/04/2019,Training Awards - Postgraduates,Non Theme Specific,University of Nottingham GRANT,98456010,253154.53,Training Awards - Postgraduates
BEIS,UKRI - MRC,09/04/2019,Research Grant Expenditure,Translational Growth Other,Liverpool School of Tropical Medicine,98430359,252998.12,Research Grant Expenditure
BEIS,UKRI - EPSRC,24/04/2019,Training Awards - Postgraduates,Healthcare Healthcare,University College London GRANT,98454638,252319.69,Training Awards - Postgraduates
BEIS,UKRI - EPSRC,24/04/2019,Training Awards - Postgraduates,Non Theme Specific,Loughborough University GRANT,98455854,251957.86,Training Awards - Postgraduates
BEIS,UKRI - STFC,26/04/2019,Electricity,Estates Utilities,EDF Energy,98466274,251580.77,Electricity
BEIS,UKRI - ESRC,12/04/2019,Training Awards - Postgraduates,Skills and Methods,University of Durham GRANT,98453967,251256.00,Training Awards - Postgraduates
BEIS,UKRI - BBSRC,10/04/2019,Training Awards - Postgraduates,FG - Accounts & Business Planning,University of Newcastle Upon Tyne,98453011,251244.25,Training Awards - Postgraduates
BEIS,UKRI - NERC,16/04/2019,Asset Clearing,NERC - CEH IT,Unspecified,98464028,250522.13,Asset Clearing
BEIS,UKRI - Research England,16/04/2019,Research Grant Expenditure,RE- Quality Research (QR),University of Huddersfield,98459636,249921.35,Research Grant Expenditure
BEIS,UKRI - Innovate UK,11/04/2019,Resource grants,Aerospace,NCC OPERATIONS LTD,30404,248585.05,Resource grants
BEIS,UKRI - EPSRC,24/04/2019,Training Awards - Postgraduates,Non Theme Specific,University of Bristol GRANT,98456004,248417.47,Training Awards - Postgraduates
BEIS,UKRI - Research England,16/04/2019,Research Grant Expenditure,RE - NCUB,National Centre for Universities and Business (NCUB),98463208,248205.00,Research Grant Expenditure
BEIS,UKRI - Research England,16/04/2019,Research Grant Expenditure,RE- HEIF,University of the Arts London,98459469,247655.25,Research Grant Expenditure
BEIS,UKRI - MRC,09/04/2019,Research Grant Expenditure,Strategy Grants,University College London GRANT,98426561,247043.87,Research Grant Expenditure
BEIS,UKRI - Innovate UK,17/04/2019,Resource grants,Aerospace,NISSAN MOTOR MANUFACTURING UK LTD,31170,246004.05,Resource grants
BEIS,UKRI - STFC,03/04/2019,Projects CIP,Extreme Photonics Application Centre (EPAC),Mace Limited,98454904,245315.21,Projects CIP
BEIS,UKRI - MRC,09/04/2019,Research Grant Expenditure,Stratified Medicine,University of Oxford,98426603,243977.83,Research Grant Expenditure
BEIS,UKRI - MRC,10/04/2019,Research Grant Expenditure,Other Projects,McMaster University,98429649,238002.19,Research Grant Expenditure
BEIS,UKRI - Innovate UK,17/04/2019,Resource grants,Transport,CNG FUELS LIMITED,31037,237794.58,Resource grants
BEIS,UKRI - MRC,04/04/2019,Asset Clearing,Central Fixed Assets LMB,Beckman Coulter UK Ltd,98412887,236708.95,Asset Clearing
BEIS,UKRI - MRC,04/04/2019,Asset Clearing,Central Fixed Assets LMB,Beckman Coulter UK Ltd,98456513,236708.95,Asset Clearing
BEIS,UKRI - EPSRC,24/04/2019,Training Awards - Postgraduates,NC Physical Sciences,University of Bristol GRANT,98455705,236306.54,Training Awards - Postgraduates
BEIS,UKRI - Research England,16/04/2019,Research Grant Expenditure,RE- HEIF,University of East Anglia,98459492,235076.40,Research Grant Expenditure
BEIS,UKRI - Research England,16/04/2019,Research Grant Expenditure,RE- Quality Research (QR),University of Brighton,98459606,235052.57,Research Grant Expenditure
BEIS,UKRI - Research England,16/04/2019,Research Grant Expenditure,RE- Quality Research (QR),Oxford Brookes University,98459328,235039.83,Research Grant Expenditure
BEIS,UKRI - MRC,09/04/2019,Research Grant Expenditure,IIB Other,University of Glasgow GRANT,98430340,234754.52,Research Grant Expenditure
BEIS,UKRI - NERC,08/04/2019,Asset Clearing,NERC - BAS Air Unit,ASHE AIRCRAFT ENTERPRISES LTD o/a ROCKY MOUNTAIN AIRCRAFT,98451829,234005.55,Asset Clearing
BEIS,UKRI - EPSRC,24/04/2019,Training Awards - Postgraduates,Non Theme Specific,University of Oxford GRANT,98455949,232735.45,Training Awards - Postgraduates
BEIS,UKRI - MRC,09/04/2019,Research Grant Expenditure,Stratified Medicine,Imperial College (Research Awards),98430206,232721.48,Research Grant Expenditure
BEIS,UKRI - BBSRC,17/04/2019,Research Institutes - Competitive Strategic Grant,Pirbright,The Pirbright Institute,98458983,232083.33,Research Institutes - Competitive Strategic Grant
BEIS,UKRI - EPSRC,24/04/2019,Training Awards - Postgraduates,Energy Energy,University of Liverpool GRANT,98455710,230860.83,Training Awards - Postgraduates
BEIS,UKRI - Innovate UK,05/04/2019,Resource grants,Non Core - Agritech Centres,CIELivestock Ltd,29663,230783.00,Resource grants
BEIS,UKRI - Central,09/04/2019,Computer Software Licences,UKRI - EU Underwrite,Technology Strategy Board (Innovate UK),98458505,230454.00,Computer Software Licences
BEIS,UKRI - Research England,16/04/2019,Research Grant Expenditure,RE- HEIF,University of Sussex,98459560,230000.85,Research Grant Expenditure
BEIS,UKRI - MRC,09/04/2019,Research Grant Expenditure,IIB Other,University of Bristol GRANT,98430341,229713.95,Research Grant Expenditure
BEIS,UKRI - MRC,09/04/2019,Research Grant Expenditure,Translational Growth Other,Cardiff University (Research Awards,98430557,229186.17,Research Grant Expenditure
BEIS,UKRI - Research England,16/04/2019,Research Grant Expenditure,RE- HEIF,University of Durham,98459491,228586.58,Research Grant Expenditure
BEIS,UKRI - STFC,29/04/2019,Projects CIP,National Satellite Test Facility,Mace Limited,98461907,227901.27,Projects CIP
BEIS,UKRI - ESRC,12/04/2019,Training Awards - Postgraduates,Skills and Methods,University College London GRANT,98453964,227682.50,Training Awards - Postgraduates
BEIS,UKRI - NERC,29/04/2019,Other Bought In Services,NERC - BGS GeoAnalystics and Modelling - Project Owning,Rothamsted Research Ltd,98471426,226832.61,Other Bought In Services
BEIS,UKRI - Central,02/04/2019,Recharges From Councils - General,UKRI - Human Resources Support,UKRI - Medical Research Council,98451656,226564.00,Recharges From Councils - General
BEIS,UKRI - EPSRC,24/04/2019,Training Awards - Postgraduates,Energy Energy,The University of Manchester GRANT,98455711,225586.67,Training Awards - Postgraduates
BEIS,UKRI - EPSRC,24/04/2019,Training Awards - Postgraduates,Quantum Technology Programme,University College London GRANT,98455724,225118.58,Training Awards - Postgraduates
BEIS,UKRI - EPSRC,24/04/2019,Training Awards - Postgraduates,Non Theme Specific,University of Newcastle upon Tyne GRANT,98455855,224915.46,Training Awards - Postgraduates
BEIS,UKRI - Research England,16/04/2019,Research Grant Expenditure,RE- GCRF,Newcastle University,98459428,223195.05,Research Grant Expenditure
BEIS,UKRI - EPSRC,24/04/2019,Training Awards - Postgraduates,NC Engineering,Heriot-Watt University GRANT,98454688,222916.96,Training Awards - Postgraduates
BEIS,UKRI - Research England,16/04/2019,Research Grant Expenditure,RE- Quality Research (QR),Sheffield Hallam University,98459345,222108.12,Research Grant Expenditure
BEIS,UKRI - MRC,09/04/2019,Research Grant Expenditure,Translational Growth Other,University of Oxford,98430343,221911.25,Research Grant Expenditure
BEIS,UKRI - MRC,09/04/2019,Research Grant Expenditure,MCMB Human Cell Atlas - Strategic Priorities Fund,Wellcome Trust Sanger Institute,98430462,221900.52,Research Grant Expenditure
BEIS,UKRI - MRC,29/04/2019,Asset Clearing,Regional Estates and Facilities LMB,2bm Ltd,98471414,221622.07,Asset Clearing
BEIS,UKRI - EPSRC,24/04/2019,Training Awards - Postgraduates,Quantum Technology Programme,University of Bristol GRANT,98455875,220564.05,Training Awards - Postgraduates
BEIS,UKRI - MRC,25/04/2019,Grant - Special Contributions Capital,NMHB Prion,University College London,98469270,220000,Grant - Special Contributions Capital
BEIS,UKRI - EPSRC,24/04/2019,Training Awards - Postgraduates,NC Physical Sciences,University of Exeter GRANT,98455723,219988.75,Training Awards - Postgraduates
BEIS,UKRI - EPSRC,09/04/2019,Research Grant Expenditure,Healthcare Healthcare,UKRI - Medical Research Council,98455652,219204.97,Research Grant Expenditure
BEIS,UKRI - EPSRC,24/04/2019,Training Awards - Postgraduates,Healthcare Healthcare,King's College London,98454641,218051.86,Training Awards - Postgraduates
BEIS,UKRI - MRC,09/04/2019,Research Grant Expenditure,IIB Other,Imperial College (Research Awards),98430338,217821.58,Research Grant Expenditure
BEIS,UKRI - Innovate UK,05/04/2019,Resource grants,Medicines Manufacturing,VELINDRE NHS TRUST,29623,217790.34,Resource grants
BEIS,UKRI - MRC,09/04/2019,Research Grant Expenditure,Regenerative Medicine Platform Initiative,Imperial College (Research Awards),98430320,217280.99,Research Grant Expenditure
BEIS,UKRI - EPSRC,24/04/2019,Training Awards - Postgraduates,NC Engineering,University of Bristol GRANT,98454657,216904.06,Training Awards - Postgraduates
BEIS,UKRI - NERC,17/04/2019,Asset Clearing,Research Technical Services - Licenses & Maintenance,Unspecified,98465128,215166.32,Asset Clearing
BEIS,UKRI - MRC,09/04/2019,Research Grant Expenditure,Regenerative Medicine Platform Initiative,University of Cambridge,98430286,215061.76,Research Grant Expenditure
BEIS,UKRI - EPSRC,24/04/2019,Training Awards - Postgraduates,NC Physical Sciences,University of Durham GRANT,98455719,214974.93,Training Awards - Postgraduates
BEIS,UKRI - EPSRC,24/04/2019,Training Awards - Postgraduates,NC Physical Sciences,University of Oxford GRANT,98454692,214914.93,Training Awards - Postgraduates
BEIS,UKRI - EPSRC,24/04/2019,Training Awards - Postgraduates,Non Theme Specific,University of Strathclyde GRANT,98455867,214118.40,Training Awards - Postgraduates
BEIS,UKRI - EPSRC,24/04/2019,Training Awards - Postgraduates,NC Engineering,University of Bristol GRANT,98455720,213901.69,Training Awards - Postgraduates
BEIS,UKRI - Research England,16/04/2019,Research Grant Expenditure,RE- HEIF,Liverpool School of Tropical Medicine,98459519,213772.20,Research Grant Expenditure
BEIS,UKRI - MRC,09/04/2019,Research Grant Expenditure,Strategy Grants,University of Oxford,98430118,213174.64,Research Grant Expenditure
BEIS,UKRI - Research England,16/04/2019,Research Grant Expenditure,RE- Quality Research (QR),Middlesex University,98459317,212873.94,Research Grant Expenditure
BEIS,UKRI - EPSRC,24/04/2019,Training Awards - Postgraduates,NC Physical Sciences,University College London GRANT,98455715,212822.30,Training Awards - Postgraduates
BEIS,UKRI - Research England,16/04/2019,Research Grant Expenditure,RE- Quality Research (QR),Royal Veterinary College,98459342,212645.69,Research Grant Expenditure
BEIS,UKRI - MRC,09/04/2019,Research Grant Expenditure,MCMB Human Cell Atlas - Strategic Priorities Fund,University of Edinburgh,98430445,211844.9,Research Grant Expenditure
BEIS,UKRI - Research England,16/04/2019,Research Grant Expenditure,RE- HEIF,University of Essex,98459495,211337.48,Research Grant Expenditure
BEIS,UKRI - EPSRC,24/04/2019,Training Awards - Postgraduates,NC Engineering,University of Oxford GRANT,98454651,211235.39,Training Awards - Postgraduates
BEIS,UKRI - Innovate UK,26/04/2019,Resource grants,CHALLENGE - Energy Batteries,ILIKA TECHNOLOGIES LTD,31742,210966.48,Resource grants
BEIS,UKRI - EPSRC,24/04/2019,Training Awards - Postgraduates,NC Engineering,The University of Manchester GRANT,98455745,210409.87,Training Awards - Postgraduates
BEIS,UKRI - Research England,16/04/2019,Research Grant Expenditure,RE- Quality Research (QR),University of Westminster,98459640,209421.76,Research Grant Expenditure
BEIS,UKRI - EPSRC,24/04/2019,Training Awards - Postgraduates,GU Global Uncertainty,University of Oxford GRANT,98455909,209346.66,Training Awards - Postgraduates
BEIS,UKRI - EPSRC,24/04/2019,Training Awards - Postgraduates,NC Engineering,University of Cambridge,98454652,209255.74,Training Awards - Postgraduates
BEIS,UKRI - MRC,09/04/2019,Research Grant Expenditure,IIB Other,University of St Andrews GRANT,98430339,209009,Research Grant Expenditure
BEIS,UKRI - EPSRC,24/04/2019,Training Awards - Postgraduates,Manufacturing Manufacturing,University of Cambridge,98454683,208950.15,Training Awards - Postgraduates
BEIS,UKRI - EPSRC,24/04/2019,Training Awards - Postgraduates,NC Maths,University College London GRANT,98455695,208467.28,Training Awards - Postgraduates
BEIS,UKRI - MRC,09/04/2019,Research Grant Expenditure,Stratified Medicine,The University of Manchester,98426593,208101.39,Research Grant Expenditure
BEIS,UKRI - EPSRC,24/04/2019,Training Awards - Postgraduates,Non Theme Specific,University of Cambridge,98455982,208014.17,Training Awards - Postgraduates
BEIS,UKRI - Research England,16/04/2019,Research Grant Expenditure,RE- GCRF,Queen Mary University of London,98459440,207735.38,Research Grant Expenditure
BEIS,UKRI - EPSRC,24/04/2019,Training Awards - Postgraduates,Non Theme Specific,University of Glasgow GRANT,98456017,207619.24,Training Awards - Postgraduates
BEIS,UKRI - EPSRC,24/04/2019,Training Awards - Postgraduates,Healthcare Healthcare,University of Nottingham GRANT,98454647,207404.16,Training Awards - Postgraduates
BEIS,UKRI - EPSRC,24/04/2019,Training Awards - Postgraduates,GU Global Uncertainty,Unspecified,98455910,207293.76,Training Awards - Postgraduates
BEIS,UKRI - EPSRC,24/04/2019,Training Awards - Postgraduates,Digital Economy Digital Economy,University of Newcastle upon Tyne GRANT,98454675,206980.69,Training Awards - Postgraduates
BEIS,UKRI - STFC,29/04/2019,Projects CIP,National Satellite Test Facility,Mace Limited,98461907,206958.95,Projects CIP
BEIS,UKRI - STFC,24/04/2019,Building Rents,Estates Corporate Management,Unspecified,98468852,206556.00,Building Rents
BEIS,UKRI - Central,09/04/2019,Secondments,UKRI - EU Underwrite,Technology Strategy Board (Innovate UK),98458505,206235.00,Secondments
BEIS,UKRI - EPSRC,24/04/2019,Training Awards - Postgraduates,NC Physical Sciences,University of Cambridge,98455729,206233.21,Training Awards - Postgraduates
BEIS,UKRI - BBSRC,17/04/2019,Research Institutes - Competitive Strategic Grant,EBRC (Roslin),University of Edinburgh,98462333,206087.50,Research Institutes - Competitive Strategic Grant
BEIS,UKRI - EPSRC,12/04/2019,NI Payable Salaries,Balance Sheet,HM Revenue & Customs,98462105,205963.52,NI Payable Salaries
BEIS,UKRI - EPSRC,24/04/2019,Training Awards - Postgraduates,Manufacturing Manufacturing,University of Cambridge,98455696,205863.77,Training Awards - Postgraduates
BEIS,UKRI - MRC,09/04/2019,Research Grant Expenditure,Strategy Grants,University College London GRANT,98430129,205552.45,Research Grant Expenditure
BEIS,UKRI - EPSRC,24/04/2019,Training Awards - Postgraduates,NC Physical Sciences,University of Warwick,98455728,205461.57,Training Awards - Postgraduates
BEIS,UKRI - Research England,16/04/2019,Research Grant Expenditure,RE- Quality Research (QR),Nottingham Trent University,98459324,205066.82,Research Grant Expenditure
BEIS,UKRI - EPSRC,24/04/2019,Training Awards - Postgraduates,NC Physical Sciences,University of Cambridge,98455730,204974.02,Training Awards - Postgraduates
BEIS,UKRI - NERC,17/04/2019,Ers Pension Deductions - JSS,Balance Sheet,RCPS Pension,98460732,204912.64,Ers Pension Deductions - JSS
BEIS,UKRI - MRC,09/04/2019,Research Grant Expenditure,Strategy Grants,Imperial College (Research Awards),98426564,204536.69,Research Grant Expenditure
BEIS,UKRI - STFC,09/04/2019,Other Programme Costs,Research Complex,UKRI - Medical Research Council,98456839,204429.22,Other Programme Costs
BEIS,UKRI - STFC,05/04/2019,International Subscriptions,International Subscriptions,European Synchrotron Radiation Facility (ESRF),98442564,204201.52,International Subscriptions
BEIS,UKRI - Central,10/04/2019,Internal Audit,UKRI - Governance,HM Treasury Group,98459935,204000.00,Internal Audit
BEIS,UKRI - EPSRC,24/04/2019,Training Awards - Postgraduates,NC ICT,University of Edinburgh,98455702,203896.12,Training Awards - Postgraduates
BEIS,UKRI - STFC,12/04/2019,Projects CIP,ESS,Mega Industries LLC,98391631,203702.94,Projects CIP
BEIS,UKRI - ESRC,16/04/2019,Research Grant Expenditure,International Development,UKRI - Medical Research Council,98365338,203454.70,Research Grant Expenditure
BEIS,UKRI - MRC,09/04/2019,Research Grant Expenditure,PSMB Other,University of Cambridge,98430472,203242.37,Research Grant Expenditure
BEIS,UKRI - EPSRC,24/04/2019,Training Awards - Postgraduates,Non Theme Specific,University of Leeds GRANT,98456018,203110.22,Training Awards - Postgraduates
BEIS,UKRI - MRC,09/04/2019,Research Grant Expenditure,IIB Other,London School of Hygiene & Tropical Medicine,98430160,203087.58,Research Grant Expenditure
BEIS,UKRI - Innovate UK,26/04/2019,Resource grants,Catapults - CG&I,ENERGY SYSTEMS CATAPULT LTD,31761,202777.24,Resource grants
BEIS,UKRI - EPSRC,24/04/2019,Training Awards - Postgraduates,Digital Economy Digital Economy,University of Bath,98454674,202694.97,Training Awards - Postgraduates
BEIS,UKRI - MRC,09/04/2019,Research Grant Expenditure,MCMB Other,Newcastle University,98430210,202294.16,Research Grant Expenditure
BEIS,UKRI - MRC,09/04/2019,Research Grant Expenditure,Stratified Medicine,King's College London,98426552,201867.09,Research Grant Expenditure
BEIS,UKRI - NERC,15/04/2019,Rates,NERC - BAS Cambridge Utilities,Cambridge City Council,98462379,201600.00,Rates
BEIS,UKRI - Research England,16/04/2019,Research Grant Expenditure,RE- HEIF,Institute of Cancer Research,98459506,200522.63,Research Grant Expenditure
BEIS,UKRI - MRC,09/04/2019,Grant - Special Contributions Capital,CRICK,The Francis Crick Institute,98459034,200507.21,Grant - Special Contributions Capital
BEIS,UKRI - MRC,09/04/2019,Research Grant Expenditure,PSMB Other,University of Cambridge,98429953,200266.22,Research Grant Expenditure
BEIS,UKRI - EPSRC,24/04/2019,Training Awards - Postgraduates,NC Physical Sciences,University of Oxford GRANT,98455721,200075.92,Training Awards - Postgraduates
BEIS,UKRI - MRC,18/04/2019,Grant - Special Contributions Capital,DEMENTIA RESEARCH INSTITUTE,Imperial College London,98467050,200000,Grant - Special Contributions Capital
BEIS,UKRI - EPSRC,24/04/2019,Training Awards - Postgraduates,NC Physical Sciences,University of Bristol GRANT,98455731,199847.23,Training Awards - Postgraduates
BEIS,UKRI - Research England,16/04/2019,Research Grant Expenditure,RE - Small Research Programmes,University College London,98459693,199302.00,Research Grant Expenditure
BEIS,UKRI - EPSRC,24/04/2019,Training Awards - Postgraduates,Energy Energy,University of Birmingham GRANT,98454668,198809.98,Training Awards - Postgraduates
BEIS,UKRI - EPSRC,24/04/2019,Training Awards - Postgraduates,NC Physical Sciences,The University of Manchester GRANT,98455726,198727.58,Training Awards - Postgraduates
BEIS,UKRI - EPSRC,24/04/2019,Training Awards - Postgraduates,NC Engineering,University of Oxford GRANT,98455701,198641.71,Training Awards - Postgraduates
BEIS,UKRI - BBSRC,17/04/2019,Research Institutes - Competitive Strategic Grant,Pirbright,The Pirbright Institute,98458983,198583.33,Research Institutes - Competitive Strategic Grant
BEIS,UKRI - EPSRC,24/04/2019,Training Awards - Postgraduates,Manufacturing Manufacturing,University of Nottingham GRANT,98454681,198144.12,Training Awards - Postgraduates
BEIS,UKRI - MRC,09/04/2019,Research Grant Expenditure,MCMB Human Cell Atlas - Strategic Priorities Fund,University of Oxford,98430453,197959.16,Research Grant Expenditure
BEIS,UKRI - MRC,24/04/2019,Grant - Special Contributions Capital,PSMB EU,University of Cambridge,98468072,197789,Grant - Special Contributions Capital
BEIS,UKRI - EPSRC,24/04/2019,Training Awards - Postgraduates,NC Maths,University of Edinburgh,98455734,197564.14,Training Awards - Postgraduates
BEIS,UKRI - Innovate UK,11/04/2019,Resource grants,Transport,WEST MIDLANDS COMBINED AUTHORITY,30323,197548.16,Resource grants
BEIS,UKRI - EPSRC,24/04/2019,Training Awards - Postgraduates,Energy Energy,University College London GRANT,98455707,197296.01,Training Awards - Postgraduates
BEIS,UKRI - BBSRC,17/04/2019,Research Institutes - Competitive Strategic Grant,Rothamsted Research,Rothamsted Research Ltd,98460308,196835.67,Research Institutes - Competitive Strategic Grant
BEIS,UKRI - STFC,26/04/2019,Projects CIP,ESS,Mega Industries LLC,98456574,196658.56,Projects CIP
BEIS,UKRI - Innovate UK,11/04/2019,Resource grants,Medicines Manufacturing,University of Birmingham,30336,196518.23,Resource grants
BEIS,UKRI - EPSRC,24/04/2019,Training Awards - Postgraduates,Energy Energy,University of Leeds GRANT,98455718,196072.70,Training Awards - Postgraduates
BEIS,UKRI - EPSRC,24/04/2019,Training Awards - Postgraduates,NC ICT,University College London GRANT,98455708,195952.84,Training Awards - Postgraduates
BEIS,UKRI - Research England,16/04/2019,Research Grant Expenditure,RE- HEIF,Leeds Beckett University,98459513,195409.65,Research Grant Expenditure
BEIS,UKRI - EPSRC,24/04/2019,Training Awards - Postgraduates,NC Physical Sciences,University of Nottingham GRANT,98455717,194782.89,Training Awards - Postgraduates
BEIS,UKRI - EPSRC,24/04/2019,Training Awards - Postgraduates,NC Physical Sciences,ICSTM,98455722,194405.71,Training Awards - Postgraduates
BEIS,UKRI - EPSRC,24/04/2019,Training Awards - Postgraduates,Healthcare Healthcare,The University of Manchester GRANT,98454649,193658.05,Training Awards - Postgraduates
BEIS,UKRI - EPSRC,24/04/2019,Training Awards - Postgraduates,NC Maths,ICSTM,98454673,193554.58,Training Awards - Postgraduates
BEIS,UKRI - EPSRC,24/04/2019,Training Awards - Postgraduates,Healthcare Healthcare,University of Edinburgh,98455741,193442.96,Training Awards - Postgraduates
BEIS,UKRI - EPSRC,24/04/2019,Training Awards - Postgraduates,Non Theme Specific,University of Edinburgh,98456016,192294.18,Training Awards - Postgraduates
BEIS,UKRI - EPSRC,24/04/2019,Training Awards - Postgraduates,NC Engineering,ICSTM,98454653,191475.64,Training Awards - Postgraduates
BEIS,UKRI - EPSRC,24/04/2019,Training Awards - Postgraduates,NC Physical Sciences,ICSTM,98455747,191436.26,Training Awards - Postgraduates
BEIS,UKRI - EPSRC,24/04/2019,Training Awards - Postgraduates,Energy Energy,University of Strathclyde GRANT,98455712,190665.39,Training Awards - Postgraduates
BEIS,UKRI - MRC,09/04/2019,Research Grant Expenditure,Strategy Grants,The University of Manchester,98426598,190027.8,Research Grant Expenditure
BEIS,UKRI - Research England,16/04/2019,Research Grant Expenditure,RE - Connecting Capability Fund,King's College London,98459682,189707.50,Research Grant Expenditure
BEIS,UKRI - EPSRC,24/04/2019,Training Awards - Postgraduates,NC Maths,University of Oxford GRANT,98454667,189648.94,Training Awards - Postgraduates
BEIS,UKRI - EPSRC,24/04/2019,Training Awards - Postgraduates,Digital Economy Digital Economy,University College London GRANT,98455700,189500.02,Training Awards - Postgraduates
BEIS,UKRI - MRC,09/04/2019,Research Grant Expenditure,Translational Growth Other,University of Sunderland GRANT,98430418,189459.28,Research Grant Expenditure
BEIS,UKRI - MRC,09/04/2019,Research Grant Expenditure,Translational Growth Other,University of Sunderland GRANT,98430418,189459.28,Research Grant Expenditure
BEIS,UKRI - EPSRC,24/04/2019,Training Awards - Postgraduates,NC Engineering,University of Cambridge,98454646,189304.58,Training Awards - Postgraduates
BEIS,UKRI - MRC,09/04/2019,Research Grant Expenditure,Regenerative Medicine Platform Initiative,University of Edinburgh,98430304,188737.99,Research Grant Expenditure
BEIS,UKRI - STFC,17/04/2019,Ers Pension Deductions - JSS,Balance Sheet,RCPS Pension,98460707,188275.10,Ers Pension Deductions - JSS
BEIS,UKRI - EPSRC,24/04/2019,Training Awards - Postgraduates,NC Physical Sciences,ICSTM,98455716,188246.86,Training Awards - Postgraduates
BEIS,UKRI - Research England,16/04/2019,Research Grant Expenditure,RE- Quality Research (QR),University of Salford,98459343,187897.70,Research Grant Expenditure
BEIS,UKRI - MRC,09/04/2019,Research Grant Expenditure,Strategy Grants,London School of Hygiene & Tropical Medicine,98430117,187872.61,Research Grant Expenditure
BEIS,UKRI - BBSRC,29/04/2019,Research Institutes - Capital Grants: Minor Works,JIC,John Innes Centre,98468770,187624.77,Research Institutes - Capital Grants: Minor Works
BEIS,UKRI - EPSRC,24/04/2019,Training Awards - Postgraduates,NC Maths,University of Oxford GRANT,98454679,187462.12,Training Awards - Postgraduates
BEIS,UKRI - Research England,16/04/2019,Research Grant Expenditure,RE- GCRF,University of Liverpool,98459416,187330.57,Research Grant Expenditure
BEIS,UKRI - MRC,09/04/2019,Research Grant Expenditure,MCMB Other,Imperial College (Research Awards),98429699,187275.56,Research Grant Expenditure
BEIS,UKRI - EPSRC,24/04/2019,Training Awards - Postgraduates,NC Physical Sciences,University of Bristol GRANT,98455748,187225.03,Training Awards - Postgraduates
BEIS,UKRI - Innovate UK,17/04/2019,Resource grants,ISCF - MM,FREEFORM FABRICATION INDUSTRIES LIMITED,31050,187073.65,Resource grants
BEIS,UKRI - MRC,09/04/2019,Research Grant Expenditure,MCMB Human Cell Atlas - Strategic Priorities Fund,University of Cambridge,98430447,187001.25,Research Grant Expenditure
BEIS,UKRI - EPSRC,24/04/2019,Training Awards - Postgraduates,Quantum Technology Programme,ICSTM,98455709,186953.44,Training Awards - Postgraduates
BEIS,UKRI - EPSRC,24/04/2019,Training Awards - Postgraduates,NC Physical Sciences,University of Warwick,98455725,186578.83,Training Awards - Postgraduates
BEIS,UKRI - Research England,16/04/2019,Research Grant Expenditure,RE- GCRF,University of Durham,98459390,186386.09,Research Grant Expenditure
BEIS,UKRI - EPSRC,24/04/2019,Training Awards - Postgraduates,NC Engineering,ICSTM,98454642,185706.30,Training Awards - Postgraduates
BEIS,UKRI - Research England,16/04/2019,Research Grant Expenditure,RE- HEIF,University of Reading,98459542,185557.65,Research Grant Expenditure
BEIS,UKRI - EPSRC,24/04/2019,Training Awards - Postgraduates,NC Maths,University of Oxford GRANT,98454666,185095.65,Training Awards - Postgraduates
BEIS,UKRI - Innovate UK,17/04/2019,Resource grants,Advanced Therapies,IZANA BIOSCIENCE LIMITED,31079,184462.39,Resource grants
BEIS,UKRI - EPSRC,24/04/2019,Training Awards - Postgraduates,NC Physical Sciences,University of St Andrews GRANT,98455714,183921.87,Training Awards - Postgraduates
BEIS,UKRI - EPSRC,24/04/2019,Training Awards - Postgraduates,Energy Energy,ICSTM,98454687,183448.06,Training Awards - Postgraduates
BEIS,UKRI - ESRC,12/04/2019,Training Awards - Postgraduates,Skills and Methods,University of Surrey GRANT,98453973,183042.25,Training Awards - Postgraduates
BEIS,UKRI - NERC,23/04/2019,Training Awards - Postgraduates,NERC - SO Post Graduate Training DTP's,Heriot Watt University,98460560,182696.25,Training Awards - Postgraduates
BEIS,UKRI - EPSRC,24/04/2019,Training Awards - Postgraduates,NC ICT,ICSTM,98454672,182457.14,Training Awards - Postgraduates
BEIS,UKRI - Innovate UK,01/04/2019,Workshops/Sandpits,Newton,NESTA,29022,182452.80,Workshops/Sandpits
BEIS,UKRI - EPSRC,24/04/2019,Training Awards - Postgraduates,Non Theme Specific,University of Birmingham GRANT,98455998,182382.43,Training Awards - Postgraduates
BEIS,UKRI - EPSRC,24/04/2019,Training Awards - Postgraduates,NC ICT,University of Bristol GRANT,98455698,182259.99,Training Awards - Postgraduates
BEIS,UKRI - EPSRC,24/04/2019,Training Awards - Postgraduates,NC Physical Sciences,University of Sheffield GRANT,98454689,182180.59,Training Awards - Postgraduates
BEIS,UKRI - Innovate UK,17/04/2019,Resource grants,Advanced Therapies,University of Oxford,31249,182091.96,Resource grants
BEIS,UKRI - MRC,09/04/2019,Research Grant Expenditure,Stratified Medicine,University College London GRANT,98430208,181698.68,Research Grant Expenditure
BEIS,UKRI - Research England,16/04/2019,Research Grant Expenditure,RE- HEIF,Coventry University,98459487,181485.15,Research Grant Expenditure
BEIS,UKRI - Research England,16/04/2019,Research Grant Expenditure,RE- Quality Research (QR),De Montfort University,98459621,181389.84,Research Grant Expenditure
BEIS,UKRI - Research England,16/04/2019,Research Grant Expenditure,RE- Quality Research (QR),University of Hertfordshire,98459635,181371.98,Research Grant Expenditure
BEIS,UKRI - EPSRC,24/04/2019,Training Awards - Postgraduates,NC Maths,Lancaster University GRANT,98454665,181082.07,Training Awards - Postgraduates
BEIS,UKRI - EPSRC,24/04/2019,Training Awards - Postgraduates,Non Theme Specific,University of Bristol GRANT,98455953,181030.82,Training Awards - Postgraduates
BEIS,UKRI - EPSRC,24/04/2019,Training Awards - Postgraduates,NC ICT,University of Edinburgh,98454682,180902.74,Training Awards - Postgraduates
BEIS,UKRI - NERC,01/04/2019,Fuel Costs,NERC - BAS MGO Fuel,Ministry of Defence,98451427,180820.77,Fuel Costs
BEIS,UKRI - MRC,09/04/2019,Research Grant Expenditure,Strategy Grants,London School of Hygiene & Tropical Medicine,98430324,180471.33,Research Grant Expenditure
BEIS,UKRI - MRC,09/04/2019,Research Grant Expenditure,Global Health Trials,Queen Mary University of London,98429640,180385.91,Research Grant Expenditure
BEIS,UKRI - MRC,09/04/2019,Research Grant Expenditure,PSMB Other,Newcastle University,98429759,180104.86,Research Grant Expenditure
BEIS,UKRI - NERC,18/04/2019,Projects CIP,NERC - BGS DIRECTOR OF SCIENCE & TECHNOLOGY - PROJECT OWNING,Aleron Subsea Ltd,98465556,180000.00,Projects CIP
BEIS,UKRI - Innovate UK,26/04/2019,Resource grants,APC,DANFOSS SCOTLAND LIMITED,31523,179917.85,Resource grants
BEIS,UKRI - EPSRC,24/04/2019,Training Awards - Postgraduates,Quantum Technology Programme,University College London GRANT,98455873,179868.60,Training Awards - Postgraduates
BEIS,UKRI - MRC,09/04/2019,Research Grant Expenditure,PSMB Other,University of York (Research Awards,98429738,179826.5,Research Grant Expenditure
BEIS,UKRI - Innovate UK,01/04/2019,Transportation,Finance UKRI,REDFERN TRAVEL LTD,28996,179598.61,Transportation
BEIS,UKRI - Innovate UK,01/04/2019,Transportation,Finance UKRI,REDFERN TRAVEL LTD,28996,179598.61,Transportation
BEIS,UKRI - EPSRC,24/04/2019,Training Awards - Postgraduates,Energy Energy,Cranfield University,98455732,179399.52,Training Awards - Postgraduates
BEIS,UKRI - EPSRC,24/04/2019,Training Awards - Postgraduates,Energy Energy,The University of Manchester GRANT,98455699,179369.88,Training Awards - Postgraduates
BEIS,UKRI - Research England,16/04/2019,Research Grant Expenditure,RE- Quality Research (QR),University of Central Lancashire,98459612,179252.91,Research Grant Expenditure
BEIS,UKRI - Research England,16/04/2019,Research Grant Expenditure,RE- Quality Research (QR),University of Bradford,98459605,179174.30,Research Grant Expenditure
BEIS,UKRI - BBSRC,25/04/2019,Research Institutes - Capital Grants: Major Works,Estates - Projects,EMBL (European Molecular Biology Laboratory),98469452,178343.34,Research Institutes - Capital Grants: Major Works
BEIS,UKRI - EPSRC,24/04/2019,Training Awards - Postgraduates,NC Physical Sciences,University College London GRANT,98455713,178247.30,Training Awards - Postgraduates
BEIS,UKRI - MRC,09/04/2019,Research Grant Expenditure,NMHB Other,University of Nottingham,98430280,178068.27,Research Grant Expenditure
BEIS,UKRI - Central,09/04/2019,Purchase of non capital equipment,UKRI - EU Underwrite,Technology Strategy Board (Innovate UK),98458505,177945.92,Purchase of non capital equipment
BEIS,UKRI - MRC,09/04/2019,Research Grant Expenditure,NMHB Other,University College London GRANT,98429656,177786.29,Research Grant Expenditure
BEIS,UKRI - EPSRC,24/04/2019,Training Awards - Postgraduates,NC Physical Sciences,University of Cambridge,98455750,176912.68,Training Awards - Postgraduates
BEIS,UKRI - Innovate UK,26/04/2019,Resource grants,Transport,DELTA MOTORSPORT LIMITED,31704,176621.82,Resource grants
BEIS,UKRI - Research England,16/04/2019,Research Grant Expenditure,"RE - Museums, Galleries and Collections",University of Cambridge,98459581,176333.33,Research Grant Expenditure
BEIS,UKRI - NERC,01/04/2019,Projects CIP,NERC - BAS Non-ALI Adjustments,EvoEnergy Ltd,98451430,176159.94,Projects CIP
BEIS,UKRI - NERC,18/04/2019,Projects CIP,NERC - CEH Facilities - Wallingford,Mark Humphris Refridgeration and Air Conditioning Ltd,98466951,176100.00,Projects CIP
BEIS,UKRI - MRC,09/04/2019,Research Grant Expenditure,Newton Fund,University of Warwick,98430454,175773.41,Research Grant Expenditure
BEIS,UKRI - Research England,16/04/2019,Research Grant Expenditure,RE- HEIF,University of Central Lancashire,98459483,175660.95,Research Grant Expenditure
BEIS,UKRI - MRC,09/04/2019,Research Grant Expenditure,Strategy Grants,University of Nottingham,98426599,174968.98,Research Grant Expenditure
BEIS,UKRI - EPSRC,24/04/2019,Training Awards - Postgraduates,NC Engineering,ICSTM,98455743,174910.21,Training Awards - Postgraduates
BEIS,UKRI - MRC,10/04/2019,Research Grant Expenditure,MCMB Other,National Institute for Biological Standards and Control (NIBSC),98430197,174809.69,Research Grant Expenditure
BEIS,UKRI - EPSRC,24/04/2019,Training Awards - Postgraduates,Energy Energy,University of Sheffield GRANT,98454656,174792.25,Training Awards - Postgraduates
BEIS,UKRI - EPSRC,24/04/2019,Training Awards - Postgraduates,Non Theme Specific,University of Newcastle upon Tyne GRANT,98456000,173385.51,Training Awards - Postgraduates
BEIS,UKRI - STFC,26/04/2019,Projects CIP,ESS,Mega Industries LLC,98391701,173137.93,Projects CIP
BEIS,UKRI - EPSRC,24/04/2019,Training Awards - Postgraduates,Energy Energy,University of Strathclyde GRANT,98454685,172901.40,Training Awards - Postgraduates
BEIS,UKRI - EPSRC,24/04/2019,Training Awards - Postgraduates,NC Physical Sciences,University of St Andrews GRANT,98455751,172720.81,Training Awards - Postgraduates
BEIS,UKRI - Research England,16/04/2019,Research Grant Expenditure,RE- Quality Research (QR),Coventry University,98459617,172632.16,Research Grant Expenditure
BEIS,UKRI - Research England,16/04/2019,Research Grant Expenditure,"RE - Museums, Galleries and Collections",The University of Manchester,98459584,172500.00,Research Grant Expenditure
BEIS,UKRI - MRC,09/04/2019,Research Grant Expenditure,MCMB Human Cell Atlas - Strategic Priorities Fund,The University of Manchester,98430461,171738.86,Research Grant Expenditure
BEIS,UKRI - EPSRC,24/04/2019,Training Awards - Postgraduates,Healthcare Healthcare,University of Oxford GRANT,98455733,171538.22,Training Awards - Postgraduates
BEIS,UKRI - BBSRC,17/04/2019,Research Institutes - Competitive Strategic Grant,TGAC,Earlham Institute,98459925,171390.75,Research Institutes - Competitive Strategic Grant
BEIS,UKRI - Research England,16/04/2019,Research Grant Expenditure,RE- GCRF,University of Exeter,98459395,171377.87,Research Grant Expenditure
BEIS,UKRI - Innovate UK,17/04/2019,Resource grants,APC,HSSMI LIMITED,31177,171310.49,Resource grants
BEIS,UKRI - EPSRC,24/04/2019,Training Awards - Postgraduates,Digital Economy Digital Economy,Queen Mary University of London,98455738,171246.39,Training Awards - Postgraduates
BEIS,UKRI - MRC,09/04/2019,Research Grant Expenditure,MCMB Human Cell Atlas - Strategic Priorities Fund,The University of Manchester,98430441,170876.73,Research Grant Expenditure
BEIS,UKRI - EPSRC,24/04/2019,Training Awards - Postgraduates,NC Maths,University of Warwick,98454669,170735.76,Training Awards - Postgraduates
BEIS,UKRI - MRC,09/04/2019,Research Grant Expenditure,IIB Other,University of Leeds (Research Award,98429755,170025.89,Research Grant Expenditure
BEIS,UKRI - STFC,17/04/2019,Ers Pension Deductions - MyCSP,Balance Sheet,Cabinet Office RM Shared Services,98460721,169952.32,Ers Pension Deductions - MyCSP
BEIS,UKRI - MRC,09/04/2019,Research Grant Expenditure,MCMB Human Cell Atlas - Strategic Priorities Fund,University of Edinburgh,98430448,169856.47,Research Grant Expenditure
BEIS,UKRI - EPSRC,24/04/2019,Training Awards - Postgraduates,NC Maths,University of Bath,98455737,169488.30,Training Awards - Postgraduates
BEIS,UKRI - MRC,09/04/2019,Research Grant Expenditure,Stratified Medicine,University of Exeter,98426629,168926.52,Research Grant Expenditure
BEIS,UKRI - MRC,09/04/2019,Research Grant Expenditure,IIB Other,University of Edinburgh,98429757,168782.56,Research Grant Expenditure
BEIS,UKRI - NERC,10/04/2019,HEI Research Contracts,NERC - BGS NERC Services & Facilities - Project Owning,University of Bristol,98459964,168563.18,HEI Research Contracts
BEIS,UKRI - EPSRC,24/04/2019,Training Awards - Postgraduates,Non Theme Specific,King's College London,98455993,168235.20,Training Awards - Postgraduates
BEIS,UKRI - EPSRC,24/04/2019,Training Awards - Postgraduates,NC Engineering,ICSTM,98454645,168004.40,Training Awards - Postgraduates
BEIS,UKRI - BBSRC,12/04/2019,NI Payable Salaries,Balance Sheet,HM Revenue & Customs,98462049,167616.82,NI Payable Salaries
BEIS,UKRI - Research England,16/04/2019,Research Grant Expenditure,RE- HEIF,"City, University of London",98459485,167363.33,Research Grant Expenditure
BEIS,UKRI - Research England,16/04/2019,Research Grant Expenditure,RE- GCRF,University of York,98459467,166980.05,Research Grant Expenditure
BEIS,UKRI - Research England,16/04/2019,Research Grant Expenditure,RE - JISC,Jisc Services Ltd - GRANT,98459571,166666.67,Research Grant Expenditure
BEIS,UKRI - STFC,01/04/2019,Research & Scientific Equipment,LSN-XFEL International Subscription,Manx Precision Optics Ltd,98451462,166211.74,Research & Scientific Equipment
BEIS,UKRI - NERC,01/04/2019,Fuel Costs,NERC - BAS MGO Fuel,Ministry of Defence,98451425,166028.75,Fuel Costs
BEIS,UKRI - MRC,09/04/2019,Research Grant Expenditure,MCMB Human Cell Atlas - Strategic Priorities Fund,University of Cambridge,98430444,165942.72,Research Grant Expenditure
BEIS,UKRI - Innovate UK,05/04/2019,Resource grants,Medicines Manufacturing,IMMETACYTE LTD,29489,165916.52,Resource grants
BEIS,UKRI - Research England,16/04/2019,Research Grant Expenditure,RE- Quality Research (QR),University of Lincoln,98459302,165773.79,Research Grant Expenditure
BEIS,UKRI - Research England,16/04/2019,Research Grant Expenditure,RE - Connecting Capability Fund,University of Sheffield,98459690,165738.85,Research Grant Expenditure
BEIS,UKRI - MRC,09/04/2019,Research Grant Expenditure,Strategy Grants,University of Oxford,98429831,165659.69,Research Grant Expenditure
BEIS,UKRI - NERC,29/04/2019,Projects CIP,NERC - BAS Non-ALI Adjustments,EvoEnergy Ltd,98449205,165526.20,Projects CIP
BEIS,UKRI - EPSRC,24/04/2019,Training Awards - Postgraduates,Non Theme Specific,Queen's University Belfast GRANT,98455857,164783.73,Training Awards - Postgraduates
BEIS,UKRI - NERC,23/04/2019,Training Awards - Postgraduates,NERC - SO Post Graduate Training DTP's,Cranfield University,98460595,164772.50,Training Awards - Postgraduates
BEIS,UKRI - MRC,09/04/2019,Research Grant Expenditure,Newton Fund,University of Bristol GRANT,98430456,164660.92,Research Grant Expenditure
BEIS,UKRI - Research England,16/04/2019,Research Grant Expenditure,RE- HEIF,University of Plymouth,98459539,164520.30,Research Grant Expenditure
BEIS,UKRI - MRC,09/04/2019,Research Grant Expenditure,Translational Growth Other,University of Birmingham GRANT,98429688,164389.2,Research Grant Expenditure
BEIS,UKRI - Research England,16/04/2019,Research Grant Expenditure,RE- Quality Research (QR),University of the Arts London,98459594,163943.21,Research Grant Expenditure
BEIS,UKRI - NERC,23/04/2019,Training Awards - Postgraduates,NERC - SO Post Graduate Training DTP's,University of Southampton GRANT,98460597,163835.00,Training Awards - Postgraduates
BEIS,UKRI - Research England,16/04/2019,Research Grant Expenditure,RE- Quality Research (QR),Roehampton University (University of Roehampton),98459333,162947.84,Research Grant Expenditure
BEIS,UKRI - NERC,05/04/2019,HEI Research Contracts,NERC - NOC Marine Centres,University of St Andrews,98448601,162500.00,HEI Research Contracts
BEIS,UKRI - STFC,05/04/2019,Projects CIP,Infrastructure - DI,Dell Corporation Ltd,98456971,161982.00,Projects CIP
BEIS,UKRI - EPSRC,24/04/2019,Training Awards - Postgraduates,Healthcare Healthcare,Loughborough University GRANT,98455735,161745.64,Training Awards - Postgraduates
BEIS,UKRI - MRC,09/04/2019,Research Grant Expenditure,IIB Other,University of Warwick,98426618,161572.78,Research Grant Expenditure
BEIS,UKRI - EPSRC,24/04/2019,Training Awards - Postgraduates,NC Physical Sciences,University of Birmingham GRANT,98454640,160732.73,Training Awards - Postgraduates
BEIS,UKRI - MRC,09/04/2019,Research Grant Expenditure,Stratified Medicine,King's College London,98426614,160394.38,Research Grant Expenditure
BEIS,UKRI - EPSRC,24/04/2019,Training Awards - Postgraduates,Non Theme Specific,University of Strathclyde GRANT,98456021,159927.18,Training Awards - Postgraduates
BEIS,UKRI - Research England,16/04/2019,Research Grant Expenditure,RE - Connecting Capability Fund,London School of Economics and Political Science,98459685,159720.00,Research Grant Expenditure
BEIS,UKRI - MRC,02/04/2019,Non Payroll Salaries,Unspecified,UKRI - Engineering & Physical Sciences Research Council,98447437,159590,Non Payroll Salaries
BEIS,UKRI - MRC,09/04/2019,Research Grant Expenditure,Strategy Grants,St George's University of London,98429646,159494.89,Research Grant Expenditure
BEIS,UKRI - EPSRC,24/04/2019,Training Awards - Postgraduates,Energy Energy,University of York GRANT,98455706,159441.02,Training Awards - Postgraduates
BEIS,UKRI - Research England,16/04/2019,Research Grant Expenditure,RE- HEIF,University of Greenwich,98459499,159330.53,Research Grant Expenditure
BEIS,UKRI - Innovate UK,26/04/2019,Resource grants,Transport,TRANSPORT SYSTEMS CATAPULT,31619,158960.00,Resource grants
BEIS,UKRI - BBSRC,24/04/2019,Research Institutes - Capital Grants: Major Works,Estates - Projects,EMBL (European Molecular Biology Laboratory),98461781,158888.71,Research Institutes - Capital Grants: Major Works
BEIS,UKRI - EPSRC,24/04/2019,Training Awards - Postgraduates,NC ICT,Heriot-Watt University GRANT,98455704,158785.45,Training Awards - Postgraduates
BEIS,UKRI - BBSRC,17/04/2019,Research Institutes - Capital Grants: Major Works,EBRC (Roslin),University of Edinburgh,98462335,158735.00,Research Institutes - Capital Grants: Major Works
BEIS,UKRI - MRC,02/04/2019,Other Bought In Services,Comm Fund MRC HO,Unspecified,98452593,158709.67,Other Bought In Services
BEIS,UKRI - MRC,09/04/2019,Research Grant Expenditure,Translational Growth Other,St George's University of London,98426545,157777.62,Research Grant Expenditure
BEIS,UKRI - MRC,09/04/2019,Research Grant Expenditure,Translational Growth Other,University of Edinburgh,98426586,157736.06,Research Grant Expenditure
BEIS,UKRI - EPSRC,24/04/2019,Training Awards - Postgraduates,Manufacturing Manufacturing,University of Warwick,98455739,157569.73,Training Awards - Postgraduates
BEIS,UKRI - Central,09/04/2019,Recharges From Councils - General,UKRI - Governance,UKRI - Natural Environment Research Council,98455386,157458.37,Recharges From Councils - General
BEIS,UKRI - STFC,04/04/2019,Asset Clearing,Target Fabrication,Micronanics Ltd,98456239,157356.00,Asset Clearing
BEIS,UKRI - EPSRC,24/04/2019,Training Awards - Postgraduates,NC ICT,University of Glasgow GRANT,98455752,157301.85,Training Awards - Postgraduates
BEIS,UKRI - NERC,04/04/2019,Projects CIP,NERC - BAS Non-ALI Adjustments,EvoEnergy Ltd,98454610,157249.88,Projects CIP
BEIS,UKRI - EPSRC,24/04/2019,Training Awards - Postgraduates,NC Physical Sciences,"University of Wales, Cardiff - UWC",98455694,156952.44,Training Awards - Postgraduates
BEIS,UKRI - MRC,09/04/2019,Research Grant Expenditure,NMHB Other,University of Cambridge,98429753,156902.78,Research Grant Expenditure
BEIS,UKRI - MRC,09/04/2019,Research Grant Expenditure,PSMB Other,Imperial College (Research Awards),98430474,156340.9,Research Grant Expenditure
BEIS,UKRI - EPSRC,24/04/2019,Training Awards - Postgraduates,Non Theme Specific,University of Surrey GRANT,98455868,156270.40,Training Awards - Postgraduates
BEIS,UKRI - Innovate UK,05/04/2019,Resource grants,Precision and Discovery Medicine ����������,ATLAS GENETICS LTD,29632,155590.00,Resource grants
BEIS,UKRI - Research England,16/04/2019,Research Grant Expenditure,RE- Quality Research (QR),University of Greenwich,98459632,155287.14,Research Grant Expenditure
BEIS,UKRI - Research England,16/04/2019,Research Grant Expenditure,RE- GCRF,London School of Economics and Political Science,98459422,155087.00,Research Grant Expenditure
BEIS,UKRI - EPSRC,24/04/2019,Training Awards - Postgraduates,Manufacturing Manufacturing,University of Bristol GRANT,98454684,154798.79,Training Awards - Postgraduates
BEIS,UKRI - NERC,24/04/2019,Projects CIP,NERC - NOC BSS Capital,British Telecom Plc (BT),98457304,154567.13,Projects CIP
BEIS,UKRI - EPSRC,12/04/2019,PAYE Payable Salaries,Balance Sheet,HM Revenue & Customs,98462104,154105.00,PAYE Payable Salaries
BEIS,UKRI - MRC,26/04/2019,Projects CIP,LMS - New Building Project (2018/2019),Walter Lilly and Co Ltd,98470898,153990.54,Projects CIP
BEIS,UKRI - EPSRC,24/04/2019,Training Awards - Postgraduates,Manufacturing Manufacturing,Swansea University,98454680,153519.99,Training Awards - Postgraduates
BEIS,UKRI - EPSRC,24/04/2019,Training Awards - Postgraduates,Healthcare Healthcare,University of Leeds GRANT,98454639,153437.90,Training Awards - Postgraduates
BEIS,UKRI - EPSRC,24/04/2019,Training Awards - Postgraduates,NC Physical Sciences,ICSTM,98454644,153245.83,Training Awards - Postgraduates
BEIS,UKRI - EPSRC,24/04/2019,Training Awards - Postgraduates,Manufacturing Manufacturing,University of Sheffield GRANT,98454676,152810.61,Training Awards - Postgraduates
BEIS,UKRI - MRC,16/04/2019,Secondments,Unspecified,King's College London,98449660,152718.56,Secondments
BEIS,UKRI - Research England,16/04/2019,Research Grant Expenditure,RE- Quality Research (QR),Kingston University,98459296,152414.65,Research Grant Expenditure
BEIS,UKRI - EPSRC,24/04/2019,Training Awards - Postgraduates,Quantum Technology Programme,ICSTM,98455874,152230.70,Training Awards - Postgraduates
BEIS,UKRI - MRC,09/04/2019,Research Grant Expenditure,Strategy Grants,London School of Hygiene & Tropical Medicine,98429659,152151.9,Research Grant Expenditure
BEIS,UKRI - EPSRC,24/04/2019,Training Awards - Postgraduates,NC Engineering,University of Surrey GRANT,98454663,151305.64,Training Awards - Postgraduates
BEIS,UKRI - EPSRC,24/04/2019,Training Awards - Postgraduates,NC Maths,University of Cambridge,98455740,150721.27,Training Awards - Postgraduates
BEIS,UKRI - ESRC,12/04/2019,Training Awards - Postgraduates,Skills and Methods,University of Essex GRANT,98453965,150679.50,Training Awards - Postgraduates
BEIS,UKRI - EPSRC,24/04/2019,Training Awards - Postgraduates,Digital Economy Digital Economy,University of Nottingham GRANT,98454686,150399.74,Training Awards - Postgraduates
BEIS,UKRI - Innovate UK,17/04/2019,Resource grants,Audience of the Future,FACTORY 42 LIMITED,31161,150208.91,Resource grants
BEIS,UKRI - EPSRC,02/04/2019,Recharges From Councils - General,RCUK-Newton Activity,UKRI - Medical Research Council,98453663,148819.15,Recharges From Councils - General
BEIS,UKRI - MRC,18/04/2019,Grant - Special Contributions,Translation P&C,Liverpool School of Tropical Medicine,98467041,148311.17,Grant - Special Contributions
BEIS,UKRI - MRC,24/04/2019,Grant - Special Contributions,Translation P&C,Liverpool School of Tropical Medicine,98468738,148310.83,Grant - Special Contributions
BEIS,UKRI - Research England,16/04/2019,Research Grant Expenditure,RE - Connecting Capability Fund,University of Bath,98459679,148000.00,Research Grant Expenditure
BEIS,UKRI - Research England,16/04/2019,Research Grant Expenditure,RE- Quality Research (QR),Bournemouth University,98459604,147998.32,Research Grant Expenditure
BEIS,UKRI - EPSRC,24/04/2019,Training Awards - Postgraduates,Manufacturing Manufacturing,University of Leicester GRANT,98454671,147697.26,Training Awards - Postgraduates
BEIS,UKRI - MRC,09/04/2019,Research Grant Expenditure,Translational Growth Other,King's College London,98429679,147583.2,Research Grant Expenditure
BEIS,UKRI - EPSRC,24/04/2019,Training Awards - Postgraduates,Non Theme Specific,University of Warwick,98456022,147550.50,Training Awards - Postgraduates
BEIS,UKRI - Research England,16/04/2019,Research Grant Expenditure,RE- HEIF,University of the West of England,98459565,147264.68,Research Grant Expenditure
BEIS,UKRI - STFC,29/04/2019,Building Rents,Campus Centres,Daresbury SIC LLP,98471317,147021.60,Building Rents
BEIS,UKRI - NERC,10/04/2019,Projects CIP,NERC - BAS Non-ALI Adjustments,EvoEnergy Ltd,98457133,146799.97,Projects CIP
BEIS,UKRI - EPSRC,24/04/2019,Training Awards - Postgraduates,Non Theme Specific,University of Sheffield GRANT,98455986,146582.61,Training Awards - Postgraduates
BEIS,UKRI - MRC,09/04/2019,Research Grant Expenditure,NMHB Other,Cardiff University (Research Awards,98426563,146407.11,Research Grant Expenditure
BEIS,UKRI - Research England,16/04/2019,Research Grant Expenditure,RE- GCRF,Lancaster University,98459411,146218.59,Research Grant Expenditure
BEIS,UKRI - Research England,16/04/2019,Research Grant Expenditure,RE- Quality Research (QR),London Business School,98459309,146128.68,Research Grant Expenditure
BEIS,UKRI - NERC,23/04/2019,Training Awards - Postgraduates,NERC - SO Post Graduate Training DTP's,Lancaster University,98460596,145318.00,Training Awards - Postgraduates
BEIS,UKRI - NERC,12/04/2019,Projects CIP,NERC - BAS New Polar Research Vessel / AP,BAM Nuttall Ltd,98461798,145000.00,Projects CIP
BEIS,UKRI - EPSRC,24/04/2019,Other Programme Costs,NC Physical Sciences,The University of Manchester,98465316,144488.57,Other Programme Costs
BEIS,UKRI - EPSRC,24/04/2019,Other Programme Costs,NC Physical Sciences,The University of Manchester,98465318,144488.57,Other Programme Costs
BEIS,UKRI - Innovate UK,18/04/2019,External Programmes,Transport,CENEX,31376,144399.43,External Programmes
BEIS,UKRI - MRC,09/04/2019,Fellowships,MRC Funded Extramural Fellowships,University of Oxford,98429108,144329.41,Fellowships
BEIS,UKRI - MRC,12/04/2019,Asset Clearing,Central Fixed Assets LMB,Moorfield Nanotechnology Limited,98453654,144000,Asset Clearing
BEIS,UKRI - MRC,09/04/2019,Research Grant Expenditure,Stratified Medicine,University of Bristol GRANT,98430207,143439.74,Research Grant Expenditure
BEIS,UKRI - EPSRC,24/04/2019,Training Awards - Postgraduates,NC Engineering,University of Southampton GRANT,98455744,143190.63,Training Awards - Postgraduates
BEIS,UKRI - MRC,09/04/2019,Research Grant Expenditure,NMHB Other,King's College London,98429747,141667.33,Research Grant Expenditure
BEIS,UKRI - Innovate UK,17/04/2019,Resource grants,APC,DELTA MOTORSPORT,31175,141318.17,Resource grants
BEIS,UKRI - Innovate UK,05/04/2019,Resource grants,APC,ARIEL MOTOR COMPANY (AUTOMOTIVE) LTD,29265,140971.72,Resource grants
BEIS,UKRI - Innovate UK,04/04/2019,Resource grants,CHALLENGE - Robotics,SOIL MACHINE DYNAMICS LIMITED,29088,140957.20,Resource grants
BEIS,UKRI - BBSRC,12/04/2019,PAYE Payable Salaries,Balance Sheet,HM Revenue & Customs,98462047,140928.40,PAYE Payable Salaries
BEIS,UKRI - ESRC,12/04/2019,Training Awards - Postgraduates,Skills and Methods,University of Warwick,98453978,140808.75,Training Awards - Postgraduates
BEIS,UKRI - BBSRC,24/04/2019,Research Institutes - Capital Grants: Major Works,Estates - Projects,EMBL (European Molecular Biology Laboratory),98468763,140672.34,Research Institutes - Capital Grants: Major Works
BEIS,UKRI - ESRC,12/04/2019,Training Awards - Postgraduates,Skills and Methods,University of Nottingham GRANT,98453969,140321.00,Training Awards - Postgraduates
BEIS,UKRI - EPSRC,24/04/2019,Training Awards - Postgraduates,Non Theme Specific,University of Liverpool GRANT,98455839,140093.18,Training Awards - Postgraduates
BEIS,UKRI - Research England,16/04/2019,Research Grant Expenditure,RE - NCUB,National Centre for Universities and Business (NCUB),98463207,140000.00,Research Grant Expenditure
BEIS,UKRI - STFC,11/04/2019,Commercial Funding Costs,Diamond Light Source (Administration),Diamond Light Source Ltd,98461567,140000.00,Commercial Funding Costs
BEIS,UKRI - Research England,16/04/2019,Research Grant Expenditure,RE - Connecting Capability Fund,University of York,98459684,139534.34,Research Grant Expenditure
BEIS,UKRI - Innovate UK,01/04/2019,CPS Development,BICC Programme,CAPGEMINI UK PLC,29010,139363.20,CPS Development
BEIS,UKRI - NERC,23/04/2019,Transport Operating Costs,FAAM,BAE Systems (Operations) Ltd,98467473,139200.00,Transport Operating Costs
BEIS,UKRI - Research England,16/04/2019,Research Grant Expenditure,RE - Connecting Capability Fund,University of Leeds,98459683,138957.00,Research Grant Expenditure
BEIS,UKRI - STFC,08/04/2019,Projects CIP,Infrastructure - DI,Logicalis Uk Ltd,98457379,138773.08,Projects CIP
BEIS,UKRI - Research England,16/04/2019,Research Grant Expenditure,RE- HEIF,University of Salford,98459550,138585.98,Research Grant Expenditure
BEIS,UKRI - Innovate UK,11/04/2019,Resource grants,Transport,COSTAIN LIMITED,30321,137804.13,Resource grants
BEIS,UKRI - Innovate UK,26/04/2019,Resource grants,Advanced Therapies,JOINTMEDICA LIMITED,31723,137720.12,Resource grants
BEIS,UKRI - MRC,09/04/2019,Research Grant Expenditure,Translational Growth Other,University of Oxford,98429905,137534.99,Research Grant Expenditure
BEIS,UKRI - Research England,16/04/2019,Research Grant Expenditure,RE- HEIF,University of Portsmouth,98459540,137336.78,Research Grant Expenditure
BEIS,UKRI - MRC,09/04/2019,Research Grant Expenditure,Strategy Grants,University of Leicester GRANT,98426600,137256.7,Research Grant Expenditure
BEIS,UKRI - MRC,09/04/2019,Research Grant Expenditure,Translational Growth Other,University of Nottingham,98430328,137162.81,Research Grant Expenditure
BEIS,UKRI - Research England,16/04/2019,Research Grant Expenditure,RE- GCRF,Loughborough University,98459425,136563.07,Research Grant Expenditure
BEIS,UKRI - EPSRC,24/04/2019,Training Awards - Postgraduates,Energy Engineering,University of Surrey GRANT,98455157,136345.33,Training Awards - Postgraduates
BEIS,UKRI - MRC,09/04/2019,Research Grant Expenditure,IIB Other,London School of Hygiene & Tropical Medicine,98430269,136268.9,Research Grant Expenditure
BEIS,UKRI - NERC,04/04/2019,Projects CIP,NERC - NOC Long Term Maintenance,SPIE Facilities Ltd,98455383,135137.28,Projects CIP
BEIS,UKRI - STFC,02/04/2019,Projects CIP,ISIS Accelerator,DMG MORI UK Ltd,98452491,134786.40,Projects CIP
BEIS,UKRI - EPSRC,24/04/2019,Training Awards - Postgraduates,NC Engineering,University of Sheffield GRANT,98454655,134747.97,Training Awards - Postgraduates
BEIS,UKRI - EPSRC,24/04/2019,Training Awards - Postgraduates,Non Theme Specific,University of Southampton GRANT,98455957,134722.87,Training Awards - Postgraduates
BEIS,UKRI - Central,01/04/2019,Computer Software,UKRI - PSU IT Costs/BAU,Box.com (UK) Ltd,98452823,134619.12,Computer Software
BEIS,UKRI - MRC,09/04/2019,Research Grant Expenditure,Newton Fund,Cardiff University (Research Awards,98430455,134443.26,Research Grant Expenditure
BEIS,UKRI - MRC,09/04/2019,Research Grant Expenditure,IIB Other,University of Oxford,98430015,133699.1,Research Grant Expenditure
BEIS,UKRI - Innovate UK,11/04/2019,Resource grants,Medicines Manufacturing,UNIVERSITY OF MANCHESTER,30343,133469.13,Resource grants
BEIS,UKRI - Innovate UK,05/04/2019,Resource grants,Aerospace,NCC OPERATIONS LTD,29456,133229.91,Resource grants
BEIS,UKRI - Research England,16/04/2019,Research Grant Expenditure,RE- GCRF,University of Reading,98459441,133188.58,Research Grant Expenditure
BEIS,UKRI - NERC,23/04/2019,Vehicle Leasing Costs,NERC - BAS Ships Operations,GC Rieber Shipping AS,98459882,133000.00,Vehicle Leasing Costs
BEIS,UKRI - EPSRC,24/04/2019,Training Awards - Postgraduates,Non Theme Specific,King's College London,98455852,132984.13,Training Awards - Postgraduates
BEIS,UKRI - Research England,16/04/2019,Research Grant Expenditure,RE- GCRF,University of Leicester,98459414,132513.29,Research Grant Expenditure
BEIS,UKRI - Innovate UK,11/04/2019,Resource grants,Aerospace,ALTAIR ENGINEERING LTD,30405,132433.03,Resource grants
BEIS,UKRI - Innovate UK,17/04/2019,Resource grants,Medicines Manufacturing,HEALTHERA,31069,132185.90,Resource grants
BEIS,UKRI - Research England,16/04/2019,Research Grant Expenditure,RE - Connecting Capability Fund,University of Essex,98459680,132164.00,Research Grant Expenditure
BEIS,UKRI - MRC,09/04/2019,Research Grant Expenditure,MCMB Other,University of Oxford,98429641,132103.22,Research Grant Expenditure
BEIS,UKRI - MRC,09/04/2019,Research Grant Expenditure,NMHB Other,University College London GRANT,98426608,131729.06,Research Grant Expenditure
BEIS,UKRI - EPSRC,24/04/2019,Training Awards - Postgraduates,Non Theme Specific,Heriot-Watt University GRANT,98455850,131180.26,Training Awards - Postgraduates
BEIS,UKRI - MRC,09/04/2019,Fellowships,MRC Funded Extramural Fellowships,University of Edinburgh,98429106,131006.1,Fellowships
BEIS,UKRI - EPSRC,24/04/2019,Training Awards - Postgraduates,NC Engineering,University of Leeds GRANT,98455742,130970.09,Training Awards - Postgraduates
BEIS,UKRI - MRC,09/04/2019,Research Grant Expenditure,Other Projects,Liverpool School of Tropical Medicine,98426621,130558.94,Research Grant Expenditure
BEIS,UKRI - MRC,09/04/2019,Research Grant Expenditure,Stratified Medicine,University of Oxford,98426546,130488.84,Research Grant Expenditure
BEIS,UKRI - EPSRC,24/04/2019,Training Awards - Postgraduates,Non Theme Specific,University of Warwick,98455968,130392.60,Training Awards - Postgraduates
BEIS,UKRI - MRC,09/04/2019,Research Grant Expenditure,Translational Growth Other,University of Leicester GRANT,98426605,130094.57,Research Grant Expenditure
BEIS,UKRI - MRC,09/04/2019,Research Grant Expenditure,Translational Growth Other,University College London GRANT,98430130,129872.13,Research Grant Expenditure
BEIS,UKRI - Research England,16/04/2019,Research Grant Expenditure,RE - Connecting Capability Fund,The University of Manchester,98459681,129833.00,Research Grant Expenditure
BEIS,UKRI - Research England,16/04/2019,Research Grant Expenditure,RE- Quality Research (QR),University of East London,98459625,129714.51,Research Grant Expenditure
BEIS,UKRI - EPSRC,24/04/2019,Training Awards - Postgraduates,NC Engineering,University of Leeds GRANT,98454662,129564.46,Training Awards - Postgraduates
BEIS,UKRI - EPSRC,24/04/2019,Training Awards - Postgraduates,Non Theme Specific,The University of Manchester GRANT,98455951,129326.19,Training Awards - Postgraduates
BEIS,UKRI - Innovate UK,26/04/2019,Resource grants,Transport,Magnetic Systems Technology Limited,31744,129150.04,Resource grants
BEIS,UKRI - ESRC,12/04/2019,Training Awards - Postgraduates,Skills and Methods,University of Southampton GRANT,98453975,129035.00,Training Awards - Postgraduates
BEIS,UKRI - MRC,09/04/2019,Research Grant Expenditure,Translational Growth Other,Imperial College (Research Awards),98430163,129005.45,Research Grant Expenditure
BEIS,UKRI - MRC,09/04/2019,Research Grant Expenditure,MCMB Human Cell Atlas - Strategic Priorities Fund,University of Cambridge,98430435,128904.71,Research Grant Expenditure
BEIS,UKRI - MRC,09/04/2019,Research Grant Expenditure,NMHB Other,University of Oxford,98429984,128876.86,Research Grant Expenditure
BEIS,UKRI - MRC,09/04/2019,Research Grant Expenditure,Translational Growth Other,University of Oxford,98429834,128691.85,Research Grant Expenditure
BEIS,UKRI - BBSRC,09/04/2019,Subsidiaries Expenditure,Pirbright,The Pirbright Institute,98458418,128571.00,Subsidiaries Expenditure
BEIS,UKRI - BBSRC,16/04/2019,Subsidiaries Expenditure,Innovation and Skills Group,University of Nottingham,98464075,128571.00,Subsidiaries Expenditure
BEIS,UKRI - STFC,12/04/2019,Projects CIP,ESS,Mega Industries LLC,98391699,128569.01,Projects CIP
BEIS,UKRI - BBSRC,01/04/2019,Subsidiaries Expenditure,Innovation and Skills Group,University of Edinburgh,98451810,128513.60,Subsidiaries Expenditure
BEIS,UKRI - NERC,10/04/2019,Capital Grants & Equipment to HEIs,NERC - BGS NERC Services & Facilities,University of Bristol,98459963,128300.00,Capital Grants & Equipment to HEIs
BEIS,UKRI - MRC,09/04/2019,Research Grant Expenditure,NMHB Other,University College London GRANT,98430018,127922.8,Research Grant Expenditure
BEIS,UKRI - EPSRC,24/04/2019,Training Awards - Postgraduates,NC ICT,Loughborough University GRANT,98455703,127920.79,Training Awards - Postgraduates
BEIS,UKRI - Research England,16/04/2019,Research Grant Expenditure,RE- GCRF,University of Bath,98459364,127199.85,Research Grant Expenditure
BEIS,UKRI - MRC,09/04/2019,Research Grant Expenditure,IIB Other,Imperial College (Research Awards),98430014,127055.59,Research Grant Expenditure
BEIS,UKRI - MRC,09/04/2019,Research Grant Expenditure,IIB Other,University of Birmingham GRANT,98430013,126719.38,Research Grant Expenditure
BEIS,UKRI - MRC,09/04/2019,Research Grant Expenditure,Translational Growth Other,University College London GRANT,98430260,126650.08,Research Grant Expenditure
BEIS,UKRI - Innovate UK,11/04/2019,Resource grants,Aerospace,ALTAIR ENGINEERING LTD,30406,126222.53,Resource grants
BEIS,UKRI - Innovate UK,11/04/2019,Resource grants,Advanced Therapies,GENEDRIVE PLC,30345,126144.59,Resource grants
BEIS,UKRI - STFC,01/04/2019,Non-Capital Building Construction,"RAL - Maintenance - Buildings, Grounds & Roads",Vinci Construction UK Ltd,98450338,126000.06,Non-Capital Building Construction
BEIS,UKRI - AHRC,25/04/2019,Training Awards - Postgraduates,BGP Award,University College London,98456636,125993.18,Training Awards - Postgraduates
BEIS,UKRI - MRC,09/04/2019,Research Grant Expenditure,MCMB Other,University College London GRANT,98430419,125670.16,Research Grant Expenditure
BEIS,UKRI - MRC,09/04/2019,Research Grant Expenditure,PSMB Other,University of Cambridge,98429804,125323.22,Research Grant Expenditure
BEIS,UKRI - MRC,09/04/2019,Research Grant Expenditure,IIB Other,University of Birmingham GRANT,98430468,125212.21,Research Grant Expenditure
BEIS,UKRI - BBSRC,29/04/2019,Research Institutes - Capital Grants: Major Works,JIC,John Innes Centre,98461646,125173.97,Research Institutes - Capital Grants: Major Works
BEIS,UKRI - BBSRC,04/04/2019,Subsidiaries Expenditure,Innovation and Skills Group,University of Lincoln,98456528,125159.19,Subsidiaries Expenditure
BEIS,UKRI - MRC,09/04/2019,Fellowships,MRC Funded Extramural Fellowships,Wellcome Trust Sanger Institute,98429339,125045.21,Fellowships
BEIS,UKRI - EPSRC,24/04/2019,Training Awards - Postgraduates,Non Theme Specific,University of Cambridge,98455915,124944.00,Training Awards - Postgraduates
BEIS,UKRI - NERC,23/04/2019,Provision for Early Retirement Liability,NERC - SO Restructuring 100% Centrally Funded,RCPS Pension,98460366,124814.56,Provision for Early Retirement Liability
BEIS,UKRI - MRC,09/04/2019,Fellowships,MRC Funded Extramural Fellowships,University of Edinburgh,98429044,124655.88,Fellowships
BEIS,UKRI - Research England,16/04/2019,Research Grant Expenditure,RE- Quality Research (QR),St George's University of London,98459350,124616.29,Research Grant Expenditure
BEIS,UKRI - Research England,16/04/2019,Research Grant Expenditure,RE- HEIF,Nottingham Trent University,98459534,124244.03,Research Grant Expenditure
BEIS,UKRI - Research England,16/04/2019,Research Grant Expenditure,RE- HEIF,Middlesex University,98459529,124193.10,Research Grant Expenditure
BEIS,UKRI - AHRC,12/04/2019,NI Payable Salaries,Balance Sheet,HM Revenue & Customs,98460434,124170.12,NI Payable Salaries
BEIS,UKRI - Innovate UK,26/04/2019,Resource grants,Emerging Technologies,OXFORD HIGHQ LTD,31649,124059.77,Resource grants
BEIS,UKRI - Research England,16/04/2019,Research Grant Expenditure,RE - Connecting Capability Fund,Imperial College Science Tech & Med,98459686,123370.00,Research Grant Expenditure
BEIS,UKRI - MRC,18/04/2019,Grant - Special Contributions Capital,NMHB Prion,University College London,98467043,123206.52,Grant - Special Contributions Capital
BEIS,UKRI - Research England,16/04/2019,Research Grant Expenditure,RE- HEIF,Royal Veterinary College,98459549,123199.65,Research Grant Expenditure
BEIS,UKRI - Innovate UK,11/04/2019,Resource grants,Emerging Technologies,MAGWAY LIMITED,30369,122999.50,Resource grants
BEIS,UKRI - MRC,09/04/2019,Research Grant Expenditure,Translational Growth Other,Newcastle University,98430055,122955.53,Research Grant Expenditure
BEIS,UKRI - MRC,09/04/2019,Research Grant Expenditure,NMHB Other,Cardiff University (Research Awards,98429823,122703.89,Research Grant Expenditure
BEIS,UKRI - MRC,24/04/2019,Grant - Special Contributions,MCMB IGMM,University of Edinburgh,98468069,122500,Grant - Special Contributions
BEIS,UKRI - Research England,16/04/2019,Research Grant Expenditure,RE- HEIF,University of Bath,98459471,122342.78,Research Grant Expenditure
BEIS,UKRI - STFC,01/04/2019,Projects CIP,Infrastructure - RAL,Vinci Construction UK Ltd,98450338,122127.02,Projects CIP
BEIS,UKRI - MRC,09/04/2019,Research Grant Expenditure,Strategy Grants,The University of Manchester,98430116,122091.27,Research Grant Expenditure
BEIS,UKRI - Innovate UK,17/04/2019,Resource grants,Advanced Therapies,IONTAS LIMITED,31215,121972.21,Resource grants
BEIS,UKRI - MRC,09/04/2019,Research Grant Expenditure,IIB Other,University of Edinburgh,98430016,121816.62,Research Grant Expenditure
BEIS,UKRI - ESRC,12/04/2019,Training Awards - Postgraduates,Skills and Methods,King's College London GRANT,98453966,121779.00,Training Awards - Postgraduates
BEIS,UKRI - MRC,09/04/2019,Research Grant Expenditure,NMHB Other,University College London GRANT,98426557,121667.83,Research Grant Expenditure
BEIS,UKRI - BBSRC,17/04/2019,Research Institutes - Capital Grants: Major Works,IFR,Quadram Institute Bioscience,98459930,121433.25,Research Institutes - Capital Grants: Major Works
BEIS,UKRI - EPSRC,24/04/2019,Training Awards - Postgraduates,NC ICT,University of York GRANT,98454678,121362.38,Training Awards - Postgraduates
BEIS,UKRI - EPSRC,24/04/2019,Training Awards - Postgraduates,Digital Economy Digital Economy,University of York GRANT,98454678,121362.36,Training Awards - Postgraduates
BEIS,UKRI - NERC,08/04/2019,Asset Clearing,NERC - BAS ALI Adjustments,"Droplet Measurement Technologies, LLC",98454053,121313.94,Asset Clearing
BEIS,UKRI - Research England,16/04/2019,Capital Grants & Equipment to HEIs,RE - UK RPIF,Cranfield University,98459674,121000.00,Capital Grants & Equipment to HEIs
BEIS,UKRI - ESRC,12/04/2019,Training Awards - Postgraduates,Skills and Methods,University of Birmingham GRANT,98453963,120435.01,Training Awards - Postgraduates
BEIS,UKRI - EPSRC,24/04/2019,Training Awards - Postgraduates,Non Theme Specific,"University of Wales, Cardiff - UWC",98455990,120103.77,Training Awards - Postgraduates
BEIS,UKRI - NERC,03/04/2019,Computer Software Licences,Research Technical Services - Licenses & Maintenance,Esri (Uk) Ltd,98450506,120000.00,Computer Software Licences
BEIS,UKRI - STFC,02/04/2019,Other Programme Costs,Impact Acceleration Accounts,Imperial College London,98452562,120000.00,Other Programme Costs
BEIS,UKRI - STFC,04/04/2019,Other Programme Costs,Impact Acceleration Accounts,University of Warwick,98455234,120000.00,Other Programme Costs
BEIS,UKRI - STFC,09/04/2019,Other Programme Costs,Impact Acceleration Accounts,University of Hertfordshire,98458941,120000.00,Other Programme Costs
BEIS,UKRI - STFC,17/04/2019,Other Programme Costs,Impact Acceleration Accounts,University of Sheffield,98465347,120000.00,Other Programme Costs
BEIS,UKRI - STFC,18/04/2019,Other Programme Costs,Impact Acceleration Accounts,Lancaster University,98466142,120000.00,Other Programme Costs
BEIS,UKRI - MRC,30/04/2019,Other Bought In Services,Comm Fund MRC HO,Unspecified,98471965,120000,Other Bought In Services
BEIS,UKRI - BBSRC,23/04/2019,Research Grant Expenditure,Science Group,UKRI - Medical Research Council,98456967,119522.53,Research Grant Expenditure
BEIS,UKRI - Innovate UK,01/04/2019,Workshops/Sandpits,Newton,MATTER INNOVATION LIMITED,29752,119400.00,Workshops/Sandpits
BEIS,UKRI - EPSRC,24/04/2019,Training Awards - Postgraduates,NC Engineering,University of Sheffield GRANT,98454661,119386.69,Training Awards - Postgraduates
BEIS,UKRI - EPSRC,24/04/2019,Training Awards - Postgraduates,Non Theme Specific,University of Surrey GRANT,98456013,118882.47,Training Awards - Postgraduates
BEIS,UKRI - MRC,09/04/2019,Research Grant Expenditure,Strategy Grants,London School of Hygiene & Tropical Medicine,98430493,118844.08,Research Grant Expenditure
BEIS,UKRI - Research England,16/04/2019,Research Grant Expenditure,RE - Connecting Capability Fund,University of Durham,98459689,118753.00,Research Grant Expenditure
BEIS,UKRI - Central,02/04/2019,Secondments,UKRI - Human Resources Support,UKRI - Science & Technology Facilities Council,98451679,118714.00,Secondments
BEIS,UKRI - MRC,10/04/2019,Grant - Special Contributions,Translation P&C,University of Oxford,98450337,118648.93,Grant - Special Contributions
BEIS,UKRI - EPSRC,24/04/2019,Training Awards - Postgraduates,NC Physical Sciences,King's College London,98455749,118492.34,Training Awards - Postgraduates
BEIS,UKRI - Innovate UK,11/04/2019,Resource grants,Aerospace,NCC OPERATIONS LTD,30403,118252.13,Resource grants
BEIS,UKRI - MRC,09/04/2019,Research Grant Expenditure,Translational Growth Other,University of Cambridge,98429740,118188.52,Research Grant Expenditure
BEIS,UKRI - NERC,18/04/2019,Projects CIP,NERC - BAS New Polar Research Vessel / AP,BAM Nuttall Ltd,98461799,118000.00,Projects CIP
BEIS,UKRI - MRC,23/04/2019,Maintenance of Research & Scientific Equipment,Laboratory Management LMB,Beckman Coulter UK Ltd,98466294,117978.1,Maintenance of Research & Scientific Equipment
BEIS,UKRI - NERC,12/04/2019,Projects CIP,NERC - NOC NMFSS Capital (Excluding NMEP),Kongsberg Maritime Ltd,98450815,117970.00,Projects CIP
BEIS,UKRI - AHRC,25/04/2019,Training Awards - Postgraduates,BGP Award,Royal College of Art,98456650,117678.49,Training Awards - Postgraduates
BEIS,UKRI - MRC,09/04/2019,Research Grant Expenditure,IIB Other,University of Southampton GRANT,98429774,117374.34,Research Grant Expenditure
BEIS,UKRI - MRC,09/04/2019,Research Grant Expenditure,IIB Other,University of Bristol GRANT,98429756,117077.53,Research Grant Expenditure
BEIS,UKRI - EPSRC,24/04/2019,Training Awards - Postgraduates,Non Theme Specific,Lancaster University GRANT,98455853,116946.80,Training Awards - Postgraduates
BEIS,UKRI - AHRC,25/04/2019,Training Awards - Postgraduates,BGP Award,University of the West of England,98456634,116788.61,Training Awards - Postgraduates
BEIS,UKRI - STFC,24/04/2019,Projects CIP,National Laboratories Core (Programme),Vinci Construction UK Ltd,98466782,116517.48,Projects CIP
BEIS,UKRI - MRC,09/04/2019,Research Grant Expenditure,PSMB Other,St George's University of London,98430036,116493.57,Research Grant Expenditure
BEIS,UKRI - EPSRC,24/04/2019,Training Awards - Postgraduates,Non Theme Specific,University of St Andrews GRANT,98455845,116483.86,Training Awards - Postgraduates
BEIS,UKRI - Central,02/04/2019,Recharges From Councils - General,UKRI - Governance,UKRI - Medical Research Council,98451654,116120.00,Recharges From Councils - General
BEIS,UKRI - MRC,09/04/2019,Research Grant Expenditure,Translational Growth Other,University of Edinburgh,98429899,115903.31,Research Grant Expenditure
BEIS,UKRI - MRC,09/04/2019,Research Grant Expenditure,IIB Other,Liverpool School of Tropical Medicine,98426597,114907.31,Research Grant Expenditure
BEIS,UKRI - BBSRC,17/04/2019,Research Institutes - Competitive Strategic Grant,TGAC,Earlham Institute,98459925,114572.67,Research Institutes - Competitive Strategic Grant
BEIS,UKRI - Research England,16/04/2019,Research Grant Expenditure,RE- Quality Research (QR),Birmingham City University,98459601,114521.32,Research Grant Expenditure
BEIS,UKRI - Research England,16/04/2019,Research Grant Expenditure,RE- GCRF,University of East Anglia,98459391,114225.03,Research Grant Expenditure
BEIS,UKRI - STFC,10/04/2019,Projects CIP,Infrastructure - DI,Unspecified,98460743,114105.60,Projects CIP
BEIS,UKRI - Research England,16/04/2019,Research Grant Expenditure,RE- Quality Research (QR),Leeds Beckett University,98459299,113664.60,Research Grant Expenditure
BEIS,UKRI - NERC,10/04/2019,Projects CIP,NERC - NOC MARS Capital,Teledyne Gavia ehf,98460783,113416.09,Projects CIP
BEIS,UKRI - Research England,16/04/2019,Research Grant Expenditure,RE- HEIF,University of Hull,98459504,113352.53,Research Grant Expenditure
BEIS,UKRI - EPSRC,24/04/2019,Training Awards - Postgraduates,ISCF Batteries Institute,The Faraday Institution,98456061,112816.47,Training Awards - Postgraduates
BEIS,UKRI - EPSRC,24/04/2019,Training Awards - Postgraduates,Non Theme Specific,University of Cambridge,98455884,112764.26,Training Awards - Postgraduates
BEIS,UKRI - Central,02/04/2019,Secondments,UKRI - Strategic Finance Business Partners,UKRI - Science & Technology Facilities Council,98451676,112544.00,Secondments
BEIS,UKRI - NERC,09/04/2019,Projects CIP,NERC - BAS New Polar Research Vessel / AP,BAM Nuttall Ltd,98447662,112314.06,Projects CIP
BEIS,UKRI - MRC,17/04/2019,Grant - Special Contributions Capital,PSMB BSU,University of Cambridge,98465160,112201.67,Grant - Special Contributions Capital
BEIS,UKRI - STFC,23/04/2019,Projects CIP,ISIS Instrumentation,Tessella Ltd,98458423,111908.52,Projects CIP
BEIS,UKRI - ESRC,12/04/2019,Training Awards - Postgraduates,Skills and Methods,University of Sussex GRANT,98453976,111495.50,Training Awards - Postgraduates
BEIS,UKRI - NERC,01/04/2019,Projects CIP,NERC - NOC NMEP Capital,Rockland Scientific International,98444398,111434.76,Projects CIP
BEIS,UKRI - Innovate UK,26/04/2019,Resource grants,Transport,SMART COMPONENT TECHNOLOGIES LIMITED,31715,111433.02,Resource grants
BEIS,UKRI - Innovate UK,11/04/2019,Resource grants,Resp - Smart,GENEFIRST LTD,30424,111287.24,Resource grants
BEIS,UKRI - STFC,23/04/2019,Projects CIP,ISIS Instrumentation,Tessella Ltd,98463599,111163.42,Projects CIP
BEIS,UKRI - BBSRC,17/04/2019,Research Institutes - Competitive Strategic Grant,Rothamsted Research,Rothamsted Research Ltd,98460308,111160.53,Research Institutes - Competitive Strategic Grant
BEIS,UKRI - Research England,16/04/2019,Research Grant Expenditure,RE- Quality Research (QR),Royal College of Art,98459338,110942.31,Research Grant Expenditure
BEIS,UKRI - Innovate UK,17/04/2019,Resource grants,APC,ADVANCED INNOVATIVE ENGINEERING (UK) LTD,31172,110754.70,Resource grants
BEIS,UKRI - EPSRC,24/04/2019,Training Awards - Postgraduates,Non Theme Specific,University of York GRANT,98456014,110616.80,Training Awards - Postgraduates
BEIS,UKRI - Research England,16/04/2019,Research Grant Expenditure,RE- GCRF,University of Kent,98459408,110608.96,Research Grant Expenditure
BEIS,UKRI - Innovate UK,11/04/2019,Resource grants,ISCF - EE,BMLL TECHNOLOGIES LTD,30290,110599.97,Resource grants
BEIS,UKRI - MRC,09/04/2019,Research Grant Expenditure,Translational Growth Other,University of Cambridge,98429711,110597.37,Research Grant Expenditure
BEIS,UKRI - NERC,24/04/2019,Asset Clearing,NERC - BAS ICT IT,Dell Corporation Ltd,98468751,110397.60,Asset Clearing
BEIS,UKRI - AHRC,25/04/2019,Training Awards - Postgraduates,BGP Award,University of Reading,98456646,110381.22,Training Awards - Postgraduates
BEIS,UKRI - Research England,16/04/2019,Research Grant Expenditure,RE- HEIF,London School of Hygiene & Tropical Medicine,98459524,110180.78,Research Grant Expenditure
BEIS,UKRI - MRC,09/04/2019,Research Grant Expenditure,PSMB Other,Imperial College (Research Awards),98430189,109826.04,Research Grant Expenditure
BEIS,UKRI - MRC,09/04/2019,Research Grant Expenditure,NMHB Other,King's College London,98426612,109613.19,Research Grant Expenditure
BEIS,UKRI - MRC,09/04/2019,Research Grant Expenditure,Newton Fund,University of Birmingham GRANT,98430449,109315.08,Research Grant Expenditure
BEIS,UKRI - EPSRC,12/04/2019,NI Payable Salaries,Balance Sheet,HM Revenue & Customs,98460827,109308.63,NI Payable Salaries
BEIS,UKRI - ESRC,12/04/2019,PAYE Payable Salaries,Balance Sheet,HM Revenue & Customs,98462125,109232.66,PAYE Payable Salaries
BEIS,UKRI - Research England,16/04/2019,Research Grant Expenditure,RE- Quality Research (QR),Anglia Ruskin University,98459592,109216.01,Research Grant Expenditure
BEIS,UKRI - EPSRC,24/04/2019,Training Awards - Postgraduates,NC Engineering,University of Southampton GRANT,98454650,109185.96,Training Awards - Postgraduates
BEIS,UKRI - MRC,09/04/2019,Research Grant Expenditure,PSMB Other,University of Oxford,98430431,109164.35,Research Grant Expenditure
BEIS,UKRI - MRC,09/04/2019,Research Grant Expenditure,PSMB Other,University of Oxford,98430431,109164.35,Research Grant Expenditure
BEIS,UKRI - MRC,09/04/2019,Research Grant Expenditure,PSMB Other,University of Oxford,98430431,109164.35,Research Grant Expenditure
BEIS,UKRI - Innovate UK,11/04/2019,Resource grants,Emerging Technologies,ISOTROPIC SYSTEMS LTD,30367,109162.97,Resource grants
BEIS,UKRI - Research England,16/04/2019,Research Grant Expenditure,RE- Quality Research (QR),University of Bedfordshire,98459598,108067.11,Research Grant Expenditure
BEIS,UKRI - MRC,09/04/2019,Research Grant Expenditure,Translational Growth Other,The University of Manchester,98430037,107951.69,Research Grant Expenditure
BEIS,UKRI - EPSRC,24/04/2019,Training Awards - Postgraduates,Non Theme Specific,University of Edinburgh,98455946,107739.51,Training Awards - Postgraduates
BEIS,UKRI - EPSRC,24/04/2019,Training Awards - Postgraduates,Non Theme Specific,University of Durham GRANT,98455849,107573.20,Training Awards - Postgraduates
BEIS,UKRI - MRC,09/04/2019,Research Grant Expenditure,IIB Other,University of Aberdeen (Research Aw,98429638,107473.98,Research Grant Expenditure
BEIS,UKRI - EPSRC,24/04/2019,Training Awards - Postgraduates,NPIF 2018 PhD Students,ICSTM,98456122,107383.33,Training Awards - Postgraduates
BEIS,UKRI - MRC,09/04/2019,Research Grant Expenditure,PSMB Other,Cardiff University (Research Awards,98426607,107153.82,Research Grant Expenditure
BEIS,UKRI - MRC,09/04/2019,Research Grant Expenditure,PSMB Other,Imperial College (Research Awards),98430301,107141.63,Research Grant Expenditure
BEIS,UKRI - Central,05/04/2019,Asset Clearing,UKRI - Digital Data and Technology Project Costs,Logicalis Uk Ltd,98457885,107116.31,Asset Clearing
BEIS,UKRI - Research England,16/04/2019,Research Grant Expenditure,RE- GCRF,London School of Hygiene & Tropical Medicine,98459423,107113.68,Research Grant Expenditure
BEIS,UKRI - Innovate UK,04/04/2019,Resource grants,CHALLENGE - Robotics,SOIL MACHINE DYNAMICS LIMITED,29089,107010.35,Resource grants
BEIS,UKRI - Research England,16/04/2019,Research Grant Expenditure,RE- HEIF,The Conservatoire for Dance and Drama,98459486,106945.35,Research Grant Expenditure
BEIS,UKRI - MRC,09/04/2019,Research Grant Expenditure,Translational Growth Other,University of Glasgow GRANT,98429691,106749.76,Research Grant Expenditure
BEIS,UKRI - MRC,09/04/2019,Capital Grants & Equipment to HEIs,Tissue Banking,University of Glasgow GRANT,98430102,106721.31,Capital Grants & Equipment to HEIs
BEIS,UKRI - MRC,09/04/2019,Research Grant Expenditure,NMHB Other,Imperial College (Research Awards),98426611,106564.78,Research Grant Expenditure
BEIS,UKRI - Central,02/04/2019,Recharges From Councils - General,UKRI - Procurement and Commercial,UKRI - Science & Technology Facilities Council,98452696,106379.00,Recharges From Councils - General
BEIS,UKRI - EPSRC,24/04/2019,Training Awards - Postgraduates,NC ICT,University of Bristol GRANT,98455727,106316.32,Training Awards - Postgraduates
BEIS,UKRI - EPSRC,24/04/2019,Training Awards - Postgraduates,NC Physical Sciences,University of Bristol GRANT,98455727,106316.31,Training Awards - Postgraduates
BEIS,UKRI - Innovate UK,26/04/2019,Resource grants,Aerospace,RENISHAW PLC,31500,106137.37,Resource grants
BEIS,UKRI - Innovate UK,05/04/2019,Resource grants,CG&I General,PASSIVSYSTEMS LIMITED,29291,106078.31,Resource grants
BEIS,UKRI - BBSRC,16/04/2019,Subsidiaries Expenditure,Innovation and Skills Group,University of Exeter,98464077,105880.88,Subsidiaries Expenditure
BEIS,UKRI - EPSRC,24/04/2019,Training Awards - Postgraduates,NC Engineering,University College London GRANT,98454654,105626.50,Training Awards - Postgraduates
BEIS,UKRI - EPSRC,24/04/2019,Training Awards - Postgraduates,Manufacturing Manufacturing,University College London GRANT,98454654,105626.47,Training Awards - Postgraduates
BEIS,UKRI - MRC,09/04/2019,Fellowships,MRC Funded Extramural Fellowships,University of Edinburgh,98429291,105585.89,Fellowships
BEIS,UKRI - MRC,09/04/2019,Capital Grants & Equipment to HEIs,Tissue Banking,University of Oxford,98430103,105553,Capital Grants & Equipment to HEIs
BEIS,UKRI - MRC,09/04/2019,Research Grant Expenditure,NMHB Other,University of Cambridge,98426609,105519.75,Research Grant Expenditure
BEIS,UKRI - NERC,15/04/2019,Projects CIP,NERC - NOC Ocean Technology & Engineering Capital,I and L Biosystems UK Ltd,98462633,105338.60,Projects CIP
BEIS,UKRI - Research England,16/04/2019,Research Grant Expenditure,RE- HEIF,Liverpool John Moores University,98459518,105332.18,Research Grant Expenditure
BEIS,UKRI - MRC,09/04/2019,Research Grant Expenditure,MCMB Other,University College London GRANT,98426562,105276.04,Research Grant Expenditure
BEIS,UKRI - Research England,16/04/2019,Research Grant Expenditure,RE- GCRF,University of Surrey,98459457,105220.07,Research Grant Expenditure
BEIS,UKRI - MRC,09/04/2019,Research Grant Expenditure,MCMB Other,University of Liverpool,98426558,104999.75,Research Grant Expenditure
BEIS,UKRI - MRC,01/04/2019,Research & Scientific Equipment,Unspecified,Essen BioScience,98451842,104979.64,Research & Scientific Equipment
BEIS,UKRI - MRC,09/04/2019,Research Grant Expenditure,MCMB Other,University of Warwick,98426568,104717.75,Research Grant Expenditure
BEIS,UKRI - MRC,09/04/2019,Research Grant Expenditure,MCMB Other,University of Cambridge,98429959,104669.39,Research Grant Expenditure
BEIS,UKRI - Research England,16/04/2019,Research Grant Expenditure,RE- Quality Research (QR),Canterbury Christ Church University,98459611,104545.87,Research Grant Expenditure
BEIS,UKRI - Innovate UK,01/04/2019,Post-grant evaluation,Economics and Insight,MARKET & OPINION RESEARCH INTERNATIONAL LTD,29058,104542.80,Post-grant evaluation
BEIS,UKRI - ESRC,12/04/2019,NI Payable Salaries,Balance Sheet,HM Revenue & Customs,98462127,104498.88,NI Payable Salaries
BEIS,UKRI - MRC,09/04/2019,Research Grant Expenditure,NMHB Other,Cardiff University (Research Awards,98429662,104448.73,Research Grant Expenditure
BEIS,UKRI - MRC,09/04/2019,Research Grant Expenditure,NMHB Other,University College London GRANT,98429883,104402.31,Research Grant Expenditure
BEIS,UKRI - Innovate UK,05/04/2019,Resource grants,Manufacturing,FARADION LTD,29170,104347.71,Resource grants
BEIS,UKRI - Research England,16/04/2019,Research Grant Expenditure,RE- GCRF,University of Sussex,98459458,104334.91,Research Grant Expenditure
BEIS,UKRI - Innovate UK,11/04/2019,Resource grants,Aerospace,GE AVIATION SYSTEMS LTD,30408,104163.06,Resource grants
BEIS,UKRI - Innovate UK,11/04/2019,Resource grants,ISCF - EE,RAWWATER ENGINEERING CO LTD,30288,103918.51,Resource grants
BEIS,UKRI - EPSRC,24/04/2019,Training Awards - Postgraduates,NC ICT,University of Newcastle upon Tyne GRANT,98455736,103871.23,Training Awards - Postgraduates
BEIS,UKRI - MRC,09/04/2019,Research Grant Expenditure,PSMB Other,Newcastle University,98426572,103763.04,Research Grant Expenditure
BEIS,UKRI - MRC,09/04/2019,Research Grant Expenditure,MCMB Human Cell Atlas - Strategic Priorities Fund,University of Cambridge,98430452,103628.15,Research Grant Expenditure
BEIS,UKRI - MRC,09/04/2019,Research Grant Expenditure,IIB Other,University College London GRANT,98426583,103581.97,Research Grant Expenditure
BEIS,UKRI - EPSRC,24/04/2019,Training Awards - Postgraduates,NC Engineering,University College London GRANT,98454659,103318.60,Training Awards - Postgraduates
BEIS,UKRI - EPSRC,24/04/2019,Training Awards - Postgraduates,Manufacturing Manufacturing,University College London GRANT,98454659,103318.57,Training Awards - Postgraduates
BEIS,UKRI - EPSRC,24/04/2019,Training Awards - Postgraduates,LWEC LWEC,University of Exeter GRANT,98454648,103315.14,Training Awards - Postgraduates
BEIS,UKRI - EPSRC,24/04/2019,Training Awards - Postgraduates,NC Engineering,University of Exeter GRANT,98454648,103315.14,Training Awards - Postgraduates
BEIS,UKRI - EPSRC,12/04/2019,PAYE Payable Salaries,Balance Sheet,HM Revenue & Customs,98460826,103121.32,PAYE Payable Salaries
BEIS,UKRI - NERC,23/04/2019,Training Awards - Postgraduates,Strategic Research Grants,Imperial College London,98461705,103099.13,Training Awards - Postgraduates
BEIS,UKRI - NERC,10/04/2019,Asset Clearing,NERC - BAS ICT IT,Unspecified,98459242,102993.12,Asset Clearing
BEIS,UKRI - Innovate UK,11/04/2019,Resource grants,Advanced Therapies,Imperial College London,30503,102880.31,Resource grants
BEIS,UKRI - MRC,09/04/2019,Research Grant Expenditure,MCMB Other,University of Cambridge,98429779,102807.89,Research Grant Expenditure
BEIS,UKRI - MRC,09/04/2019,Research Grant Expenditure,IIB Standard <= 3 Years,Imperial College (Research Awards),98426559,102778.38,Research Grant Expenditure
BEIS,UKRI - EPSRC,24/04/2019,Training Awards - Postgraduates,Non Theme Specific,University of Bath,98456003,102448.98,Training Awards - Postgraduates
BEIS,UKRI - NERC,05/04/2019,HEI Research Contracts,NCEO,University of Leicester,98448575,102427.97,HEI Research Contracts
BEIS,UKRI - BBSRC,01/04/2019,Subsidiaries Expenditure,JIC,John Innes Centre,98452857,102369.43,Subsidiaries Expenditure
BEIS,UKRI - MRC,09/04/2019,Fellowships,MRC Funded Extramural Fellowships,University of Cambridge,98429104,102185.01,Fellowships
BEIS,UKRI - MRC,09/04/2019,Research Grant Expenditure,MCMB Other,King's College London,98429981,101996.28,Research Grant Expenditure
BEIS,UKRI - MRC,09/04/2019,Research Grant Expenditure,MCMB Other,King's College London,98429981,101996.28,Research Grant Expenditure
BEIS,UKRI - MRC,09/04/2019,Research Grant Expenditure,MCMB Other,King's College London,98429981,101996.28,Research Grant Expenditure
BEIS,UKRI - MRC,09/04/2019,Research Grant Expenditure,MCMB Other,King's College London,98429981,101996.28,Research Grant Expenditure
BEIS,UKRI - Innovate UK,11/04/2019,Resource grants,Advanced Therapies,ELASMOGEN LTD,30259,101957.51,Resource grants
BEIS,UKRI - Innovate UK,11/04/2019,Resource grants,Connect Autonomous Vehicles,RICHMOND DESIGN AND MARKETING LTD,30263,101891.73,Resource grants
BEIS,UKRI - EPSRC,24/04/2019,Training Awards - Postgraduates,Energy Energy,University of Nottingham GRANT,98454658,101532.70,Training Awards - Postgraduates
BEIS,UKRI - Innovate UK,26/04/2019,Resource grants,Aerospace,RENISHAW PLC,31493,101304.43,Resource grants
BEIS,UKRI - Research England,16/04/2019,Research Grant Expenditure,RE- HEIF,University of Kent,98459508,101143.43,Research Grant Expenditure
BEIS,UKRI - EPSRC,24/04/2019,Training Awards - Postgraduates,Non Theme Specific,Loughborough University GRANT,98455994,100966.13,Training Awards - Postgraduates
BEIS,UKRI - MRC,09/04/2019,Research Grant Expenditure,PSMB Other,University of Oxford,98429698,100907.38,Research Grant Expenditure
BEIS,UKRI - MRC,09/04/2019,Research Grant Expenditure,PSMB Other,University College London GRANT,98429741,100905.3,Research Grant Expenditure
BEIS,UKRI - Innovate UK,26/04/2019,Resource grants,Aerospace,NCC OPERATIONS LTD,31532,100794.86,Resource grants
BEIS,UKRI - Innovate UK,05/04/2019,Resource grants,ISCF - MM,GLOBAL ROBOTS LTD,29181,100593.50,Resource grants
BEIS,UKRI - MRC,09/04/2019,Research Grant Expenditure,NMHB Other,King's College London,98430326,100531.07,Research Grant Expenditure
BEIS,UKRI - EPSRC,24/04/2019,Training Awards - Postgraduates,NC Physical Sciences,University of Bath,98454690,100456.05,Training Awards - Postgraduates
BEIS,UKRI - EPSRC,24/04/2019,Training Awards - Postgraduates,Non Theme Specific,University of Exeter GRANT,98455835,100433.85,Training Awards - Postgraduates
BEIS,UKRI - MRC,09/04/2019,Research Grant Expenditure,MCMB Other,University of Sussex GRANT,98429854,100429.95,Research Grant Expenditure
BEIS,UKRI - BBSRC,16/04/2019,Subsidiaries Expenditure,Innovation and Skills Group,CIELivestock Ltd,98464078,100000.00,Subsidiaries Expenditure
BEIS,UKRI - MRC,18/04/2019,Grant - Special Contributions Capital,NMHB ANU,University of Oxford,98467039,100000,Grant - Special Contributions Capital
BEIS,UKRI - MRC,09/04/2019,Research Grant Expenditure,NMHB Other,King's College London,98429998,99513.14,Research Grant Expenditure
BEIS,UKRI - MRC,09/04/2019,Fellowships,MRC Funded Extramural Fellowships,University of Cambridge,98429098,99498.31,Fellowships
BEIS,UKRI - Research England,16/04/2019,Research Grant Expenditure,RE- HEIF,Solent University Ltd,98459553,99326.25,Research Grant Expenditure
BEIS,UKRI - MRC,09/04/2019,Research Grant Expenditure,NMHB Other,University of Reading,98426616,99299.32,Research Grant Expenditure
BEIS,UKRI - MRC,09/04/2019,Fellowships,MRC Funded Extramural Fellowships,University of Edinburgh,98429002,99286.03,Fellowships
BEIS,UKRI - Research England,16/04/2019,Research Grant Expenditure,RE- HEIF,Staffordshire University,98459557,99275.40,Research Grant Expenditure
BEIS,UKRI - NERC,01/04/2019,Projects CIP,NERC - BGS UK GEO Capital - Project Owning,Boreal Laser Inc,98444938,99241.29,Projects CIP
BEIS,UKRI - BBSRC,16/04/2019,Subsidiaries Expenditure,Innovation and Skills Group,University of Newcastle Upon Tyne,98464074,99058.95,Subsidiaries Expenditure
BEIS,UKRI - BBSRC,09/04/2019,Subsidiaries Expenditure,TGAC,Earlham Institute,98458703,98966.57,Subsidiaries Expenditure
BEIS,UKRI - MRC,18/04/2019,Grant - Special Contributions,Other Projects,Association Of Medical Research Charities,98467053,98420,Grant - Special Contributions
BEIS,UKRI - EPSRC,24/04/2019,Training Awards - Postgraduates,Non Theme Specific,"University of Wales, Cardiff - UWC",98455847,98254.40,Training Awards - Postgraduates
BEIS,UKRI - EPSRC,24/04/2019,Training Awards - Postgraduates,NC ICT,Queen's University Belfast GRANT,98455754,98104.72,Training Awards - Postgraduates
BEIS,UKRI - MRC,09/04/2019,Research Grant Expenditure,Translational Growth Other,Newcastle University,98430372,98101.15,Research Grant Expenditure
BEIS,UKRI - MRC,09/04/2019,Research Grant Expenditure,IIB Other,University of Oxford,98426569,97873.59,Research Grant Expenditure
BEIS,UKRI - Innovate UK,17/04/2019,Resource grants,CG&I General,JAMES FISHER TESTING SERVICES,31072,97835.08,Resource grants
BEIS,UKRI - Central,09/04/2019,Legal & Professional Services,UKRI - Digital Data and Technology BAU Costs,UKRI - Science & Technology Facilities Council,98438696,97802.40,Legal & Professional Services
BEIS,UKRI - EPSRC,24/04/2019,Training Awards - Postgraduates,NC ICT,University of Warwick,98455697,97406.12,Training Awards - Postgraduates
BEIS,UKRI - MRC,09/04/2019,Research Grant Expenditure,PSMB Other,Imperial College (Research Awards),98430180,97239.75,Research Grant Expenditure
BEIS,UKRI - MRC,30/04/2019,Research Grant Expenditure,NC3Rs - CRACK-IT,ALCYOMICS LTD,98471804,97232.65,Research Grant Expenditure
BEIS,UKRI - MRC,18/04/2019,Grant - Special Contributions,Other Projects,The Nuffield Foundation,98467052,96994.25,Grant - Special Contributions
BEIS,UKRI - NERC,18/04/2019,Projects CIP,NERC - BGS UK GEO Capital - Project Owning,BAM Nuttall Ltd,98466921,96931.20,Projects CIP
BEIS,UKRI - MRC,09/04/2019,Research Grant Expenditure,PSMB Other,University of Nottingham,98429706,96929.62,Research Grant Expenditure
BEIS,UKRI - Research England,16/04/2019,Research Grant Expenditure,RE- HEIF,Teesside University,98459561,96849.75,Research Grant Expenditure
BEIS,UKRI - Innovate UK,11/04/2019,Resource grants,ISCF - EE,RAWWATER ENGINEERING CO LTD,30289,96729.49,Resource grants
BEIS,UKRI - MRC,09/04/2019,Research Grant Expenditure,MCMB Other,University of Dundee,98430303,96691.76,Research Grant Expenditure
BEIS,UKRI - STFC,01/04/2019,General Building Maintenance,RAL - Maintenance Outsourced Hard FM,Vinci Construction UK Ltd,98450338,96614.74,General Building Maintenance
BEIS,UKRI - Innovate UK,11/04/2019,Resource grants,Aerospace,GE AVIATION SYSTEMS LTD,30409,96435.91,Resource grants
BEIS,UKRI - MRC,09/04/2019,Research Grant Expenditure,Translational Growth Other,University of Cambridge,98429914,96389.04,Research Grant Expenditure
BEIS,UKRI - Research England,16/04/2019,Research Grant Expenditure,RE- Quality Research (QR),Liverpool Hope University,98459304,96302.31,Research Grant Expenditure
BEIS,UKRI - Research England,16/04/2019,Research Grant Expenditure,RE- HEIF,Aston University,98459470,96244.35,Research Grant Expenditure
BEIS,UKRI - STFC,18/04/2019,Projects CIP,ISIS Accelerator,Danfysik A/S,98465795,96000.00,Projects CIP
BEIS,UKRI - NERC,03/04/2019,Transport Operating Costs,FAAM,Directflight Ltd,98454371,95968.92,Transport Operating Costs
BEIS,UKRI - MRC,09/04/2019,Research Grant Expenditure,Translational Growth Other,University College London GRANT,98426591,95791.62,Research Grant Expenditure
BEIS,UKRI - MRC,09/04/2019,Research Grant Expenditure,IIB Other,Imperial College (Research Awards),98430271,95597.21,Research Grant Expenditure
BEIS,UKRI - Innovate UK,26/04/2019,Resource grants,Connect Autonomous Vehicles,WESTFIELD SPORTSCARS LTD,31522,95448.57,Resource grants
BEIS,UKRI - Innovate UK,17/04/2019,Resource grants,Medicines Manufacturing,CRYOGATT SYSTEMS LIMITED,31143,95209.41,Resource grants
BEIS,UKRI - NERC,12/04/2019,Projects CIP,NERC - NOC NMFSS Capital (Excluding NMEP),Kongsberg Maritime Ltd,98445757,95174.00,Projects CIP
BEIS,UKRI - MRC,09/04/2019,Research Grant Expenditure,Strategy Grants,University of Oxford,98430467,95168.44,Research Grant Expenditure
BEIS,UKRI - Research England,16/04/2019,Research Grant Expenditure,RE- GCRF,Brunel University London,98459376,95018.82,Research Grant Expenditure
BEIS,UKRI - Innovate UK,26/04/2019,Resource grants,Aerospace,RENISHAW PLC,31515,94855.29,Resource grants
BEIS,UKRI - EPSRC,24/04/2019,Training Awards - Postgraduates,Non Theme Specific,University of Nottingham GRANT,98455970,94813.36,Training Awards - Postgraduates
BEIS,UKRI - EPSRC,24/04/2019,Training Awards - Postgraduates,Non Theme Specific,University of Leeds GRANT,98455974,94813.36,Training Awards - Postgraduates
BEIS,UKRI - Research England,16/04/2019,Research Grant Expenditure,RE- GCRF,Royal Holloway & Bedford New C,98459446,94700.71,Research Grant Expenditure
BEIS,UKRI - STFC,01/04/2019,Grounds Maintenance,RAL - Building Services Design Team,Vinci Construction UK Ltd,98450338,94631.59,Grounds Maintenance
BEIS,UKRI - STFC,24/04/2019,General Building Maintenance,Infrastructure - DI,Vinci Construction UK Ltd,98466782,94598.14,General Building Maintenance
BEIS,UKRI - MRC,09/04/2019,Research Grant Expenditure,PSMB Other,University of Oxford,98429829,94486.27,Research Grant Expenditure
BEIS,UKRI - Innovate UK,11/04/2019,Resource grants,Advanced Therapies,CELL THERAPY CATAPULT LTD,30241,94369.04,Resource grants
BEIS,UKRI - MRC,09/04/2019,Research Grant Expenditure,MCMB Other,University of Nottingham,98429708,94257.94,Research Grant Expenditure
BEIS,UKRI - NERC,15/04/2019,Rates,NERC - CEH Facilities - Wallingford,South Oxfordshire District Council,98462338,94248.00,Rates
BEIS,UKRI - EPSRC,29/04/2019,Other Bought In Services,Programme Delivery Manufacturing,Technopolis Ltd,98471391,94245.60,Other Bought In Services
BEIS,UKRI - MRC,09/04/2019,Research Grant Expenditure,Strategy Grants,University College London GRANT,98429838,94210.4,Research Grant Expenditure
BEIS,UKRI - Innovate UK,11/04/2019,Resource grants,Medicines Manufacturing,ARC TRINOVA LIMITED,30384,94080.50,Resource grants
BEIS,UKRI - MRC,02/04/2019,Asset Clearing,SS Fixed Assets LMB,FEI UK Ltd,98453664,94000,Asset Clearing
BEIS,UKRI - EPSRC,24/04/2019,Training Awards - Postgraduates,Non Theme Specific,ICSTM,98455895,93970.22,Training Awards - Postgraduates
BEIS,UKRI - MRC,09/04/2019,Fellowships,MRC Funded Extramural Fellowships,University of Edinburgh,98429201,93875.98,Fellowships
BEIS,UKRI - EPSRC,24/04/2019,Training Awards - Postgraduates,Non Theme Specific,University of Birmingham GRANT,98455975,93746.95,Training Awards - Postgraduates
BEIS,UKRI - MRC,09/04/2019,Research Grant Expenditure,PSMB Other,Imperial College (Research Awards),98426567,93712.19,Research Grant Expenditure
BEIS,UKRI - EPSRC,24/04/2019,Training Awards - Postgraduates,Non Theme Specific,University of Liverpool GRANT,98456009,93711.86,Training Awards - Postgraduates
BEIS,UKRI - EPSRC,24/04/2019,Training Awards - Postgraduates,Non Theme Specific,Brunel University London GRANT,98455846,93644.00,Training Awards - Postgraduates
BEIS,UKRI - Research England,16/04/2019,Research Grant Expenditure,RE- HEIF,University of Brighton,98459477,93437.63,Research Grant Expenditure
BEIS,UKRI - MRC,09/04/2019,Research Grant Expenditure,IIB Other,University of Aberdeen (Research Aw,98429687,93391.2,Research Grant Expenditure
BEIS,UKRI - MRC,09/04/2019,Research Grant Expenditure,NMHB Other,University College London GRANT,98430400,93219.22,Research Grant Expenditure
BEIS,UKRI - MRC,09/04/2019,Research Grant Expenditure,MCMB Other,University of Glasgow GRANT,98426577,93215.83,Research Grant Expenditure
BEIS,UKRI - AHRC,12/04/2019,PAYE Payable Salaries,Balance Sheet,HM Revenue & Customs,98460435,93158.27,PAYE Payable Salaries
BEIS,UKRI - BBSRC,10/04/2019,Training Awards - Postgraduates,FG - Accounts & Business Planning,University of Glasgow,98453157,92926.87,Training Awards - Postgraduates
BEIS,UKRI - STFC,24/04/2019,Projects CIP,Infrastructure - RAL,Vinci Construction UK Ltd,98466782,92883.94,Projects CIP
BEIS,UKRI - STFC,01/04/2019,Projects CIP,ISIS Accelerator,ICS Cool Energy Ltd t/a ICS Service,98451796,92762.40,Projects CIP
BEIS,UKRI - Innovate UK,17/04/2019,Resource grants,Transport,GUIDE DOGS FOR THE BLIND ASSOCIATION(THE),31251,92613.20,Resource grants
BEIS,UKRI - MRC,09/04/2019,Research Grant Expenditure,Translational Growth Other,Cardiff University (Research Awards,98429926,92604.81,Research Grant Expenditure
BEIS,UKRI - MRC,09/04/2019,Research Grant Expenditure,PSMB Other,University College London GRANT,98429758,92280.09,Research Grant Expenditure
BEIS,UKRI - MRC,09/04/2019,Research Grant Expenditure,PSMB Other,University of Cambridge,98430539,92193.73,Research Grant Expenditure
BEIS,UKRI - MRC,09/04/2019,Grant - Special Contributions Capital,CRICK,The Francis Crick Institute,98459033,92109.58,Grant - Special Contributions Capital
BEIS,UKRI - Central,03/04/2019,Secondments,UKRI - Strategy,Department for Business Energy & Industrial Strategy,98454889,92104.44,Secondments
BEIS,UKRI - NERC,12/04/2019,Projects CIP,NERC - NOC MAS Capital,Scottish Association for Marine Science,98461155,92099.35,Projects CIP
BEIS,UKRI - Innovate UK,26/04/2019,Resource grants,Advanced Therapies,Nottingham University Hospitals NHS Trust,31754,91792.12,Resource grants
BEIS,UKRI - MRC,09/04/2019,Research Grant Expenditure,IIB Other,University of Cambridge,98430378,91722.57,Research Grant Expenditure
BEIS,UKRI - EPSRC,24/04/2019,Training Awards - Postgraduates,Healthcare Healthcare,University of Strathclyde GRANT,98454643,91562.65,Training Awards - Postgraduates
BEIS,UKRI - EPSRC,24/04/2019,Training Awards - Postgraduates,NC Engineering,University of Strathclyde GRANT,98454643,91562.63,Training Awards - Postgraduates
BEIS,UKRI - MRC,09/04/2019,Fellowships,MRC Funded Extramural Fellowships,University of Oxford,98429004,91522.58,Fellowships
BEIS,UKRI - MRC,09/04/2019,Research Grant Expenditure,IIB Other,University of Edinburgh,98430053,91239.56,Research Grant Expenditure
BEIS,UKRI - MRC,09/04/2019,Research Grant Expenditure,NMHB Other,University of Nottingham,98430282,91212.18,Research Grant Expenditure
BEIS,UKRI - MRC,24/04/2019,Grant - Special Contributions,Africa Research Excellence Fund,Medical Research Foundation,98468071,91098,Grant - Special Contributions
BEIS,UKRI - EPSRC,24/04/2019,Training Awards - Postgraduates,NC Engineering,University of Liverpool GRANT,98455753,91026.11,Training Awards - Postgraduates
BEIS,UKRI - EPSRC,24/04/2019,Training Awards - Postgraduates,NC Maths,University of Liverpool GRANT,98455753,91026.10,Training Awards - Postgraduates
BEIS,UKRI - Research England,16/04/2019,Research Grant Expenditure,RE- HEIF,University of Huddersfield,98459503,90952.88,Research Grant Expenditure
BEIS,UKRI - Research England,16/04/2019,Research Grant Expenditure,RE- HEIF,Keele University,98459507,90892.13,Research Grant Expenditure
BEIS,UKRI - Innovate UK,17/04/2019,Resource grants,CHALLENGE - Robotics,BARRNON LTD,31252,90851.60,Resource grants
BEIS,UKRI - MRC,09/04/2019,Research Grant Expenditure,MCMB Other,University of Edinburgh,98426566,90746.78,Research Grant Expenditure
BEIS,UKRI - MRC,09/04/2019,Research Grant Expenditure,MCMB Other,University of Bristol GRANT,98429956,90602.04,Research Grant Expenditure
BEIS,UKRI - MRC,09/04/2019,Fellowships,MRC Funded Extramural Fellowships,King's College London,98429328,90584.38,Fellowships
BEIS,UKRI - MRC,09/04/2019,Research Grant Expenditure,Public Health,Queen's University Belfast GRANT,98430476,90497.66,Research Grant Expenditure
BEIS,UKRI - MRC,09/04/2019,Research Grant Expenditure,MCMB Other,University of Cambridge,98430140,90461.72,Research Grant Expenditure
BEIS,UKRI - NERC,23/04/2019,Training Awards - Postgraduates,NERC - SO Post Graduate Training DTP's,Imperial College London,98460670,90358.00,Training Awards - Postgraduates
BEIS,UKRI - Central,02/04/2019,Computer Software Licences,UKRI - Digital Data and Technology BAU Costs,UK Shared Business Services Ltd,98451664,90000.00,Computer Software Licences
BEIS,UKRI - MRC,09/04/2019,Research Grant Expenditure,MCMB Other,Newcastle University,98429657,89983.08,Research Grant Expenditure
BEIS,UKRI - Innovate UK,05/04/2019,Resource grants,Precision and Discovery Medicine ����������,Censo Biotechnologies Ltd,29453,89687.69,Resource grants
BEIS,UKRI - BBSRC,09/04/2019,Research Institutes - Capital Grants: Major Works,Pirbright,The Pirbright Institute,98455130,89681.47,Research Institutes - Capital Grants: Major Works
BEIS,UKRI - MRC,09/04/2019,Research Grant Expenditure,NMHB Standard <= 3 Years,The University of Manchester,98430464,89616.27,Research Grant Expenditure
BEIS,UKRI - ESRC,23/04/2019,International Subscriptions,Data and Resources,Cessda Eric,98466144,89546.02,International Subscriptions
BEIS,UKRI - MRC,09/04/2019,Research Grant Expenditure,IIB Other,University College London GRANT,98430355,89211.16,Research Grant Expenditure
BEIS,UKRI - MRC,09/04/2019,Research Grant Expenditure,IIB Other,University College London GRANT,98430355,89211.16,Research Grant Expenditure
BEIS,UKRI - MRC,09/04/2019,Research Grant Expenditure,IIB Other,University College London GRANT,98430355,89211.16,Research Grant Expenditure
BEIS,UKRI - MRC,09/04/2019,Research Grant Expenditure,PSMB Other,University of Dundee,98429871,89189.77,Research Grant Expenditure
BEIS,UKRI - EPSRC,24/04/2019,Training Awards - Postgraduates,Non Theme Specific,ICSTM,98456050,89091.45,Training Awards - Postgraduates
BEIS,UKRI - MRC,09/04/2019,Research Grant Expenditure,IIB Other,University of Dundee,98426579,89004.56,Research Grant Expenditure
BEIS,UKRI - Central,03/04/2019,Secondments,UKRI - Governance,Department for Business Energy & Industrial Strategy,98454301,88981.86,Secondments
BEIS,UKRI - AHRC,25/04/2019,Training Awards - Postgraduates,BGP Award,University of Hull,98456635,88877.91,Training Awards - Postgraduates
BEIS,UKRI - AHRC,25/04/2019,Training Awards - Postgraduates,BGP Award,University of Glasgow,98456642,88877.91,Training Awards - Postgraduates
BEIS,UKRI - Innovate UK,01/04/2019,Events/conference/exhibitions,Digital Communications,KNOWLEDGE TRANSFER NETWORK LTD,30776,88870.80,Events/conference/exhibitions
BEIS,UKRI - NERC,02/04/2019,Research Grant Expenditure,NERC - CEH Community and Restoration Ecology,BTO Services Ltd (British Trust For Ornithology),98453507,88792.60,Research Grant Expenditure
BEIS,UKRI - MRC,09/04/2019,Research Grant Expenditure,MCMB Other,University of Edinburgh,98430429,88755.7,Research Grant Expenditure
BEIS,UKRI - MRC,09/04/2019,Research Grant Expenditure,IIB Other,University of Oxford,98430137,88425.81,Research Grant Expenditure
BEIS,UKRI - Research England,16/04/2019,Research Grant Expenditure,RE- HEIF,Brunel University London,98459479,88225.05,Research Grant Expenditure
BEIS,UKRI - ESRC,12/04/2019,Training Awards - Postgraduates,Skills and Methods,University of Leeds GRANT,98453996,88217.25,Training Awards - Postgraduates
BEIS,UKRI - EPSRC,24/04/2019,Training Awards - Postgraduates,Non Theme Specific,Queen Mary University of London,98455856,87726.53,Training Awards - Postgraduates
BEIS,UKRI - MRC,09/04/2019,Research Grant Expenditure,PSMB Other,University of Edinburgh,98429643,87569.09,Research Grant Expenditure
BEIS,UKRI - EPSRC,24/04/2019,Training Awards - Postgraduates,Non Theme Specific,Heriot-Watt University GRANT,98455992,87342.64,Training Awards - Postgraduates
BEIS,UKRI - Innovate UK,17/04/2019,Resource grants,Transport,DELTA MOTORSPORT LIMITED,31102,87227.94,Resource grants
BEIS,UKRI - MRC,09/04/2019,Research Grant Expenditure,NMHB Other,University College London GRANT,98429743,87125.74,Research Grant Expenditure
BEIS,UKRI - Innovate UK,04/04/2019,Resource grants,Public Sector Innovation Strategy,Civil Aviation Authority,29064,86956.31,Resource grants
BEIS,UKRI - MRC,09/04/2019,Research Grant Expenditure,PSMB Other,King's College London,98426590,86810.17,Research Grant Expenditure
BEIS,UKRI - Research England,16/04/2019,Research Grant Expenditure,RE- Quality Research (QR),University of Wolverhampton,98459642,86779.90,Research Grant Expenditure
BEIS,UKRI - MRC,09/04/2019,Research Grant Expenditure,Strategy Grants,University of Liverpool,98430119,86691.14,Research Grant Expenditure
BEIS,UKRI - EPSRC,24/04/2019,Training Awards - Postgraduates,Non Theme Specific,Swansea University,98455858,86681.13,Training Awards - Postgraduates
BEIS,UKRI - Research England,16/04/2019,Research Grant Expenditure,RE- Quality Research (QR),London South Bank University,98459313,86603.41,Research Grant Expenditure
BEIS,UKRI - NERC,23/04/2019,Training Awards - Postgraduates,NERC - SO Post Graduate Training DTP's,Heriot Watt University,98461704,86596.85,Training Awards - Postgraduates
BEIS,UKRI - MRC,09/04/2019,Research Grant Expenditure,NMHB Other,University of Oxford,98430398,86554.18,Research Grant Expenditure
BEIS,UKRI - Research England,16/04/2019,Research Grant Expenditure,RE- HEIF,Sheffield Hallam University,98459552,86479.58,Research Grant Expenditure
BEIS,UKRI - NERC,04/04/2019,Projects CIP,NERC - BAS Rothera Redevelopment,Ramboll Uk Ltd,98455246,86426.89,Projects CIP
BEIS,UKRI - BBSRC,17/04/2019,Research Institutes - Competitive Strategic Grant,IBERS,Ibers - Aberystwyth University,98460243,86360.99,Research Institutes - Competitive Strategic Grant
BEIS,UKRI - MRC,09/04/2019,Research Grant Expenditure,IIB Other,University of Birmingham GRANT,98430136,86276.32,Research Grant Expenditure
BEIS,UKRI - MRC,09/04/2019,Research Grant Expenditure,IIB Other,University of Birmingham GRANT,98430136,86276.32,Research Grant Expenditure
BEIS,UKRI - MRC,09/04/2019,Research Grant Expenditure,Strategy Grants,London School of Hygiene & Tropical Medicine,98430225,86122.51,Research Grant Expenditure
BEIS,UKRI - MRC,09/04/2019,Research Grant Expenditure,MCMB Human Cell Atlas - Strategic Priorities Fund,University of Oxford,98430443,86071.64,Research Grant Expenditure
BEIS,UKRI - NERC,10/04/2019,Projects CIP,NERC - BAS Non-ALI Adjustments,EvoEnergy Ltd,98460821,86050.96,Projects CIP
BEIS,UKRI - EPSRC,24/04/2019,Training Awards - Postgraduates,NC Engineering,University of Birmingham GRANT,98455746,86048.50,Training Awards - Postgraduates
BEIS,UKRI - EPSRC,24/04/2019,Training Awards - Postgraduates,Manufacturing Manufacturing,University of Birmingham GRANT,98455746,86048.48,Training Awards - Postgraduates
BEIS,UKRI - MRC,09/04/2019,Research Grant Expenditure,MCMB Other,University of Oxford,98426576,85666.28,Research Grant Expenditure
BEIS,UKRI - Research England,16/04/2019,Research Grant Expenditure,RE- HEIF,Manchester Metropolitan University,98459528,85582.43,Research Grant Expenditure
BEIS,UKRI - MRC,09/04/2019,Research Grant Expenditure,NMHB Other,University of Cambridge,98429754,85499.96,Research Grant Expenditure
BEIS,UKRI - MRC,09/04/2019,Research Grant Expenditure,Strategy Grants,King's College London,98430230,85498.04,Research Grant Expenditure
BEIS,UKRI - MRC,09/04/2019,Research Grant Expenditure,IIB Other,University of Nottingham,98429663,85477.1,Research Grant Expenditure
BEIS,UKRI - MRC,09/04/2019,Research Grant Expenditure,MCMB Human Cell Atlas - Strategic Priorities Fund,University College London GRANT,98430440,85454.8,Research Grant Expenditure
BEIS,UKRI - MRC,09/04/2019,Research Grant Expenditure,NMHB Other,University of Cambridge,98430402,85344.71,Research Grant Expenditure
BEIS,UKRI - MRC,09/04/2019,Research Grant Expenditure,IIB Other,University of York (Research Awards,98430536,85308.1,Research Grant Expenditure
BEIS,UKRI - NERC,12/04/2019,NI Payable Salaries,Balance Sheet,HM Revenue & Customs,98458889,85298.68,NI Payable Salaries
BEIS,UKRI - Innovate UK,26/04/2019,Resource grants,CHALLENGE - Energy Batteries,Imperial College London,31578,85254.81,Resource grants
BEIS,UKRI - NERC,09/04/2019,Projects CIP,NERC - NOC NMEP Capital,Certex (UK) Ltd,98458286,85194.00,Projects CIP
BEIS,UKRI - Innovate UK,26/04/2019,Resource grants,Aerospace,Imperial College London,31616,84961.43,Resource grants
BEIS,UKRI - MRC,09/04/2019,Research Grant Expenditure,MCMB Other,King's College London,98429692,84931.33,Research Grant Expenditure
BEIS,UKRI - BBSRC,16/04/2019,Subsidiaries Expenditure,Innovation and Skills Group,University of Sheffield,98464076,84914.48,Subsidiaries Expenditure
BEIS,UKRI - MRC,09/04/2019,Research Grant Expenditure,NMHB Other,University of Edinburgh,98429749,84636.63,Research Grant Expenditure
BEIS,UKRI - MRC,23/04/2019,Electricity,Unspecified,DSTL,98467426,84446.92,Electricity
BEIS,UKRI - Research England,16/04/2019,Research Grant Expenditure,RE- GCRF,"City, University of London",98459383,84402.69,Research Grant Expenditure
BEIS,UKRI - MRC,09/04/2019,Research Grant Expenditure,IIB Other,University of Leicester GRANT,98429865,84384.39,Research Grant Expenditure
BEIS,UKRI - Innovate UK,11/04/2019,Resource grants,Resp - Smart,ADELAN LTD,30317,84237.68,Resource grants
BEIS,UKRI - EPSRC,02/04/2019,Recharges From Councils - General,Global South Engagement,UKRI - Science & Technology Facilities Council,98450488,84117.52,Recharges From Councils - General
BEIS,UKRI - Innovate UK,17/04/2019,Resource grants,Medicines Manufacturing,TRAKCEL LIMITED,31095,84014.55,Resource grants
BEIS,UKRI - STFC,09/04/2019,Consultancy Services,RAL Space UKSA,DEIMOS SPACE UK LTD,98458466,83973.86,Consultancy Services
BEIS,UKRI - NERC,12/04/2019,PAYE Payable Salaries,Balance Sheet,HM Revenue & Customs,98458887,83930.07,PAYE Payable Salaries
BEIS,UKRI - EPSRC,24/04/2019,Training Awards - Postgraduates,NC ICT,University of Southampton GRANT,98454677,83916.03,Training Awards - Postgraduates
BEIS,UKRI - EPSRC,24/04/2019,Training Awards - Postgraduates,Digital Economy Digital Economy,University of Southampton GRANT,98454677,83916.02,Training Awards - Postgraduates
BEIS,UKRI - MRC,18/04/2019,Grant - Special Contributions,DEMENTIA RESEARCH INSTITUTE,University of Oxford,98467059,83825,Grant - Special Contributions
BEIS,UKRI - EPSRC,24/04/2019,Training Awards - Postgraduates,Non Theme Specific,Cranfield University,98455848,83761.33,Training Awards - Postgraduates
BEIS,UKRI - MRC,09/04/2019,Research Grant Expenditure,PSMB Other,University College London GRANT,98429916,83736.11,Research Grant Expenditure
BEIS,UKRI - MRC,09/04/2019,Research Grant Expenditure,IIB Other,University of Dundee,98430273,83700.19,Research Grant Expenditure
BEIS,UKRI - MRC,09/04/2019,Research Grant Expenditure,Translational Growth Other,University of Birmingham GRANT,98429882,83660.38,Research Grant Expenditure
BEIS,UKRI - MRC,09/04/2019,Research Grant Expenditure,IIB Other,The Francis Crick Institute,98429966,83587.93,Research Grant Expenditure
BEIS,UKRI - Innovate UK,05/04/2019,Resource grants,Aerospace,THE MANUFACTURING TECHNOLOGY CENTRE,29542,83574.87,Resource grants
BEIS,UKRI - Research England,16/04/2019,Research Grant Expenditure,RE- HEIF,Oxford Brookes University,98459538,83521.20,Research Grant Expenditure
BEIS,UKRI - MRC,09/04/2019,Research Grant Expenditure,NMHB Other,University of Exeter,98430091,83452.57,Research Grant Expenditure
BEIS,UKRI - MRC,09/04/2019,Research Grant Expenditure,Translational Growth Other,Imperial College (Research Awards),98430030,83417.4,Research Grant Expenditure
BEIS,UKRI - Innovate UK,26/04/2019,Resource grants,CHALLENGE - Energy Batteries,DUKOSI LIMITED,31748,83406.23,Resource grants
BEIS,UKRI - Innovate UK,17/04/2019,Resource grants,Medicines Manufacturing,MIOTIFY LTD,31070,83260.65,Resource grants
BEIS,UKRI - Innovate UK,17/04/2019,Resource grants,Advanced Therapies,PLASTICELL LTD,31010,83216.53,Resource grants
BEIS,UKRI - Research England,16/04/2019,Research Grant Expenditure,RE- HEIF,University of Lincoln,98459515,83213.85,Research Grant Expenditure
BEIS,UKRI - Innovate UK,05/04/2019,Resource grants,Resp - Smart,SPRINT ELECTRIC LIMITED,29454,83186.72,Resource grants
BEIS,UKRI - MRC,02/04/2019,Non Payroll Salaries,Unspecified,UKRI - Economic & Social Research Council,98451628,83181,Non Payroll Salaries
BEIS,UKRI - Innovate UK,05/04/2019,Resource grants,CG&I General,IMMENSE SIMULATIONS LIMITED,29569,83172.93,Resource grants
BEIS,UKRI - MRC,09/04/2019,Fellowships,MRC Funded Extramural Fellowships,University of Dundee,98429005,83158.83,Fellowships
BEIS,UKRI - ESRC,12/04/2019,Training Awards - Postgraduates,Skills and Methods,University College London GRANT,98453982,83158.00,Training Awards - Postgraduates
BEIS,UKRI - MRC,09/04/2019,Research Grant Expenditure,MCMB Standard <= 3 Years,Birkbeck College,98430470,82994.25,Research Grant Expenditure
BEIS,UKRI - Innovate UK,11/04/2019,Resource grants,Resp - Smart,LAT WATER LTD,30315,82804.58,Resource grants
BEIS,UKRI - MRC,29/04/2019,Non Payroll Salaries,Unspecified,Imperial College London,98471465,82656.95,Non Payroll Salaries
BEIS,UKRI - EPSRC,24/04/2019,Training Awards - Postgraduates,LWEC LWEC,Cranfield University,98454670,82646.77,Training Awards - Postgraduates
BEIS,UKRI - EPSRC,24/04/2019,Training Awards - Postgraduates,NC Engineering,Cranfield University,98454670,82646.77,Training Awards - Postgraduates
BEIS,UKRI - MRC,09/04/2019,Research Grant Expenditure,Global Health Trials,University of York (Research Awards,98430235,82472.67,Research Grant Expenditure
BEIS,UKRI - MRC,09/04/2019,Fellowships,MRC Funded Extramural Fellowships,University of Edinburgh,98429011,82254.68,Fellowships
BEIS,UKRI - MRC,09/04/2019,Research Grant Expenditure,NMHB Other,University of Nottingham,98430281,82232.54,Research Grant Expenditure
BEIS,UKRI - MRC,04/04/2019,Research Grant Expenditure,NC3Rs - CRACK-IT,University of Southern Denmark,98456182,82120,Research Grant Expenditure
BEIS,UKRI - MRC,09/04/2019,Research Grant Expenditure,Translational Growth Other,University of York (Research Awards,98430177,82115.51,Research Grant Expenditure
BEIS,UKRI - Innovate UK,05/04/2019,Resource grants,Advanced Therapies,CAMBRIDGE RESPIRATORY INNOVATIONS LIMITED,29501,82005.30,Resource grants
BEIS,UKRI - EPSRC,24/04/2019,Training Awards - Postgraduates,Non Theme Specific,University of Durham GRANT,98456005,81958.76,Training Awards - Postgraduates
BEIS,UKRI - MRC,09/04/2019,Research Grant Expenditure,PSMB Other,University College London GRANT,98430031,81942.88,Research Grant Expenditure
BEIS,UKRI - MRC,09/04/2019,Research Grant Expenditure,IIB Other,University of Glasgow GRANT,98426615,81888.97,Research Grant Expenditure
BEIS,UKRI - Innovate UK,11/04/2019,Resource grants,CG&I General,RINICOM LTD,30305,81738.20,Resource grants
BEIS,UKRI - EPSRC,24/04/2019,Training Awards - Postgraduates,NC Maths,University of Oxford GRANT,98454664,81699.72,Training Awards - Postgraduates
BEIS,UKRI - EPSRC,24/04/2019,Training Awards - Postgraduates,NC Physical Sciences,University of Oxford GRANT,98454664,81699.70,Training Awards - Postgraduates
BEIS,UKRI - Innovate UK,05/04/2019,Resource grants,Aerospace,Cranfield University,29493,81497.75,Resource grants
BEIS,UKRI - Innovate UK,11/04/2019,Resource grants,ISCF - EE,CIPHER SURGICAL LIMITED,30285,81401.66,Resource grants
BEIS,UKRI - Innovate UK,05/04/2019,Resource grants,Transport,OXBOTICA LIMITED,29228,81399.45,Resource grants
BEIS,UKRI - Research England,16/04/2019,Research Grant Expenditure,RE- HEIF,University of Westminster,98459566,81347.93,Research Grant Expenditure
BEIS,UKRI - MRC,09/04/2019,Research Grant Expenditure,NMHB Other,University College London GRANT,98430170,81227.86,Research Grant Expenditure
BEIS,UKRI - EPSRC,24/04/2019,Training Awards - Postgraduates,Non Theme Specific,Lancaster University GRANT,98455999,81194.86,Training Awards - Postgraduates
BEIS,UKRI - MRC,09/04/2019,Research Grant Expenditure,MCMB Other,University of Oxford,98430289,81186.7,Research Grant Expenditure
BEIS,UKRI - STFC,01/04/2019,General Building Maintenance,RAL - Maintenance Outsourced Hard FM,Vinci Construction UK Ltd,98450338,81000.00,General Building Maintenance
BEIS,UKRI - MRC,09/04/2019,Research Grant Expenditure,IIB Other,University College London GRANT,98429857,80936.18,Research Grant Expenditure
BEIS,UKRI - MRC,09/04/2019,Research Grant Expenditure,PSMB Other,University of Edinburgh,98429750,80734.7,Research Grant Expenditure
BEIS,UKRI - Innovate UK,26/04/2019,Resource grants,ISCF - EE,UAVAID LIMITED,31509,80671.80,Resource grants
BEIS,UKRI - Central,03/04/2019,Secondments,UKRI - Strategy,Department for Business Energy & Industrial Strategy,98454314,80644.58,Secondments
BEIS,UKRI - MRC,09/04/2019,Research Grant Expenditure,NMHB Other,University of Bristol GRANT,98430205,80589.84,Research Grant Expenditure
BEIS,UKRI - Research England,16/04/2019,Research Grant Expenditure,"RE - Museums, Galleries and Collections",Courtauld Institute of Art,98459576,80416.67,Research Grant Expenditure
BEIS,UKRI - Innovate UK,05/04/2019,Resource grants,Energy,HIETA TECHNOLOGIES LTD,29320,80405.73,Resource grants
BEIS,UKRI - MRC,09/04/2019,Research Grant Expenditure,MCMB Other,University of Edinburgh,98426602,80385.06,Research Grant Expenditure
BEIS,UKRI - Innovate UK,26/04/2019,Resource grants,Energy,SUSTAINABLE PIPELINE SYSTEMS LTD,31685,80071.70,Resource grants
BEIS,UKRI - Innovate UK,05/04/2019,Resource grants,Transport,NUVVE LTD,29572,80049.17,Resource grants
BEIS,UKRI - BBSRC,25/04/2019,Research Grant Expenditure,Science Group,Wellcome Trust,98469352,80000.00,Research Grant Expenditure
BEIS,UKRI - STFC,01/04/2019,General Building Maintenance,RAL - Maintenance Outsourced Hard FM,Vinci Construction UK Ltd,98450338,80000.00,General Building Maintenance
BEIS,UKRI - Innovate UK,17/04/2019,Resource grants,ISCF - IS,GREEN FUELS RESEARCH LTD,31052,79973.94,Resource grants
BEIS,UKRI - Innovate UK,17/04/2019,Resource grants,ISCF - IS,GREEN FUELS RESEARCH LTD,31051,79973.34,Resource grants
BEIS,UKRI - MRC,09/04/2019,Research Grant Expenditure,NMHB Other,University of Brighton,98429633,79881.32,Research Grant Expenditure
BEIS,UKRI - MRC,09/04/2019,Research Grant Expenditure,PSMB Other,University of Glasgow GRANT,98430108,79880.32,Research Grant Expenditure
BEIS,UKRI - EPSRC,24/04/2019,Training Awards - Postgraduates,Non Theme Specific,University of Bristol GRANT,98455900,79874.68,Training Awards - Postgraduates
BEIS,UKRI - Innovate UK,11/04/2019,Resource grants,Challenge: Energy,H2GO Power Limited,30444,79559.66,Resource grants
BEIS,UKRI - Innovate UK,05/04/2019,Resource grants,Aerospace,University of Nottingham,29191,79458.91,Resource grants
BEIS,UKRI - MRC,09/04/2019,Fellowships,MRC Funded Extramural Fellowships,University of Oxford,98429225,79293.23,Fellowships
BEIS,UKRI - ESRC,02/04/2019,Research Grant Expenditure,RCUK GCRF,UKRI - Medical Research Council,98373048,79278.80,Research Grant Expenditure
BEIS,UKRI - Research England,16/04/2019,Research Grant Expenditure,RE- HEIF,Open University,98459535,79203.68,Research Grant Expenditure
BEIS,UKRI - Innovate UK,11/04/2019,Resource grants,Emerging Technologies,CAMBRIDGE SPARK LIMITED,30365,79160.72,Resource grants
BEIS,UKRI - MRC,09/04/2019,Research Grant Expenditure,MCMB Other,Imperial College (Research Awards),98429655,78962.58,Research Grant Expenditure
BEIS,UKRI - Innovate UK,04/04/2019,Resource grants,Public Sector Innovation Strategy,Information Commissioners Office,29063,78954.03,Resource grants
BEIS,UKRI - MRC,09/04/2019,Research Grant Expenditure,MCMB Other,European Bioinformatics Institute,98429976,78887.19,Research Grant Expenditure
BEIS,UKRI - EPSRC,30/04/2019,Other Programme Costs,NC Infrastructure,UKRI - Medical Research Council,98456966,78857.30,Other Programme Costs
BEIS,UKRI - MRC,09/04/2019,Research Grant Expenditure,IIB Other,University of Sheffield,98430354,78850.21,Research Grant Expenditure
BEIS,UKRI - Innovate UK,05/04/2019,Resource grants,Emerging Technologies,AVANTI COMMUNICATIONS LIMITED,29169,78816.29,Resource grants
BEIS,UKRI - Innovate UK,05/04/2019,Resource grants,Emerging Technologies,TELEDYNE E2V (UK) LTD,29596,78810.80,Resource grants
BEIS,UKRI - STFC,18/04/2019,Legal & Professional Services,RAL Space Technology Exploitation,CNRS,98466945,78670.18,Legal & Professional Services
BEIS,UKRI - MRC,09/04/2019,Fellowships,MRC Funded Extramural Fellowships,University College London GRANT,98429294,78641.49,Fellowships
BEIS,UKRI - MRC,09/04/2019,Research Grant Expenditure,IIB Other,University of Cambridge,98429632,78560.18,Research Grant Expenditure
BEIS,UKRI - ESRC,12/04/2019,Training Awards - Postgraduates,Skills and Methods,Queen Mary University of London,98453971,78333.25,Training Awards - Postgraduates
BEIS,UKRI - MRC,02/04/2019,Non Payroll Salaries,Unspecified,UKRI - Engineering & Physical Sciences Research Council,98447432,78037,Non Payroll Salaries
BEIS,UKRI - MRC,02/04/2019,Non Payroll Salaries,Unspecified,UKRI - Economic & Social Research Council,98451623,78037,Non Payroll Salaries
BEIS,UKRI - NERC,09/04/2019,Provision for Early Retirement Liability,NERC - SO Restructuring 100% Centrally Funded,RCPS Pension,98455348,78000.00,Provision for Early Retirement Liability
BEIS,UKRI - Innovate UK,05/04/2019,Resource grants,Connect Autonomous Vehicles,VISTEON ENGINEERING SERVICES LTD,29417,77951.40,Resource grants
BEIS,UKRI - MRC,09/04/2019,Research Grant Expenditure,Newton Fund,Cardiff University (Research Awards,98429768,77876.21,Research Grant Expenditure
BEIS,UKRI - MRC,09/04/2019,Capital Grants & Equipment to HEIs,MCMB Human Cell Atlas - Strategic Priorities Fund,University of Oxford,98430460,77350,Capital Grants & Equipment to HEIs
BEIS,UKRI - Innovate UK,05/04/2019,Resource grants,Manufacturing,FARADION LTD,29253,77306.11,Resource grants
BEIS,UKRI - MRC,09/04/2019,Research Grant Expenditure,MCMB Other,University of Leicester GRANT,98429817,77289.44,Research Grant Expenditure
BEIS,UKRI - EPSRC,08/04/2019,Other Programme Costs,NC Physical Sciences,University of Warwick,98457439,77205.62,Other Programme Costs
BEIS,UKRI - MRC,09/04/2019,Research Grant Expenditure,Translational Growth Other,University of Nottingham,98430342,77160.91,Research Grant Expenditure
BEIS,UKRI - MRC,09/04/2019,Electricity,Estates RCAH,UKRI - Science & Technology Facilities Council,98449872,77130.17,Electricity
BEIS,UKRI - Central,03/04/2019,Secondments,UKRI - Strategy,Department for Business Energy & Industrial Strategy,98454303,77045.20,Secondments
BEIS,UKRI - MRC,09/04/2019,Research Grant Expenditure,NMHB Other,University College London GRANT,98426610,77022.79,Research Grant Expenditure
BEIS,UKRI - BBSRC,24/04/2019,Research Institutes - Capital Grants: Major Works,Estates - Projects,EMBL (European Molecular Biology Laboratory),98468760,76843.37,Research Institutes - Capital Grants: Major Works
BEIS,UKRI - MRC,09/04/2019,Research Grant Expenditure,IIB Other,Liverpool School of Tropical Medicine,98430512,76798.73,Research Grant Expenditure
BEIS,UKRI - MRC,09/04/2019,Research Grant Expenditure,IIB Other,University of Birmingham GRANT,98426628,76707.98,Research Grant Expenditure
BEIS,UKRI - MRC,09/04/2019,Research Grant Expenditure,PSMB Other - GCRF,Imperial College (Research Awards),98430393,76495.23,Research Grant Expenditure
BEIS,UKRI - EPSRC,24/04/2019,Training Awards - Postgraduates,Non Theme Specific,University of Bath,98455952,76490.53,Training Awards - Postgraduates
BEIS,UKRI - MRC,09/04/2019,Research Grant Expenditure,PSMB Other,University of Oxford,98429868,76382.14,Research Grant Expenditure
BEIS,UKRI - EPSRC,24/04/2019,Training Awards - Postgraduates,Non Theme Specific,University of Cambridge,98456033,76364.10,Training Awards - Postgraduates
BEIS,UKRI - MRC,09/04/2019,Research Grant Expenditure,Translational Growth Other,Bradford Teaching Hospitals NHS Trust Foundation,98430352,76283.68,Research Grant Expenditure
BEIS,UKRI - MRC,09/04/2019,Research Grant Expenditure,NMHB Other,University of Oxford,98426580,76278.55,Research Grant Expenditure
BEIS,UKRI - MRC,09/04/2019,Research Grant Expenditure,PSMB Other,University College London GRANT,98429896,76168.43,Research Grant Expenditure
BEIS,UKRI - MRC,10/04/2019,Research Grant Expenditure,IIB Other,NERC Centre for Ecology and Hydrology (CEH Wallingford),98430021,76020.39,Research Grant Expenditure
BEIS,UKRI - NERC,17/04/2019,Ers Pension Deductions - MyCSP,Balance Sheet,Cabinet Office RM Shared Services,98460772,75966.34,Ers Pension Deductions - MyCSP
BEIS,UKRI - MRC,09/04/2019,Fellowships,MRC Funded Extramural Fellowships,King's College London,98429024,75951.06,Fellowships
BEIS,UKRI - MRC,09/04/2019,Research Grant Expenditure,Strategy Grants,London School of Hygiene & Tropical Medicine,98426587,75849.66,Research Grant Expenditure
BEIS,UKRI - STFC,26/04/2019,Projects CIP,National Satellite Test Facility,European Electronique,98471096,75841.20,Projects CIP
BEIS,UKRI - NERC,01/04/2019,Projects CIP,NERC - BAS AIR 2020,Voyageur Aviation Corp,98451794,75673.81,Projects CIP
BEIS,UKRI - MRC,09/04/2019,Fellowships,MRC Funded Extramural Fellowships,University of Edinburgh,98429048,75670.15,Fellowships
BEIS,UKRI - MRC,09/04/2019,Research Grant Expenditure,Newton Fund,University College London GRANT,98429764,75638.15,Research Grant Expenditure
BEIS,UKRI - MRC,09/04/2019,Research Grant Expenditure,IIB Other,University of Leeds (Research Award,98429949,75526.73,Research Grant Expenditure
BEIS,UKRI - NERC,23/04/2019,Building Rents,NERC - CEH Facilities - Lancaster,Lancaster University,98427219,75506.88,Building Rents
BEIS,UKRI - Innovate UK,17/04/2019,Resource grants,APC,SAIETTA GROUP LTD,31173,75411.47,Resource grants
BEIS,UKRI - BBSRC,17/04/2019,Research Institutes - Competitive Strategic Grant,TGAC,Earlham Institute,98459925,75286.58,Research Institutes - Competitive Strategic Grant
BEIS,UKRI - MRC,09/04/2019,Research Grant Expenditure,NMHB Other,University of Warwick,98429636,75071.77,Research Grant Expenditure
BEIS,UKRI - MRC,09/04/2019,Fellowships,MRC Funded Extramural Fellowships,University of Leicester GRANT,98429001,75056.17,Fellowships
BEIS,UKRI - BBSRC,02/04/2019,Research Institutes - Capital Grants: Minor Works,Pirbright,The Pirbright Institute,98452515,75024.19,Research Institutes - Capital Grants: Minor Works
BEIS,UKRI - EPSRC,24/04/2019,Training Awards - Postgraduates,Non Theme Specific,ICSTM,98455923,74966.40,Training Awards - Postgraduates
BEIS,UKRI - MRC,09/04/2019,Research Grant Expenditure,IIB Other,University College London GRANT,98430056,74861.61,Research Grant Expenditure
BEIS,UKRI - MRC,09/04/2019,Research Grant Expenditure,NMHB Other,Imperial College (Research Awards),98429709,74808.18,Research Grant Expenditure
BEIS,UKRI - MRC,09/04/2019,Fellowships,MRC Funded Extramural Fellowships,University College London GRANT,98429206,74789.23,Fellowships
BEIS,UKRI - MRC,09/04/2019,Fellowships,MRC Funded Extramural Fellowships,Royal Veterinary College,98429208,74735,Fellowships
BEIS,UKRI - MRC,09/04/2019,Fellowships,MRC Funded Extramural Fellowships,University of Oxford,98429007,74594.16,Fellowships
BEIS,UKRI - STFC,24/04/2019,Projects CIP,Infrastructure - RAL,Vinci Construction UK Ltd,98466782,74463.31,Projects CIP
BEIS,UKRI - NERC,04/04/2019,Projects CIP,NERC - NOC Long Term Maintenance,JOHNSON CONTROLS BUILDING EFFICIENCY UK LIMITED,98455925,74130.85,Projects CIP
BEIS,UKRI - Research England,16/04/2019,Research Grant Expenditure,RE- Quality Research (QR),Courtauld Institute of Art,98459616,74083.71,Research Grant Expenditure
BEIS,UKRI - Innovate UK,05/04/2019,Resource grants,Transport,EUROPEAN THERMODYNAMICS LTD,29401,73948.32,Resource grants
BEIS,UKRI - Innovate UK,17/04/2019,Resource grants,Resp - Smart,COGNITIV+ LTD,31140,73852.11,Resource grants
BEIS,UKRI - MRC,09/04/2019,Research Grant Expenditure,PSMB Other,University of Bristol GRANT,98426630,73820.24,Research Grant Expenditure
BEIS,UKRI - Innovate UK,26/04/2019,Resource grants,CG&I General,ACT BLADE LIMITED,31696,73816.03,Resource grants
BEIS,UKRI - Innovate UK,05/04/2019,Resource grants,Medicines Manufacturing,ASYMPTOTE LIMITED,29639,73758.15,Resource grants
BEIS,UKRI - MRC,09/04/2019,Research Grant Expenditure,Global Health Trials,London School of Hygiene & Tropical Medicine,98430407,73567.33,Research Grant Expenditure
BEIS,UKRI - MRC,09/04/2019,Research Grant Expenditure,Translational Growth Other,University College London GRANT,98426560,73453.71,Research Grant Expenditure
BEIS,UKRI - MRC,09/04/2019,Research Grant Expenditure,NMHB Other,King's College London,98429775,73382.25,Research Grant Expenditure
BEIS,UKRI - Central,30/04/2019,Recharges From Councils - General,UKRI - PSU IT Costs/BAU,UKRI - Arts & Humanities Research Council,98468455,73265.09,Recharges From Councils - General
BEIS,UKRI - ESRC,23/04/2019,Other Programme Costs,Administrative Data Research Partnership,Welsh Government,98466452,73143.00,Other Programme Costs
BEIS,UKRI - Innovate UK,17/04/2019,Resource grants,Medicines Manufacturing,ASYMPTOTE LIMITED,31092,73095.26,Resource grants
BEIS,UKRI - MRC,09/04/2019,Research Grant Expenditure,IIB Other,University of Oxford,98429802,73030.57,Research Grant Expenditure
BEIS,UKRI - MRC,09/04/2019,Research Grant Expenditure,Newton Fund,London School of Hygiene & Tropical Medicine,98430353,73030.45,Research Grant Expenditure
BEIS,UKRI - MRC,09/04/2019,Research Grant Expenditure,Translational Growth Other,University College London GRANT,98430336,72997.36,Research Grant Expenditure
BEIS,UKRI - Innovate UK,17/04/2019,Resource grants,Manufacturing,OXFORD GENETICS LTD,31031,72945.04,Resource grants
BEIS,UKRI - EPSRC,24/04/2019,Training Awards - Postgraduates,NC ICT,University of Southampton GRANT,98454650,72790.65,Training Awards - Postgraduates
BEIS,UKRI - MRC,09/04/2019,Research Grant Expenditure,PSMB Other,University of Leicester GRANT,98430434,72788.17,Research Grant Expenditure
BEIS,UKRI - MRC,09/04/2019,Research Grant Expenditure,PSMB Other,University of Leicester GRANT,98430434,72788.17,Research Grant Expenditure
BEIS,UKRI - MRC,09/04/2019,Research Grant Expenditure,PSMB Other,University of Leicester GRANT,98430434,72788.17,Research Grant Expenditure
BEIS,UKRI - MRC,09/04/2019,Fellowships,MRC Funded Extramural Fellowships,University of Oxford,98429003,72705.61,Fellowships
BEIS,UKRI - MRC,09/04/2019,Research Grant Expenditure,NMHB Other,University of Oxford,98430187,72452.73,Research Grant Expenditure
BEIS,UKRI - MRC,09/04/2019,Research Grant Expenditure,PSMB Other,King's College London,98429841,72339.02,Research Grant Expenditure
BEIS,UKRI - MRC,09/04/2019,Research Grant Expenditure,MCMB Other,University of Cambridge,98430065,72335.03,Research Grant Expenditure
BEIS,UKRI - Research England,16/04/2019,Research Grant Expenditure,RE- HEIF,University of Derby,98459490,72316.65,Research Grant Expenditure
BEIS,UKRI - MRC,09/04/2019,Research Grant Expenditure,NMHB Other,The University of Manchester,98429744,72312.26,Research Grant Expenditure
BEIS,UKRI - EPSRC,24/04/2019,Training Awards - Postgraduates,Non Theme Specific,Queen's University Belfast GRANT,98456001,72308.82,Training Awards - Postgraduates
BEIS,UKRI - MRC,09/04/2019,Research Grant Expenditure,Newton Fund,University of Oxford,98430344,72293.85,Research Grant Expenditure
BEIS,UKRI - MRC,09/04/2019,Capital Grants & Equipment to HEIs,Tissue Banking,University of Warwick,98430101,72253.6,Capital Grants & Equipment to HEIs
BEIS,UKRI - Innovate UK,05/04/2019,Resource grants,Resp - Smart,PHOTOCENTRIC LTD,29532,72206.46,Resource grants
BEIS,UKRI - Research England,16/04/2019,Research Grant Expenditure,RE- GCRF,Open University,98459434,72205.14,Research Grant Expenditure
BEIS,UKRI - Innovate UK,05/04/2019,Resource grants,Aerospace,University of Southampton,29286,72080.63,Resource grants
BEIS,UKRI - MRC,09/04/2019,Research Grant Expenditure,PSMB Other,King's College London,98429799,72008.13,Research Grant Expenditure
BEIS,UKRI - NERC,18/04/2019,Freight Charges,NERC - NOC NMFSS Support Services,Peters & May Ltd,98466051,72000.00,Freight Charges
BEIS,UKRI - MRC,23/04/2019,Grant - Special Contributions Capital,PSMB MDU,University of Cambridge,98467399,71999.2,Grant - Special Contributions Capital
BEIS,UKRI - MRC,09/04/2019,Research Grant Expenditure,PSMB Other,King's College London,98430175,71963.37,Research Grant Expenditure
BEIS,UKRI - MRC,09/04/2019,Research Grant Expenditure,MCMB Other,University of Leeds (Research Award,98429980,71838.2,Research Grant Expenditure
BEIS,UKRI - ESRC,26/04/2019,Other Programme Costs,International Development,Institute of Development Studies,98470995,71834.41,Other Programme Costs
BEIS,UKRI - Innovate UK,26/04/2019,Resource grants,Transport,PETALITE LIMITED,31530,71750.79,Resource grants
BEIS,UKRI - MRC,09/04/2019,Research Grant Expenditure,NMHB Other,Newcastle University,98429873,71540.75,Research Grant Expenditure
BEIS,UKRI - Research England,16/04/2019,Research Grant Expenditure,RE- Quality Research (QR),Teesside University,98459356,71456.30,Research Grant Expenditure
BEIS,UKRI - MRC,09/04/2019,Fellowships,MRC Funded Extramural Fellowships,University of Cambridge,98429336,71442.8,Fellowships
BEIS,UKRI - MRC,09/04/2019,Research Grant Expenditure,Translational Growth Other,University of Oxford,98429904,71418.89,Research Grant Expenditure
BEIS,UKRI - MRC,09/04/2019,Research Grant Expenditure,NMHB Other,University College London GRANT,98430311,71379.11,Research Grant Expenditure
BEIS,UKRI - MRC,09/04/2019,Fellowships,MRC Funded Extramural Fellowships,University College London GRANT,98429046,71333.9,Fellowships
BEIS,UKRI - MRC,09/04/2019,Research Grant Expenditure,IIB Other,Queen Mary University of London,98429944,71314.87,Research Grant Expenditure
BEIS,UKRI - MRC,09/04/2019,Fellowships,MRC Funded Extramural Fellowships,University of Edinburgh,98429077,71220.66,Fellowships
BEIS,UKRI - MRC,09/04/2019,Research Grant Expenditure,IIB Other,University College London GRANT,98429639,71004.77,Research Grant Expenditure
BEIS,UKRI - Research England,16/04/2019,Research Grant Expenditure,RE- GCRF,Birkbeck College,98459368,70883.95,Research Grant Expenditure
BEIS,UKRI - Innovate UK,11/04/2019,Resource grants,Advanced Therapies,CELL THERAPY CATAPULT LTD,30242,70874.00,Resource grants
BEIS,UKRI - NERC,15/04/2019,Projects CIP,NERC - NOC Long Term Maintenance,JOHNSON CONTROLS BUILDING EFFICIENCY UK LIMITED,98461960,70807.07,Projects CIP
BEIS,UKRI - MRC,09/04/2019,Research Grant Expenditure,PSMB Other,University of Edinburgh,98429751,70719.49,Research Grant Expenditure
BEIS,UKRI - STFC,01/04/2019,Projects CIP,ISIS Accelerator,ICE Oxford Ltd,98441528,70656.00,Projects CIP
BEIS,UKRI - MRC,09/04/2019,Research Grant Expenditure,NMHB Other,St George's University of London,98429717,70590.08,Research Grant Expenditure
BEIS,UKRI - MRC,09/04/2019,Research Grant Expenditure,Translational Growth Other,Newcastle University,98429677,70555.39,Research Grant Expenditure
BEIS,UKRI - Innovate UK,05/04/2019,Resource grants,Transport,FUSION PROCESSING LTD,29153,70511.40,Resource grants
